Workbook

Sheet INGRESO DE DATOS
O2: 24 years | P2: FALSE
O4: Descuento 24 años (por edad)
O5: age | P5: Discount (%) | Q5: Parameter | S5: Type | T5: Nuevo Negocio | V5: Región | W5: 2
O6: 24 | P6: 35 | Q6: =1-P6/100 -> 0.65 | T6: Renovación | W6: 3
O7: 25 | P7: 30 | Q7: =1-P7/100 -> 0.7 | W7: 4
O8: 26 | P8: 25 | Q8: 0.75 | W8: 5
O9: 27 | P9: 20 | Q9: 0.8 | W9: 6
O10: 28 | P10: 15 | Q10: 0.85 | W10: 8
O11: 29 | P11: 6 | Q11: 0.94 | W11: 9
O12: All ages | P12: 0 | Q12: 1 | W12: Perú (Pólizas: 2020)
S13: Type selected | T13: 2 | V13: Selección | W13: 1
V14: Región | W14: =IF(W13=1,2,IF(W13=2,3,IF(W13=3,4,IF(W13=4,5,IF(W13=4,5,IF(W13=5,6,IF(W13=6,8,IF(W13=7,9,IF(W13=8,"PERU2020"))))))))) -> 2
O19: Descuento de 24 años: | P19: =IF(P2,_xlfn.SWITCH(C42,O6,Q6,O7,Q7,O8,Q8,O9,Q9,O10,Q10,O11,Q11,Q12),Q12) -> 1
O24: Descuento por variante de coaseguro | P24: N/A
O30: Descuento si es nuevo negocio (ENTRADA MANUAL)
O32: NEW BUSINESS DISCOUNT
O33: Critical | P33: Exclusive | Q33: Privilege | R33: Advantage | S33: Secure | T33: Essential
O34: 0 | P34: 0 | Q34: 0 | R34: 0 | S34: 0 | T34: 0
A36: Nombre del Asegurado principal: | C36: John Doe
O37: Descuento combinado 24 años + Nuevo Negocio o Roneovaciones
A38: Número de adultos en la póliza: | C38: 1
A40: Número de hijos en la póliza: | C40: 0 | O40: TOTAL DISCOUNT
O41: Critical | P41: Exclusive | Q41: Privilege | R41: Advantage | S41: Secure | T41: Essential
A42: Edad del titular: | C42: 71 | O42: =1*$P$19 -> 1 | P42: =IF($T$13=1,IF($W$14="PERU2020", (1-O51)*$P$19,(1-P34)*$P$19),1*$P$19) -> 1 | Q42: =IF($T$13=1,IF($W$14="PERU2020", (1-O54)*$P$19,(1-Q34)*$P$19),1*$P$19) -> 1 | R42: =IF($T$13=1,IF($W$14="PERU2020", (1-O57)*$P$19,(1-R34)*$P$19),1*$P$19) -> 1 | S42: =IF($T$13=1,IF($W$14="PERU2020", (1-O60)*$P$19,(1-S34)*$P$19),1*$P$19) -> 1 | T42: =IF($T$13=1,IF($W$14="PERU2020", (1-O63)*$P$19,(1-T34)*$P$19),1*$P$19) -> 1
A44: Edad de cónyuge: | C44: 41
A47: Nombre de la Agencia : | C47: Agencia
O48: DISCOUNT PERU 2020
O50: EXCLUSIVE CARE
O51: 0.51
O53: PRIVILEGE CARE
O54: 0.51
O56: ADVANTAGE CARE
O57: 0.47
O59: SECURE CARE
O60: 0.54
O62: ESSENTIAL CARE
O63: 0.54

Sheet Bupa Exclusive Care
N1: RESUMEN DE BENEFICIOS | AB1: RESUMEN DE BENEFICIOS
G2: FALSE | H2: FALSE
A5: Cotización de Seguro Médico Internacional Bupa Exclusive Care Tarifas en US$ | Validas: 1 de enero de 2025 | L5: REGIÓN
L7: =IF('INGRESO DE DATOS'!W14="PERU2020","Perú",'INGRESO DE DATOS'!W14) -> 2
A13: Nombre del asegurado principal: | G13: =+'INGRESO DE DATOS'!$C$36 -> John Doe
A15: Broker/Agente | G15: =+'INGRESO DE DATOS'!$C$47 -> Agencia
B17: Número de Adultos en la Póliza | G17: =+'INGRESO DE DATOS'!$C$38 -> 1 | J17: Dependientes (menores de 24 años) | L17: =+'INGRESO DE DATOS'!$C$40 -> 0
J18: =IF('INGRESO DE DATOS'!$P$2=TRUE, "Cotización para dependiente de 24 años","") -> 
B19: Edad del Titular | G19: =+'INGRESO DE DATOS'!$C$42 -> 71 | J19: Edad del Cónyuge | L19: =+'INGRESO DE DATOS'!$C$44 -> 41
J21: Fecha de Cotización: | K21: =NOW() -> 2024-12-18T14:10:10.160
F29: DEDUCIBLES | G29: PLAN 1 | H29: PLAN 2 | I29: PLAN 3 | J29: PLAN 4 | K29: PLAN 5 | L29: PLAN 6
F30: Dentro del pais de residencia | G30: n/a | H30: 1000 | I30: 2000 | J30: 5000 | K30: 10000 | L30: 20000
F31: Fuera del pais de residencia | G31: n/a | H31: 2000 | I31: 3000 | J31: 5000 | K31: 10000 | L31: 20000
F34: TARIFAS ANUALES
F35: Prima de Titular | G35: n/a | H35: =VLOOKUP($G$19,Tablas!$A$9:$H$32,4,TRUE) -> 225709 | I35: =VLOOKUP($G$19,Tablas!$A$9:$H$32,5,TRUE) -> 155093 | J35: =VLOOKUP($G$19,Tablas!$A$9:$H$32,6,TRUE) -> 105294 | K35: =VLOOKUP($G$19,Tablas!$A$9:$H$32,7,TRUE) -> 87572 | L35: =VLOOKUP($G$19,Tablas!$A$9:$H$32,8,TRUE) -> 76019
F36: Prima de Cónyuge | G36: n/a | H36: =IF($G$17=1,0,(VLOOKUP($L$19,Tablas!$A$9:$H$32,4,TRUE))) -> 0 | I36: =IF($G$17=1,0,(VLOOKUP($L$19,Tablas!$A$9:$H$32,5,TRUE))) -> 0 | J36: =IF($G$17=1,0,(VLOOKUP($L$19,Tablas!$A$9:$H$32,6,TRUE))) -> 0 | K36: =IF($G$17=1,0,(VLOOKUP($L$19,Tablas!$A$9:$H$32,7,TRUE))) -> 0 | L36: =IF($G$17=1,0,(VLOOKUP($L$19,Tablas!$A$9:$H$32,8,TRUE))) -> 0
F37: Primas Hijos | G37: n/a | H37: =IF($L$17=0,0,(VLOOKUP($L$17,Tablas!$A$33:$H$35,4,TRUE))) -> 0 | I37: =IF($L$17=0,0,(VLOOKUP($L$17,Tablas!$A$33:$H$35,5,TRUE))) -> 0 | J37: =IF($L$17=0,0,(VLOOKUP($L$17,Tablas!$A$33:$H$35,6,TRUE))) -> 0 | K37: =IF($L$17=0,0,(VLOOKUP($L$17,Tablas!$A$33:$H$35,7,TRUE))) -> 0 | L37: =IF($L$17=0,0,(VLOOKUP($L$17,Tablas!$A$33:$H$35,8,TRUE))) -> 0
F38: Rider: Complicaciones de Maternidad | G38: n/a | H38: =+IF($G$2=FALSE,0,Tablas!D$36) -> 0 | I38: =+IF($G$2=FALSE,0,Tablas!E$36) -> 0 | J38: =+IF($G$2=FALSE,0,Tablas!F$36) -> 0 | K38: =+IF($G$2=FALSE,0,Tablas!G$36) -> 0 | L38: =+IF($G$2=FALSE,0,Tablas!H$36) -> 0
F39: TOTAL PRIMA NETA | G39: n/a | H39: =SUM(H35:H38) -> 225709 | I39: =SUM(I35:I38) -> 155093 | J39: =SUM(J35:J38) -> 105294 | K39: =SUM(K35:K38) -> 87572 | L39: =SUM(L35:L38) -> 76019
F40: Costo Administrativo Anual | G40: n/a | H40: 75 | I40: 75 | J40: 75 | K40: 75 | L40: 75
F41: GRAN TOTAL: | G41: n/a | H41: =SUM(H39:H40) -> 225784 | I41: =SUM(I39:I40) -> 155168 | J41: =SUM(J39:J40) -> 105369 | K41: =SUM(K39:K40) -> 87647 | L41: =SUM(L39:L40) -> 76094
F44: TARIFAS SEMESTRALES
F45: Prima de Titular | G45: n/a | H45: =VLOOKUP($G$19,Tablas!$A$44:$H$67,4,TRUE) -> 119625.77 | I45: =VLOOKUP($G$19,Tablas!$A$44:$H$67,5,TRUE) -> 82199.29 | J45: =VLOOKUP($G$19,Tablas!$A$44:$H$67,6,TRUE) -> 55805.82 | K45: =VLOOKUP($G$19,Tablas!$A$44:$H$67,7,TRUE) -> 46413.16 | L45: =VLOOKUP($G$19,Tablas!$A$44:$H$67,8,TRUE) -> 40290.07
F46: Prima de Cónyuge | G46: n/a | H46: =IF($G$17=1,0,(VLOOKUP($L$19,Tablas!$A$44:$H$67,4,TRUE))) -> 0 | I46: =IF($G$17=1,0,(VLOOKUP($L$19,Tablas!$A$44:$H$67,5,TRUE))) -> 0 | J46: =IF($G$17=1,0,(VLOOKUP($L$19,Tablas!$A$44:$H$67,6,TRUE))) -> 0 | K46: =IF($G$17=1,0,(VLOOKUP($L$19,Tablas!$A$44:$H$67,7,TRUE))) -> 0 | L46: =IF($G$17=1,0,(VLOOKUP($L$19,Tablas!$A$44:$H$67,8,TRUE))) -> 0
F47: Primas Hijos | G47: n/a | H47: =IF($L$17=0,0,(VLOOKUP($L$17,Tablas!$A$68:$H$70,4,TRUE))) -> 0 | I47: =IF($L$17=0,0,(VLOOKUP($L$17,Tablas!$A$68:$H$70,5,TRUE))) -> 0 | J47: =IF($L$17=0,0,(VLOOKUP($L$17,Tablas!$A$68:$H$70,6,TRUE))) -> 0 | K47: =IF($L$17=0,0,(VLOOKUP($L$17,Tablas!$A$68:$H$70,7,TRUE))) -> 0 | L47: =IF($L$17=0,0,(VLOOKUP($L$17,Tablas!$A$68:$H$70,8,TRUE))) -> 0
F48: Rider: Complicación de Maternidad | G48: n/a | H48: =+IF($G$2=FALSE,0,Tablas!D$71) -> 0 | I48: =+IF($G$2=FALSE,0,Tablas!E$71) -> 0 | J48: =+IF($G$2=FALSE,0,Tablas!F$71) -> 0 | K48: =+IF($G$2=FALSE,0,Tablas!G$71) -> 0 | L48: =+IF($G$2=FALSE,0,Tablas!H$71) -> 0
F49: TOTAL PRIMA NETA | G49: n/a | H49: =SUM(H45:H48) -> 119625.77 | I49: =SUM(I45:I48) -> 82199.29 | J49: =SUM(J45:J48) -> 55805.82 | K49: =SUM(K45:K48) -> 46413.16 | L49: =SUM(L45:L48) -> 40290.07
F50: Costo Administrativo Anual | G50: n/a | H50: 75 | I50: 75 | J50: 75 | K50: 75 | L50: 75
F51: TOTAL (1ra Cuota) | G51: n/a | H51: =SUM(H49:H50) -> 119700.77 | I51: =SUM(I49:I50) -> 82274.29 | J51: =SUM(J49:J50) -> 55880.82 | K51: =SUM(K49:K50) -> 46488.16 | L51: =SUM(L49:L50) -> 40365.07
F52: TOTAL (2da Cuota) | G52: n/a | H52: =H49 -> 119625.77 | I52: =I49 -> 82199.29 | J52: 55805.82 | K52: 46413.16 | L52: 40290.07
F53: GRAN TOTAL | G53: n/a | H53: =SUM(H51:H52) -> 239326.54 | I53: =SUM(I51:I52) -> 164473.58 | J53: 111686.64 | K53: 92901.32 | L53: 80655.14
F55: Este presupuesto solamente tiene carácter informativo y en ningún momento expresa compromiso legal para suministrarle cobertura de seguro. La emisión de una póliza de seguro Bupa está sujeta a todas las evaluaciones de riesgo por parte de Bupa y a la recepción de todos los pagos de prima requeridos.

Sheet Bupa Privilege Care
N1: RESUMEN DE BENEFICIOS | AB1: RESUMEN DE BENEFICIOS
G2: FALSE
F5: Cotización de Seguro Médico Internacional Bupa Privilege Care Tarifas en US$ | Validas: 1 de enero de 2025 | L5: REGIÓN
L7: =IF('INGRESO DE DATOS'!W14="PERU2020","Perú",'INGRESO DE DATOS'!W14) -> 2
F13: Nombre del asegurado principal | G13: =+'INGRESO DE DATOS'!$C$36 -> John Doe
F15: Broker/Agente | G15: =+'INGRESO DE DATOS'!$C$47 -> Agencia
F17: Número de Adultos en la Póliza | G17: =+'INGRESO DE DATOS'!$C$38 -> 1 | I17: Dependientes (menores de 24 años) | L17: =+'INGRESO DE DATOS'!$C$40 -> 0
I18: =IF('INGRESO DE DATOS'!$P$2=TRUE, "Cotización para dependiente de 24 años","") -> 
F19: Edad del Titular | G19: =+'INGRESO DE DATOS'!$C$42 -> 71 | I19: Edad del Cónyuge | L19: =+'INGRESO DE DATOS'!$C$44 -> 41
I21: Fecha de Cotización: | K21: =NOW() -> 2024-12-18T14:10:10.160
F25: DEDUCIBLES | G25: PLAN 1 | H25: PLAN 2 | I25: PLAN 3 | J25: PLAN 4 | K25: PLAN 5 | L25: PLAN 6
F26: Dentro del pais de residencia | G26: n/a | H26: 1000 | I26: 2000 | J26: 5000 | K26: 10000 | L26: 20000
F27: Fuera del pais de residencia | G27: n/a | H27: 2000 | I27: 3000 | J27: 5000 | K27: 10000 | L27: 20000
F30: TARIFAS ANUALES
F31: Prima de Titular | G31: n/a | H31: =VLOOKUP($G$19,Tablas!$A$152:$H$175,4,TRUE) -> 193930 | I31: =VLOOKUP($G$19,Tablas!$A$152:$H$175,5,TRUE) -> 135594 | J31: =VLOOKUP($G$19,Tablas!$A$152:$H$175,6,TRUE) -> 91278 | K31: =VLOOKUP($G$19,Tablas!$A$152:$H$175,7,TRUE) -> 76579 | L31: =VLOOKUP($G$19,Tablas!$A$152:$H$175,8,TRUE) -> 65641
F32: Prima de Cónyuge | G32: n/a | H32: =IF($G$17=1,0,(VLOOKUP($L$19,Tablas!$A$152:$H$175,4,TRUE))) -> 0 | I32: =IF($G$17=1,0,(VLOOKUP($L$19,Tablas!$A$152:$H$175,5,TRUE))) -> 0 | J32: =IF($G$17=1,0,(VLOOKUP($L$19,Tablas!$A$152:$H$175,6,TRUE))) -> 0 | K32: =IF($G$17=1,0,(VLOOKUP($L$19,Tablas!$A$152:$H$175,7,TRUE))) -> 0 | L32: =IF($G$17=1,0,(VLOOKUP($L$19,Tablas!$A$152:$H$175,8,TRUE))) -> 0
F33: Primas Hijos | G33: n/a | H33: =IF($L$17=0,0,(VLOOKUP($L$17,Tablas!$A$176:$H$178,4,TRUE))) -> 0 | I33: =IF($L$17=0,0,(VLOOKUP($L$17,Tablas!$A$176:$H$178,5,TRUE))) -> 0 | J33: =IF($L$17=0,0,(VLOOKUP($L$17,Tablas!$A$176:$H$178,6,TRUE))) -> 0 | K33: =IF($L$17=0,0,(VLOOKUP($L$17,Tablas!$A$176:$H$178,7,TRUE))) -> 0 | L33: =IF($L$17=0,0,(VLOOKUP($L$17,Tablas!$A$176:$H$178,8,TRUE))) -> 0
F34: Rider: Complicaciones de Maternidad | G34: n/a | H34: =+IF($G$2=FALSE,0,Tablas!D$179) -> 0 | I34: =+IF($G$2=FALSE,0,Tablas!E$179) -> 0 | J34: =+IF($G$2=FALSE,0,Tablas!F$179) -> 0 | K34: =+IF($G$2=FALSE,0,Tablas!G$179) -> 0 | L34: =+IF($G$2=FALSE,0,Tablas!H$179) -> 0
F35: TOTAL PRIMA NETA | G35: n/a | H35: =SUM(H31:H34) -> 193930 | I35: =SUM(I31:I34) -> 135594 | J35: =SUM(J31:J34) -> 91278 | K35: =SUM(K31:K34) -> 76579 | L35: =SUM(L31:L34) -> 65641
F36: Costo Administrativo Anual | G36: n/a | H36: 75 | I36: 75 | J36: 75 | K36: 75 | L36: 75
F37: GRAN TOTAL | G37: n/a | H37: =SUM(H35:H36) -> 194005 | I37: =SUM(I35:I36) -> 135669 | J37: =SUM(J35:J36) -> 91353 | K37: =SUM(K35:K36) -> 76654 | L37: =SUM(L35:L36) -> 65716
F40: TARIFAS SEMESTRALES
F41: Prima de Titular | G41: n/a | H41: =VLOOKUP($G$19,Tablas!$A$187:$H$210,4,TRUE) -> 102782.9 | I41: =VLOOKUP($G$19,Tablas!$A$187:$H$210,5,TRUE) -> 71864.82 | J41: =VLOOKUP($G$19,Tablas!$A$187:$H$210,6,TRUE) -> 48377.34 | K41: =VLOOKUP($G$19,Tablas!$A$187:$H$210,7,TRUE) -> 40586.87 | L41: =VLOOKUP($G$19,Tablas!$A$187:$H$210,8,TRUE) -> 34789.73
F42: Prima de Cónyuge | G42: n/a | H42: =IF($G$17=1,0,(VLOOKUP($L$19,Tablas!$A$187:$H$210,4,TRUE))) -> 0 | I42: =IF($G$17=1,0,(VLOOKUP($L$19,Tablas!$A$187:$H$210,5,TRUE))) -> 0 | J42: =IF($G$17=1,0,(VLOOKUP($L$19,Tablas!$A$187:$H$210,6,TRUE))) -> 0 | K42: =IF($G$17=1,0,(VLOOKUP($L$19,Tablas!$A$187:$H$210,7,TRUE))) -> 0 | L42: =IF($G$17=1,0,(VLOOKUP($L$19,Tablas!$A$187:$H$210,8,TRUE))) -> 0
F43: Primas Hijos | G43: n/a | H43: =IF($L$17=0,0,(VLOOKUP($L$17,Tablas!$A$211:$H$213,4,TRUE))) -> 0 | I43: =IF($L$17=0,0,(VLOOKUP($L$17,Tablas!$A$211:$H$213,5,TRUE))) -> 0 | J43: =IF($L$17=0,0,(VLOOKUP($L$17,Tablas!$A$211:$H$213,6,TRUE))) -> 0 | K43: =IF($L$17=0,0,(VLOOKUP($L$17,Tablas!$A$211:$H$213,7,TRUE))) -> 0 | L43: =IF($L$17=0,0,(VLOOKUP($L$17,Tablas!$A$211:$H$213,8,TRUE))) -> 0
F44: Prima Rider Complic. Maternidad | G44: n/a | H44: =+IF($G$2=FALSE,0,Tablas!D$214) -> 0 | I44: =+IF($G$2=FALSE,0,Tablas!E$214) -> 0 | J44: =+IF($G$2=FALSE,0,Tablas!F$214) -> 0 | K44: =+IF($G$2=FALSE,0,Tablas!G$214) -> 0 | L44: =+IF($G$2=FALSE,0,Tablas!H$214) -> 0
F45: TOTAL PRIMA NETA | G45: n/a | H45: =SUM(H41:H44) -> 102782.9 | I45: =SUM(I41:I44) -> 71864.82 | J45: =SUM(J41:J44) -> 48377.34 | K45: =SUM(K41:K44) -> 40586.87 | L45: =SUM(L41:L44) -> 34789.73
F46: Costo Administrativo Anual | G46: n/a | H46: 75 | I46: 75 | J46: 75 | K46: 75 | L46: 75
F47: TOTAL (1ra Cuota) : | G47: n/a | H47: =SUM(H45:H46) -> 102857.9 | I47: =SUM(I45:I46) -> 71939.82 | J47: =SUM(J45:J46) -> 48452.34 | K47: =SUM(K45:K46) -> 40661.87 | L47: =SUM(L45:L46) -> 34864.73
F48: TOTAL (2da Cuota) : | G48: n/a | H48: =H45 -> 102782.9 | I48: =I45 -> 71864.82 | J48: 48377.34 | K48: 40586.87 | L48: 34789.73
F49: GRAN TOTAL | G49: n/a | H49: =SUM(H47:H48) -> 205640.8 | I49: =SUM(I47:I48) -> 143804.64 | J49: 96829.68 | K49: 81248.74 | L49: 69654.46
F51: Este presupuesto solamente tiene carácter informativo y en ningún momento expresa compromiso legal para suministrarle cobertura de seguro. La emisión de una póliza de seguro Bupa está sujeta a todas las evaluaciones de riesgo por parte de Bupa y a la recepción de todos los pagos de prima requeridos.

Sheet Bupa Advantage Care (Mundial)
C1: FALSE | D1: FALSE | I1: RESUMEN DE BENEFICIOS | W1: RESUMEN DE BENEFICIOS
A5: Cotización de Seguro Médico Internacional Bupa Advantage Care (Mundial) Tarifas en US$ | Validas: 1 de enero de 2025 | G5: REGIÓN
G7: =IF('INGRESO DE DATOS'!W14="PERU2020","Perú",'INGRESO DE DATOS'!W14) -> 2
A13: Nombre del asegurado principal | B13: =+'INGRESO DE DATOS'!$C$36 -> John Doe
A15: Broker/Agente | B15: =+'INGRESO DE DATOS'!$C$47 -> Agencia
A17: Número de Adultos en la Póliza | B17: =+'INGRESO DE DATOS'!$C$38 -> 1 | D17: Dependientes (menores de 24 años) | G17: =+'INGRESO DE DATOS'!$C$40 -> 0
D18: =IF('INGRESO DE DATOS'!$P$2=TRUE, "Cotización para dependiente de 24 años","") -> 
A19: Edad del Titular | B19: =+'INGRESO DE DATOS'!$C$42 -> 71 | D19: Edad del Cónyuge | G19: =+'INGRESO DE DATOS'!$C$44 -> 41
D21: Fecha de Cotización: | F21: =NOW() -> 2024-12-18T14:10:10.160
A25: DEDUCIBLES | B25: PLAN 1 | C25: PLAN 2 | D25: PLAN 3 | E25: PLAN 4 | F25: PLAN 5 | G25: PLAN 6
A26: Dentro del pais de residencia | B26: n/a | C26: 1000 | D26: 2000 | E26: 5000 | F26: 10000 | G26: 20000
A27: Fuera del pais de residencia | B27: n/a | C27: 2000 | D27: 3000 | E27: 5000 | F27: 10000 | G27: 20000
A30: TARIFAS ANUALES
A31: Prima de Titular | B31: n/a | C31: =VLOOKUP($B$19,Tablas!$A$297:$H$320,4,TRUE) -> 103014 | D31: =VLOOKUP($B$19,Tablas!$A$297:$H$320,5,TRUE) -> 80001 | E31: =VLOOKUP($B$19,Tablas!$A$297:$H$320,6,TRUE) -> 54496 | F31: =VLOOKUP($B$19,Tablas!$A$297:$H$320,7,TRUE) -> 39964 | G31: =VLOOKUP($B$19,Tablas!$A$297:$H$320,8,TRUE) -> 32283
A32: Prima de Cónyuge | B32: n/a | C32: =IF($B$17=1,0,(VLOOKUP($G$19,Tablas!$A$297:$H$320,4,TRUE))) -> 0 | D32: =IF($B$17=1,0,(VLOOKUP($G$19,Tablas!$A$297:$H$320,5,TRUE))) -> 0 | E32: =IF($B$17=1,0,(VLOOKUP($G$19,Tablas!$A$297:$H$320,6,TRUE))) -> 0 | F32: =IF($B$17=1,0,(VLOOKUP($G$19,Tablas!$A$297:$H$320,7,TRUE))) -> 0 | G32: =IF($B$17=1,0,(VLOOKUP($G$19,Tablas!$A$297:$H$320,8,TRUE))) -> 0
A33: Primas Hijos | B33: n/a | C33: =IF($G$17=0,0,(VLOOKUP($G$17,Tablas!$A$321:$H$323,4,TRUE))) -> 0 | D33: =IF($G$17=0,0,(VLOOKUP($G$17,Tablas!$A$321:$H$323,5,TRUE))) -> 0 | E33: =IF($G$17=0,0,(VLOOKUP($G$17,Tablas!$A$321:$H$323,6,TRUE))) -> 0 | F33: =IF($G$17=0,0,(VLOOKUP($G$17,Tablas!$A$321:$H$323,7,TRUE))) -> 0 | G33: =IF($G$17=0,0,(VLOOKUP($G$17,Tablas!$A$321:$H$323,8,TRUE))) -> 0
A34: Rider: Complicaciones de Maternidad | B34: n/a | C34: =+IF($C$1=FALSE,0,Tablas!D$324) -> 0 | D34: =+IF($C$1=FALSE,0,Tablas!E$324) -> 0 | E34: =+IF($C$1=FALSE,0,Tablas!F$324) -> 0 | F34: =+IF($C$1=FALSE,0,Tablas!G$324) -> 0 | G34: =+IF($C$1=FALSE,0,Tablas!H$324) -> 0
A35: Rider: Trasplante de Órganos | B35: n/a | C35: =IF($D$1=FALSE,0,Tablas!D$325) -> 0 | D35: =IF($D$1=FALSE,0,Tablas!E$325) -> 0 | E35: =IF($D$1=FALSE,0,Tablas!F$325) -> 0 | F35: =IF($D$1=FALSE,0,Tablas!G$325) -> 0 | G35: =IF($D$1=FALSE,0,Tablas!H$325) -> 0
A36: TOTAL PRIMA NETA | B36: n/a | C36: =SUM(C31:C35) -> 103014 | D36: 80001 | E36: 54496 | F36: 39964 | G36: 32283
A37: Costo Administrativo Annual | B37: n/a | C37: 75 | D37: 75 | E37: 75 | F37: 75 | G37: 75
A38: GRAN TOTAL : | B38: n/a | C38: =SUM(C36:C37) -> 103089 | D38: =SUM(D36:D37) -> 80076 | E38: =SUM(E36:E37) -> 54571 | F38: =SUM(F36:F37) -> 40039 | G38: =SUM(G36:G37) -> 32358
A41: TARIFAS SEMESTRALES
A42: Prima de Titular | B42: n/a | C42: =VLOOKUP($B$19,Tablas!$A$332:$H$355,4,TRUE) -> 54597.42 | D42: =VLOOKUP($B$19,Tablas!$A$332:$H$355,5,TRUE) -> 42400.53 | E42: =VLOOKUP($B$19,Tablas!$A$332:$H$355,6,TRUE) -> 28882.88 | F42: =VLOOKUP($B$19,Tablas!$A$332:$H$355,7,TRUE) -> 21180.92 | G42: =VLOOKUP($B$19,Tablas!$A$332:$H$355,8,TRUE) -> 17109.99
A43: Prima de Cónyuge | B43: n/a | C43: =IF($B$17=1,0,(VLOOKUP($G$19,Tablas!$A$332:$H$355,4,TRUE))) -> 0 | D43: =IF($B$17=1,0,(VLOOKUP($G$19,Tablas!$A$332:$H$355,5,TRUE))) -> 0 | E43: =IF($B$17=1,0,(VLOOKUP($G$19,Tablas!$A$332:$H$355,6,TRUE))) -> 0 | F43: =IF($B$17=1,0,(VLOOKUP($G$19,Tablas!$A$332:$H$355,7,TRUE))) -> 0 | G43: =IF($B$17=1,0,(VLOOKUP($G$19,Tablas!$A$332:$H$355,8,TRUE))) -> 0
A44: Primas Hijos | B44: n/a | C44: =IF($G$17=0,0,(VLOOKUP($G$17,Tablas!$A$356:$H$358,4,TRUE))) -> 0 | D44: =IF($G$17=0,0,(VLOOKUP($G$17,Tablas!$A$356:$H$358,5,TRUE))) -> 0 | E44: =IF($G$17=0,0,(VLOOKUP($G$17,Tablas!$A$356:$H$358,6,TRUE))) -> 0 | F44: =IF($G$17=0,0,(VLOOKUP($G$17,Tablas!$A$356:$H$358,7,TRUE))) -> 0 | G44: =IF($G$17=0,0,(VLOOKUP($G$17,Tablas!$A$356:$H$358,8,TRUE))) -> 0
A45: Rider: Complicaciones de Maternidad | B45: n/a | C45: =+IF($C$1=FALSE,0,Tablas!D$359) -> 0 | D45: =+IF($C$1=FALSE,0,Tablas!E$359) -> 0 | E45: =+IF($C$1=FALSE,0,Tablas!F$359) -> 0 | F45: =+IF($C$1=FALSE,0,Tablas!G$359) -> 0 | G45: =+IF($C$1=FALSE,0,Tablas!H$359) -> 0
A46: Rider: Trasplante Organos | B46: n/a | C46: =IF($D$1=FALSE,0,Tablas!D$360) -> 0 | D46: =IF($D$1=FALSE,0,Tablas!E$360) -> 0 | E46: =IF($D$1=FALSE,0,Tablas!F$360) -> 0 | F46: =IF($D$1=FALSE,0,Tablas!G$360) -> 0 | G46: =IF($D$1=FALSE,0,Tablas!H$360) -> 0
A47: TOTAL PRIMA NETA | B47: n/a | C47: =SUM(C42:C46) -> 54597.42 | D47: 42400.53 | E47: 28882.88 | F47: 21180.92 | G47: 17109.99
A48: Costo Administrativo Anual | B48: n/a | C48: 75 | D48: 75 | E48: 75 | F48: 75 | G48: 75
A49: TOTAL (1ra Cuota) | B49: n/a | C49: =SUM(C47:C48) -> 54672.42 | D49: =SUM(D47:D48) -> 42475.53 | E49: =SUM(E47:E48) -> 28957.88 | F49: =SUM(F47:F48) -> 21255.92 | G49: =SUM(G47:G48) -> 17184.99
A50: TOTAL (2da Cuota) | B50: n/a | C50: =C47 -> 54597.42 | D50: =D47 -> 42400.53 | E50: 28882.88 | F50: 21180.92 | G50: 17109.99
A51: GRAN TOTAL | B51: n/a | C51: =SUM(C49:C50) -> 109269.84 | D51: =SUM(D49:D50) -> 84876.06 | E51: 57840.76 | F51: 42436.84 | G51: 34294.98
A54: Este presupuesto solamente tiene carácter informativo y en ningún momento expresa compromiso legal para suministrarle cobertura de seguro. La emisión de una póliza de seguro Bupa está sujeta a todas las evaluaciones de riesgo por parte de Bupa y a la recepción de todos los pagos de prima requeridos.

Sheet Bupa Secure Care
B1: FALSE | C1: FALSE | I1: RESUMEN DE BENEFICIOS | W1: RESUMEN DE BENEFICIOS
A5: Cotización de Seguro Médico Internacional Bupa Secure Care Tarifas en US$ | Validas: 1 de enero de 2025 | G5: REGIÓN
G7: =IF('INGRESO DE DATOS'!W14="PERU2020","Perú",'INGRESO DE DATOS'!W14) -> 2
A13: Nombre del asegurado principal | B13: =+'INGRESO DE DATOS'!$C$36 -> John Doe
A15: Broker/Agente | B15: =+'INGRESO DE DATOS'!$C$47 -> Agencia
A17: Número de Adultos en la Póliza | B17: =+'INGRESO DE DATOS'!$C$38 -> 1 | D17: Dependientes (menores de 24 años) | G17: =+'INGRESO DE DATOS'!$C$40 -> 0
D18: =IF('INGRESO DE DATOS'!$P$2=TRUE, "Cotización para dependiente de 24 años","") -> 
A19: Edad del Titular | B19: =+'INGRESO DE DATOS'!$C$42 -> 71 | D19: Edad del Cónyuge | G19: =+'INGRESO DE DATOS'!$C$44 -> 41
D21: Fecha de Cotización: | F21: =NOW() -> 2024-12-18T14:10:10.160
A25: DEDUCIBLES | B25: PLAN 1 | C25: PLAN 2 | D25: PLAN 3 | E25: PLAN 4 | F25: PLAN 5 | G25: PLAN 6
A26: Dentro del pais de residencia | B26: n/a | C26: 1000 | D26: 2000 | E26: 5000 | F26: 10000 | G26: 20000
A27: Fuera del pais de residencia | B27: n/a | C27: 2000 | D27: 3000 | E27: 5000 | F27: 10000 | G27: 20000
A30: TARIFAS ANUALES
A31: Prima de Titular | B31: n/a | C31: =VLOOKUP($B$19,Tablas!$A$440:$H$463,4,TRUE) -> 63637 | D31: =VLOOKUP($B$19,Tablas!$A$440:$H$463,5,TRUE) -> 59437 | E31: =VLOOKUP($B$19,Tablas!$A$440:$H$463,6,TRUE) -> 38598 | F31: =VLOOKUP($B$19,Tablas!$A$440:$H$463,7,TRUE) -> 31305 | G31: =VLOOKUP($B$19,Tablas!$A$440:$H$463,8,TRUE) -> 23277
A32: Prima de Cónyuge | B32: n/a | C32: =IF($B$17=1,0,(VLOOKUP($G$19,Tablas!$A$440:$H$463,4,TRUE))) -> 0 | D32: =IF($B$17=1,0,(VLOOKUP($G$19,Tablas!$A$440:$H$463,5,TRUE))) -> 0 | E32: =IF($B$17=1,0,(VLOOKUP($G$19,Tablas!$A$440:$H$463,6,TRUE))) -> 0 | F32: =IF($B$17=1,0,(VLOOKUP($G$19,Tablas!$A$440:$H$463,7,TRUE))) -> 0 | G32: =IF($B$17=1,0,(VLOOKUP($G$19,Tablas!$A$440:$H$463,8,TRUE))) -> 0
A33: Primas Hijos | B33: n/a | C33: =IF($G$17=0,0,(VLOOKUP($G$17,Tablas!$A$464:$H$466,4,TRUE))) -> 0 | D33: =IF($G$17=0,0,(VLOOKUP($G$17,Tablas!$A$464:$H$466,5,TRUE))) -> 0 | E33: =IF($G$17=0,0,(VLOOKUP($G$17,Tablas!$A$464:$H$466,6,TRUE))) -> 0 | F33: =IF($G$17=0,0,(VLOOKUP($G$17,Tablas!$A$464:$H$466,7,TRUE))) -> 0 | G33: =IF($G$17=0,0,(VLOOKUP($G$17,Tablas!$A$464:$H$466,8,TRUE))) -> 0
A34: Rider: Complicaciones de Maternidad | B34: n/a | C34: =+IF($B$1=FALSE,0,Tablas!D$467) -> 0 | D34: =+IF($B$1=FALSE,0,Tablas!E$467) -> 0 | E34: =+IF($B$1=FALSE,0,Tablas!F$467) -> 0 | F34: =+IF($B$1=FALSE,0,Tablas!G$467) -> 0 | G34: =+IF($B$1=FALSE,0,Tablas!H$467) -> 0
A35: Rider: Trasplante de Órganos | B35: n/a | C35: =IF($C$1=FALSE,0,Tablas!D$468) -> 0 | D35: =IF($C$1=FALSE,0,Tablas!E$468) -> 0 | E35: =IF($C$1=FALSE,0,Tablas!F$468) -> 0 | F35: =IF($C$1=FALSE,0,Tablas!G$468) -> 0 | G35: =IF($C$1=FALSE,0,Tablas!H$468) -> 0
A36: TOTAL PRIMA NETA | B36: n/a | C36: =SUM(C31:C35) -> 63637 | D36: 59437 | E36: 38598 | F36: 31305 | G36: 23277
A37: Costo Administrativo Annual | B37: n/a | C37: 75 | D37: 75 | E37: 75 | F37: 75 | G37: 75
A38: GRAN TOTAL : | B38: n/a | C38: =SUM(C36:C37) -> 63712 | D38: =SUM(D36:D37) -> 59512 | E38: =SUM(E36:E37) -> 38673 | F38: =SUM(F36:F37) -> 31380 | G38: =SUM(G36:G37) -> 23352
A40: TARIFAS SEMESTRALES
A41: Prima de Titular | B41: n/a | C41: =VLOOKUP($B$19,Tablas!$A$476:$H$499,4,TRUE) -> 33727.61 | D41: =VLOOKUP($B$19,Tablas!$A$476:$H$499,5,TRUE) -> 31501.61 | E41: =VLOOKUP($B$19,Tablas!$A$476:$H$499,6,TRUE) -> 20456.94 | F41: =VLOOKUP($B$19,Tablas!$A$476:$H$499,7,TRUE) -> 16591.65 | G41: =VLOOKUP($B$19,Tablas!$A$476:$H$499,8,TRUE) -> 12336.81
A42: Prima de Cónyuge | B42: n/a | C42: =IF($B$17=1,0,(VLOOKUP($G$19,Tablas!$A$476:$H$499,4,TRUE))) -> 0 | D42: =IF($B$17=1,0,(VLOOKUP($G$19,Tablas!$A$476:$H$499,5,TRUE))) -> 0 | E42: =IF($B$17=1,0,(VLOOKUP($G$19,Tablas!$A$476:$H$499,6,TRUE))) -> 0 | F42: =IF($B$17=1,0,(VLOOKUP($G$19,Tablas!$A$476:$H$499,7,TRUE))) -> 0 | G42: =IF($B$17=1,0,(VLOOKUP($G$19,Tablas!$A$476:$H$499,8,TRUE))) -> 0
A43: Primas Hijos | B43: n/a | C43: =IF($G$17=0,0,(VLOOKUP($G$17,Tablas!$A$500:$H$502,4,TRUE))) -> 0 | D43: =IF($G$17=0,0,(VLOOKUP($G$17,Tablas!$A$500:$H$502,5,TRUE))) -> 0 | E43: =IF($G$17=0,0,(VLOOKUP($G$17,Tablas!$A$500:$H$502,6,TRUE))) -> 0 | F43: =IF($G$17=0,0,(VLOOKUP($G$17,Tablas!$A$500:$H$502,7,TRUE))) -> 0 | G43: =IF($G$17=0,0,(VLOOKUP($G$17,Tablas!$A$500:$H$502,8,TRUE))) -> 0
A44: Rider: Complicaciones de Maternidad | B44: n/a | C44: =+IF($B$1=FALSE,0,Tablas!D$503) -> 0 | D44: =+IF($B$1=FALSE,0,Tablas!E$503) -> 0 | E44: =+IF($B$1=FALSE,0,Tablas!F$503) -> 0 | F44: =+IF($B$1=FALSE,0,Tablas!G$503) -> 0 | G44: =+IF($B$1=FALSE,0,Tablas!H$503) -> 0
A45: Rider: Trasplante Organos | B45: n/a | C45: =IF($C$1=FALSE,0,Tablas!D$504) -> 0 | D45: =IF($C$1=FALSE,0,Tablas!E$504) -> 0 | E45: =IF($C$1=FALSE,0,Tablas!F$504) -> 0 | F45: =IF($C$1=FALSE,0,Tablas!G$504) -> 0 | G45: =IF($C$1=FALSE,0,Tablas!H$504) -> 0
A46: TOTAL PRIMA NETA | B46: n/a | C46: =SUM(C41:C45) -> 33727.61 | D46: 31501.61 | E46: 20456.94 | F46: 16591.65 | G46: 12336.81
A47: Costo Administrativo Anual | B47: n/a | C47: 75 | D47: 75 | E47: 75 | F47: 75 | G47: 75
A48: TOTAL (1ra Cuota) | B48: n/a | C48: =SUM(C46:C47) -> 33802.61 | D48: =SUM(D46:D47) -> 31576.61 | E48: =SUM(E46:E47) -> 20531.94 | F48: =SUM(F46:F47) -> 16666.65 | G48: =SUM(G46:G47) -> 12411.81
A49: TOTAL (2da Cuota) | B49: n/a | C49: =C46 -> 33727.61 | D49: =D46 -> 31501.61 | E49: 20456.94 | F49: 16591.65 | G49: 12336.81
A50: GRAN TOTAL | B50: n/a | C50: =SUM(C48:C49) -> 67530.22 | D50: =SUM(D48:D49) -> 63078.22 | E50: 40988.88 | F50: 33258.3 | G50: 24748.62
A52: Este presupuesto solamente tiene carácter informativo y en ningún momento expresa compromiso legal para suministrarle cobertura de seguro. La emisión de una póliza de seguro Bupa está sujeta a todas las evaluaciones de riesgo por parte de Bupa y a la recepción de todos los pagos de prima requeridos.

Sheet Bupa Essential Care
B1: FALSE | C1: FALSE | I1: RESUMEN DE BENEFICIOS | W1: RESUMEN DE BENEFICIOS
A5: Cotización de Seguro Médico Internacional Bupa Essential Care Tarifas en US$ | Validas: 1 de enero de 2025 | G5: REGIÓN
G7: =IF('INGRESO DE DATOS'!W14="PERU2020","Perú",'INGRESO DE DATOS'!W14) -> 2
A13: Nombre del asegurado principal | B13: =+'INGRESO DE DATOS'!$C$36 -> John Doe
A15: Broker/Agente | B15: =+'INGRESO DE DATOS'!$C$47 -> Agencia
A17: Número de Adultos en la Póliza | B17: =+'INGRESO DE DATOS'!$C$38 -> 1 | D17: Dependientes (menores de 24 años) | G17: =+'INGRESO DE DATOS'!$C$40 -> 0
D18: =IF('INGRESO DE DATOS'!$P$2=TRUE, "Cotización para dependiente de 24 años","") -> 
A19: Edad del Titular | B19: =+'INGRESO DE DATOS'!$C$42 -> 71 | D19: Edad del Cónyuge | G19: =+'INGRESO DE DATOS'!$C$44 -> 41
D21: Fecha de Cotización: | F21: =NOW() -> 2024-12-18T14:10:10.160
A25: DEdUCIBLES | B25: PLAN 1 | C25: PLAN 2 | D25: PLAN 3 | E25: PLAN 4 | F25: PLAN 5 | G25: PLAN 6
A26: Dentro del pais de residencia | B26: n/a | C26: 1000 | D26: 2000 | E26: 5000 | F26: 10000 | G26: 20000
A27: Fuera del pais de residencia | B27: n/a | C27: 2000 | D27: 3000 | E27: 5000 | F27: 10000 | G27: 20000
A30: TARIFAS ANUALES
A31: Prima de Titular | B31: n/a | C31: =VLOOKUP($B$19,Tablas!$A$513:$H$536,4,TRUE) -> 52693 | D31: =VLOOKUP($B$19,Tablas!$A$513:$H$536,5,TRUE) -> 49235 | E31: =VLOOKUP($B$19,Tablas!$A$513:$H$536,6,TRUE) -> 31966 | F31: =VLOOKUP($B$19,Tablas!$A$513:$H$536,7,TRUE) -> 25925 | G31: =VLOOKUP($B$19,Tablas!$A$513:$H$536,8,TRUE) -> 19260
A32: Prima de Cónyuge | B32: n/a | C32: =IF($B$17=1,0,(VLOOKUP($G$19,Tablas!$A$513:$H$536,4,TRUE))) -> 0 | D32: =IF($B$17=1,0,(VLOOKUP($G$19,Tablas!$A$513:$H$536,5,TRUE))) -> 0 | E32: =IF($B$17=1,0,(VLOOKUP($G$19,Tablas!$A$513:$H$536,6,TRUE))) -> 0 | F32: =IF($B$17=1,0,(VLOOKUP($G$19,Tablas!$A$513:$H$536,7,TRUE))) -> 0 | G32: =IF($B$17=1,0,(VLOOKUP($G$19,Tablas!$A$513:$H$536,8,TRUE))) -> 0
A33: Primas Hijos | B33: n/a | C33: =IF($G$17=0,0,(VLOOKUP($G$17,Tablas!$A$537:$H$539,4,TRUE))) -> 0 | D33: =IF($G$17=0,0,(VLOOKUP($G$17,Tablas!$A$537:$H$539,5,TRUE))) -> 0 | E33: =IF($G$17=0,0,(VLOOKUP($G$17,Tablas!$A$537:$H$539,6,TRUE))) -> 0 | F33: =IF($G$17=0,0,(VLOOKUP($G$17,Tablas!$A$537:$H$539,7,TRUE))) -> 0 | G33: =IF($G$17=0,0,(VLOOKUP($G$17,Tablas!$A$537:$H$539,8,TRUE))) -> 0
A34: Rider: Complicaciones de Maternidad | B34: n/a | C34: =+IF($B$1=FALSE,0,Tablas!D$540) -> 0 | D34: =+IF($B$1=FALSE,0,Tablas!E$540) -> 0 | E34: =+IF($B$1=FALSE,0,Tablas!F$540) -> 0 | F34: =+IF($B$1=FALSE,0,Tablas!G$540) -> 0 | G34: =+IF($B$1=FALSE,0,Tablas!H$540) -> 0
A35: Rider: Trasplante Órganos | B35: n/a | C35: =IF($C$1=FALSE,0,Tablas!D$541) -> 0 | D35: =IF($C$1=FALSE,0,Tablas!E$541) -> 0 | E35: =IF($C$1=FALSE,0,Tablas!F$541) -> 0 | F35: =IF($C$1=FALSE,0,Tablas!G$541) -> 0 | G35: =IF($C$1=FALSE,0,Tablas!H$541) -> 0
A36: TOTAL PRIMA NETA | B36: n/a | C36: =SUM(C31:C35) -> 52693 | D36: 49235 | E36: 31966 | F36: 25925 | G36: 19260
A37: Costo Administrativo Annual | B37: n/a | C37: 75 | D37: 75 | E37: 75 | F37: 75 | G37: 75
A38: GRAN TOTAL : | B38: n/a | C38: =SUM(C36:C37) -> 52768 | D38: =SUM(D36:D37) -> 49310 | E38: =SUM(E36:E37) -> 32041 | F38: =SUM(F36:F37) -> 26000 | G38: =SUM(G36:G37) -> 19335
A41: TARIFAS SEMESTRALES
A42: Prima de Titular | B42: n/a | C42: =VLOOKUP($B$19,Tablas!$A$548:$H$571,4,TRUE) -> 27927.29 | D42: =VLOOKUP($B$19,Tablas!$A$548:$H$571,5,TRUE) -> 26094.55 | E42: =VLOOKUP($B$19,Tablas!$A$548:$H$571,6,TRUE) -> 16941.98 | F42: =VLOOKUP($B$19,Tablas!$A$548:$H$571,7,TRUE) -> 13740.25 | G42: =VLOOKUP($B$19,Tablas!$A$548:$H$571,8,TRUE) -> 10207.8
A43: Prima de Cónyuge | B43: n/a | C43: =IF($B$17=1,0,(VLOOKUP($G$19,Tablas!$A$548:$H$571,4,TRUE))) -> 0 | D43: =IF($B$17=1,0,(VLOOKUP($G$19,Tablas!$A$548:$H$571,5,TRUE))) -> 0 | E43: =IF($B$17=1,0,(VLOOKUP($G$19,Tablas!$A$548:$H$571,6,TRUE))) -> 0 | F43: =IF($B$17=1,0,(VLOOKUP($G$19,Tablas!$A$548:$H$571,7,TRUE))) -> 0 | G43: =IF($B$17=1,0,(VLOOKUP($G$19,Tablas!$A$548:$H$571,8,TRUE))) -> 0
A44: Primas Hijos | B44: n/a | C44: =IF($G$17=0,0,(VLOOKUP($G$17,Tablas!$A$572:$H$574,4,TRUE))) -> 0 | D44: =IF($G$17=0,0,(VLOOKUP($G$17,Tablas!$A$572:$H$574,5,TRUE))) -> 0 | E44: =IF($G$17=0,0,(VLOOKUP($G$17,Tablas!$A$572:$H$574,6,TRUE))) -> 0 | F44: =IF($G$17=0,0,(VLOOKUP($G$17,Tablas!$A$572:$H$574,7,TRUE))) -> 0 | G44: =IF($G$17=0,0,(VLOOKUP($G$17,Tablas!$A$572:$H$574,8,TRUE))) -> 0
A45: Rider: Complicaciones de Maternidad | B45: n/a | C45: =+IF($B$1=FALSE,0,Tablas!D$575) -> 0 | D45: =+IF($B$1=FALSE,0,Tablas!E$575) -> 0 | E45: =+IF($B$1=FALSE,0,Tablas!F$575) -> 0 | F45: =+IF($B$1=FALSE,0,Tablas!G$575) -> 0 | G45: =+IF($B$1=FALSE,0,Tablas!H$575) -> 0
A46: Rider: Trasplante Organos | B46: n/a | C46: =IF($C$1=FALSE,0,Tablas!D$576) -> 0 | D46: =IF($C$1=FALSE,0,Tablas!E$576) -> 0 | E46: =IF($C$1=FALSE,0,Tablas!F$576) -> 0 | F46: =IF($C$1=FALSE,0,Tablas!G$576) -> 0 | G46: =IF($C$1=FALSE,0,Tablas!H$576) -> 0
A47: TOTAL PRIMA NETA | B47: n/a | C47: =SUM(C42:C46) -> 27927.29 | D47: 26094.55 | E47: 16941.98 | F47: 13740.25 | G47: 10207.8
A48: Costo Administrativo Anual | B48: n/a | C48: 75 | D48: 75 | E48: 75 | F48: 75 | G48: 75
A49: TOTAL (1ra Cuota) | B49: n/a | C49: =SUM(C47:C48) -> 28002.29 | D49: =SUM(D47:D48) -> 26169.55 | E49: =SUM(E47:E48) -> 17016.98 | F49: =SUM(F47:F48) -> 13815.25 | G49: =SUM(G47:G48) -> 10282.8
A50: TOTAL (2da Cuota) | B50: n/a | C50: =C47 -> 27927.29 | D50: =D47 -> 26094.55 | E50: 16941.98 | F50: 13740.25 | G50: 10207.8
A51: GRAN TOTAL | B51: n/a | C51: =SUM(C49:C50) -> 55929.58 | D51: =SUM(D49:D50) -> 52264.1 | E51: 33958.96 | F51: 27555.5 | G51: 20490.6
A54: Este presupuesto solamente tiene carácter informativo y en ningún momento expresa compromiso legal para suministrarle cobertura de seguro. La emisión de una póliza de seguro Bupa está sujeta a todas las evaluaciones de riesgo por parte de Bupa y a la recepción de todos los pagos de prima requeridos.

Sheet Bupa Crititcal
B1: TRUE | J1: RESUMEN DE BENEFICIOS | X1: RESUMEN DE BENEFICIOS
A5: Cotización de Seguro Médico Internacional Bupa Critical Care Tarifas en US$ | Validas: 1 de enero de 2025 | H5: REGIÓN
H7: =IF('INGRESO DE DATOS'!W14="PERU2020","Perú",'INGRESO DE DATOS'!W14) -> 2
A13: Nombre del asegurado principal | B13: =+'INGRESO DE DATOS'!$C$36 -> John Doe
A15: Broker/Agente | B15: =+'INGRESO DE DATOS'!$C$47 -> Agencia
A17: Número de Adultos en la Póliza | B17: =+'INGRESO DE DATOS'!$C$38 -> 1 | D17: Dependientes (menores de 24 años) | H17: =+'INGRESO DE DATOS'!$C$40 -> 0
D18: =IF('INGRESO DE DATOS'!$P$2=TRUE, "Cotización para dependiente de 24 años","") -> 
A19: Edad del Titular | B19: =+'INGRESO DE DATOS'!$C$42 -> 71 | D19: Edad del Cónyuge | H19: =+'INGRESO DE DATOS'!$C$44 -> 41
D21: Edad del adulto mayor en la pareja | H21: =IF(B19>=H19,B19,H19) -> 71
A24: CONDICION CRÍTICA CUBIERTA | D24: MÁXIMO (Por asegurado, por año Póliza) | F24: TRASPLANTE DE ÓRGANOS
F26: Tipo de trasplante | H26: Máximo Vitalicio por persona
A27: Enfermedades neurológicas y accidentes cerebro-vasculares | D27: 150000
A29: Cirugías cardíacas y angioplastías | D29: 150000 | F29: Corazón | H29: 300000
F30: Corazón y Pulmón (simultáneamente) | H30: 300000
A31: Tratamiento de cáncer | D31: 200000 | F31: Pulmón | H31: 250000
F32: Pancreas | H32: 250000
A33: Trauma grave (Politraumatismos) | D33: 150000 | F33: Pancreas y Riñón (simultáneamente) | H33: 300000
F34: Riñón | H34: 200000
A35: Insuficiencia renal crónica (Diálisis) | D35: 100000 | F35: Hígado | H35: 200000
F36: Médula ósea | H36: 250000
A37: Quemaduras graves | D37: 300000 | F37: La cobertura de trasplante de órganos está limitada a la Red de Proveedores para Procedimiento de Trasplante de la Compañía y no se proporcionará cobertura en proveedores fuera de esta Red especializada.
A38: Desorden infeccioso grave (Septicemia) | D38: 150000
A41: Deducibles | C41: PLAN 1 | D41: PLAN 2 | E41: PLAN 3 | F41: PLAN 4 | G41: PLAN 5 | H41: PLAN 6
A42: Dentro del pais de residencia | C42: 2000 | D42: 3500 | E42: 5000 | F42: 10000 | G42: 20000 | H42: 50000
A43: Fuera del pais de residencia | C43: 2000 | D43: 3500 | E43: 5000 | F43: 10000 | G43: 20000 | H43: 50000
A45: TARIFAS ANUALES
A46: Prima por plan individual | C46: =IF((($B$17+$H$17)=1),(VLOOKUP($H$21,Tablas!$A$587:$T$588,3,TRUE)),0) -> 7414 | D46: =IF((($B$17+$H$17)=1),(VLOOKUP($H$21,Tablas!$A$587:$T$588,6,TRUE)),0) -> 5968 | E46: =IF((($B$17+$H$17)=1),(VLOOKUP($H$21,Tablas!$A$587:$T$588,9,TRUE)),0) -> 5067 | F46: =IF((($B$17+$H$17)=1),(VLOOKUP($H$21,Tablas!$A$587:$T$588,12,TRUE)),0) -> 3793 | G46: =IF((($B$17+$H$17)=1),(VLOOKUP($H$21,Tablas!$A$587:$T$588,15,TRUE)),0) -> 2789 | H46: =IF((($B$17+$H$17)=1),(VLOOKUP($H$21,Tablas!$A$587:$T$588,18,TRUE)),0) -> 1707
A47: Prima por plan para 2 personas | C47: =IF((($B$17+$H$17)=2),(VLOOKUP($H$21,Tablas!$A$587:$T$588,4,TRUE)),0) -> 0 | D47: =IF((($B$17+$H$17)=2),(VLOOKUP($H$21,Tablas!$A$587:$T$588,7,TRUE)),0) -> 0 | E47: =IF((($B$17+$H$17)=2),(VLOOKUP($H$21,Tablas!$A$587:$T$588,10,TRUE)),0) -> 0 | F47: =IF((($B$17+$H$17)=2),(VLOOKUP($H$21,Tablas!$A$587:$T$588,13,TRUE)),0) -> 0 | G47: =IF((($B$17+$H$17)=2),(VLOOKUP($H$21,Tablas!$A$587:$T$588,16,TRUE)),0) -> 0 | H47: =IF((($B$17+$H$17)=2),(VLOOKUP($H$21,Tablas!$A$587:$T$588,19,TRUE)),0) -> 0
A48: Prima por plan familiar | C48: =IF((($B$17+$H$17)>=3),(VLOOKUP($H$21,Tablas!$A$587:$T$588,5,TRUE)),0) -> 0 | D48: =IF((($B$17+$H$17)>=3),(VLOOKUP($H$21,Tablas!$A$587:$T$588,8,TRUE)),0) -> 0 | E48: =IF((($B$17+$H$17)>=3),(VLOOKUP($H$21,Tablas!$A$587:$T$588,11,TRUE)),0) -> 0 | F48: =IF((($B$17+$H$17)>=3),(VLOOKUP($H$21,Tablas!$A$587:$T$588,14,TRUE)),0) -> 0 | G48: =IF((($B$17+$H$17)>=3),(VLOOKUP($H$21,Tablas!$A$587:$T$588,17,TRUE)),0) -> 0 | H48: =IF((($B$17+$H$17)>=3),(VLOOKUP($H$21,Tablas!$A$587:$T$588,20,TRUE)),0) -> 0
A49: TOTAL PRIMA NETA | C49: =SUM(C46:C48) -> 7414 | D49: =SUM(D46:D48) -> 5968 | E49: 5067 | F49: 3793 | G49: 2789 | H49: 1707
A50: Costo Administrativo Anual | C50: 75 | D50: 75 | E50: 75 | F50: 75 | G50: 75 | H50: 75
A51: GRAN TOTAL | C51: =SUM(C49:C50) -> 7489 | D51: 6043 | E51: 5142 | F51: 3868 | G51: 2864 | H51: 1782
A53: Este presupuesto solamente tiene carácter informativo y en ningún momento expresa compromiso legal para suministrarle cobertura de seguro. La emisión de una póliza de seguro Bupa está sujeta a todas las evaluaciones de riesgo por parte de Bupa y a la recepción de todos los pagos de prima requeridos.

Sheet Resumen tarifas anuales
A5: Cotización de Seguro Médico Internacional Bupa Care — Resumen de Tarifas (Anuales) Tarifas en US$ | Validas: 1 de enero de 2025 | H5: REGIÓN
H7: =IF('INGRESO DE DATOS'!W14="PERU2020","Perú",'INGRESO DE DATOS'!W14) -> 2
A13: Nombre del asegurado principal | B13: =+'INGRESO DE DATOS'!$C$36 -> John Doe
A15: Broker/Agente | B15: =+'INGRESO DE DATOS'!$C$47 -> Agencia
A17: Número de Adultos en la Póliza | B17: =+'INGRESO DE DATOS'!$C$38 -> 1 | F17: Dependientes (menores de 24 años) | H17: =+'INGRESO DE DATOS'!$C$40 -> 0
F18: =IF('INGRESO DE DATOS'!$P$2=TRUE, "Cotización para dependiente de 24 años","") -> 
A19: Edad del Titular | B19: =+'INGRESO DE DATOS'!$C$42 -> 71 | F19: Edad del Cónyuge | H19: =+'INGRESO DE DATOS'!$C$44 -> 41
A22: DEDUCIBLES | C22: PLAN 1 | D22: PLAN 2 | E22: PLAN 3 | F22: PLAN 4 | G22: PLAN 5 | H22: PLAN 6
A23: Dentro del pais de residencia | C23: n/a | D23: 1000 | E23: 2000 | F23: 5000 | G23: 10000 | H23: 20000
A24: Fuera del pais de residencia | C24: n/a | D24: 2000 | E24: 3000 | F24: 5000 | G24: 10000 | H24: 20000
A26: PRODUCTOS | C26: TARIFAS ANUALES
A27: Bupa Exclusive Care | C27: n/a | D27: =+'Bupa Exclusive Care'!H41 -> 225784 | E27: =+'Bupa Exclusive Care'!I41 -> 155168 | F27: =+'Bupa Exclusive Care'!J41 -> 105369 | G27: =+'Bupa Exclusive Care'!K41 -> 87647 | H27: =+'Bupa Exclusive Care'!L41 -> 76094
A28: Bupa Privilege Care | C28: n/a | D28: =+'Bupa Privilege Care'!H37 -> 194005 | E28: =+'Bupa Privilege Care'!I37 -> 135669 | F28: =+'Bupa Privilege Care'!J37 -> 91353 | G28: =+'Bupa Privilege Care'!K37 -> 76654 | H28: =+'Bupa Privilege Care'!L37 -> 65716
A29: Bupa Advantage Care | C29: n/a | D29: =+'Bupa Advantage Care (Mundial)'!C38 -> 103089 | E29: =+'Bupa Advantage Care (Mundial)'!D38 -> 80076 | F29: =+'Bupa Advantage Care (Mundial)'!E38 -> 54571 | G29: =+'Bupa Advantage Care (Mundial)'!F38 -> 40039 | H29: =+'Bupa Advantage Care (Mundial)'!G38 -> 32358
A30: Bupa Secure Care | C30: n/a | D30: =+'Bupa Secure Care'!C38 -> 63712 | E30: =+'Bupa Secure Care'!D38 -> 59512 | F30: =+'Bupa Secure Care'!E38 -> 38673 | G30: =+'Bupa Secure Care'!F38 -> 31380 | H30: =+'Bupa Secure Care'!G38 -> 23352
A31: Bupa Essential Care | C31: n/a | D31: =+'Bupa Essential Care'!C38 -> 52768 | E31: =+'Bupa Essential Care'!D38 -> 49310 | F31: =+'Bupa Essential Care'!E38 -> 32041 | G31: =+'Bupa Essential Care'!F38 -> 26000 | H31: =+'Bupa Essential Care'!G38 -> 19335
A33: BUPA CRITICAL CARE
A34: DEDUCIBLES | C34: PLAN 1 | D34: PLAN 2 | E34: PLAN 3 | F34: PLAN 4 | G34: PLAN 5 | H34: PLAN 6
A35: Dentro del pais de residencia | C35: 2000 | D35: 3500 | E35: 5000 | F35: 10000 | G35: 20000 | H35: 50000
A36: Fuera del pais de residencia | C36: 2000 | D36: 3500 | E36: 5000 | F36: 10000 | G36: 20000 | H36: 50000
C39: TARIFAS ANUALES
A40: Bupa Critical Care | C40: =+'Bupa Crititcal'!C51 -> 7489 | D40: =+'Bupa Crititcal'!D51 -> 6043 | E40: =+'Bupa Crititcal'!E51 -> 5142 | F40: =+'Bupa Crititcal'!F51 -> 3868 | G40: =+'Bupa Crititcal'!G51 -> 2864 | H40: =+'Bupa Crititcal'!H51 -> 1782

Sheet Comparacion de Beneficios (hidden)
A1: 2023 BUPA CARE COMPARACION DE BENEFICIOS

Sheet Tablas (hidden)
K1: Critical | L1: Exclusive | M1: Privilege | N1: Advantage | O1: Secure | P1: Essential
B2: REGIÓN | C2: ='INGRESO DE DATOS'!W14 -> 2 | E2: FACTOR SEMESTRAL : | G2: 0.53 | I2: TOTAL DISCOUNT | K2: ='INGRESO DE DATOS'!O42 -> 1 | L2: ='INGRESO DE DATOS'!P42 -> 1 | M2: ='INGRESO DE DATOS'!Q42 -> 1 | N2: ='INGRESO DE DATOS'!R42 -> 1 | O2: ='INGRESO DE DATOS'!S42 -> 1 | P2: ='INGRESO DE DATOS'!T42 -> 1
A5: BUPA EXCLUSIVE CARE | K5: ORIGINAL RATES | Q5: DISCOUNTS APPLIED
A6: TARIFAS ANUALES
A7: EDAD
C8: DW1 | D8: DW2 | E8: DW3 | F8: DW4 | G8: DW5 | H8: DW6
A9: 18 | B9: 18-24 | D9: =Q9 -> 27442 | E9: =R9 -> 18123 | F9: 11776 | G9: 7787 | H9: 6120 | K9: =IF($C$2=2,'2'!D9,IF($C$2=3,'3'!D9,IF($C$2=4,'4'!D9,IF($C$2=5,'5'!D9,IF($C$2=6,'6'!D9,IF($C$2=8,'8'!D9,IF($C$2=9,'9'!D9,IF($C$2="PERU2020",PERU2020!D9)))))))) -> 27442 | L9: =IF($C$2=2,'2'!E9,IF($C$2=3,'3'!E9,IF($C$2=4,'4'!E9,IF($C$2=5,'5'!E9,IF($C$2=6,'6'!E9,IF($C$2=8,'8'!E9,IF($C$2=9,'9'!E9,IF($C$2="PERU2020",PERU2020!E9)))))))) -> 18123 | M9: =IF($C$2=2,'2'!F9,IF($C$2=3,'3'!F9,IF($C$2=4,'4'!F9,IF($C$2=5,'5'!F9,IF($C$2=6,'6'!F9,IF($C$2=8,'8'!F9,IF($C$2=9,'9'!F9,IF($C$2="PERU2020",PERU2020!F9)))))))) -> 11776 | N9: =IF($C$2=2,'2'!G9,IF($C$2=3,'3'!G9,IF($C$2=4,'4'!G9,IF($C$2=5,'5'!G9,IF($C$2=6,'6'!G9,IF($C$2=8,'8'!G9,IF($C$2=9,'9'!G9,IF($C$2="PERU2020",PERU2020!G9)))))))) -> 7787 | O9: =IF($C$2=2,'2'!H9,IF($C$2=3,'3'!H9,IF($C$2=4,'4'!H9,IF($C$2=5,'5'!H9,IF($C$2=6,'6'!H9,IF($C$2=8,'8'!H9,IF($C$2=9,'9'!H9,IF($C$2="PERU2020",PERU2020!H9)))))))) -> 6120 | Q9: =(K9-50)*$L$2+50 -> 27442 | R9: =(L9-50)*$L$2+50 -> 18123 | S9: 11776 | T9: 7787 | U9: 6120
A10: 25 | B10: 25-29 | D10: =Q10 -> 28782 | E10: =R10 -> 20029 | F10: =S10 -> 13042 | G10: =T10 -> 8635 | H10: =U10 -> 6781 | K10: =IF($C$2=2,'2'!D10,IF($C$2=3,'3'!D10,IF($C$2=4,'4'!D10,IF($C$2=5,'5'!D10,IF($C$2=6,'6'!D10,IF($C$2=8,'8'!D10,IF($C$2=9,'9'!D10,IF($C$2="PERU2020",PERU2020!D10)))))))) -> 28782 | L10: =IF($C$2=2,'2'!E10,IF($C$2=3,'3'!E10,IF($C$2=4,'4'!E10,IF($C$2=5,'5'!E10,IF($C$2=6,'6'!E10,IF($C$2=8,'8'!E10,IF($C$2=9,'9'!E10,IF($C$2="PERU2020",PERU2020!E10)))))))) -> 20029 | M10: =IF($C$2=2,'2'!F10,IF($C$2=3,'3'!F10,IF($C$2=4,'4'!F10,IF($C$2=5,'5'!F10,IF($C$2=6,'6'!F10,IF($C$2=8,'8'!F10,IF($C$2=9,'9'!F10,IF($C$2="PERU2020",PERU2020!F10)))))))) -> 13042 | N10: =IF($C$2=2,'2'!G10,IF($C$2=3,'3'!G10,IF($C$2=4,'4'!G10,IF($C$2=5,'5'!G10,IF($C$2=6,'6'!G10,IF($C$2=8,'8'!G10,IF($C$2=9,'9'!G10,IF($C$2="PERU2020",PERU2020!G10)))))))) -> 8635 | O10: =IF($C$2=2,'2'!H10,IF($C$2=3,'3'!H10,IF($C$2=4,'4'!H10,IF($C$2=5,'5'!H10,IF($C$2=6,'6'!H10,IF($C$2=8,'8'!H10,IF($C$2=9,'9'!H10,IF($C$2="PERU2020",PERU2020!H10)))))))) -> 6781 | Q10: =(K10-50)*$L$2+50 -> 28782 | R10: =(L10-50)*$L$2+50 -> 20029 | S10: =(M10-50)*$L$2+50 -> 13042 | T10: =(N10-50)*$L$2+50 -> 8635 | U10: =(O10-50)*$L$2+50 -> 6781
A11: 30 | B11: 30-34 | D11: 29950 | E11: 21492 | F11: 14614 | G11: 10349 | H11: 8155 | K11: =IF($C$2=2,'2'!D11,IF($C$2=3,'3'!D11,IF($C$2=4,'4'!D11,IF($C$2=5,'5'!D11,IF($C$2=6,'6'!D11,IF($C$2=8,'8'!D11,IF($C$2=9,'9'!D11,IF($C$2="PERU2020",PERU2020!D11)))))))) -> 29950 | L11: =IF($C$2=2,'2'!E11,IF($C$2=3,'3'!E11,IF($C$2=4,'4'!E11,IF($C$2=5,'5'!E11,IF($C$2=6,'6'!E11,IF($C$2=8,'8'!E11,IF($C$2=9,'9'!E11,IF($C$2="PERU2020",PERU2020!E11)))))))) -> 21492 | M11: =IF($C$2=2,'2'!F11,IF($C$2=3,'3'!F11,IF($C$2=4,'4'!F11,IF($C$2=5,'5'!F11,IF($C$2=6,'6'!F11,IF($C$2=8,'8'!F11,IF($C$2=9,'9'!F11,IF($C$2="PERU2020",PERU2020!F11)))))))) -> 14614 | N11: =IF($C$2=2,'2'!G11,IF($C$2=3,'3'!G11,IF($C$2=4,'4'!G11,IF($C$2=5,'5'!G11,IF($C$2=6,'6'!G11,IF($C$2=8,'8'!G11,IF($C$2=9,'9'!G11,IF($C$2="PERU2020",PERU2020!G11)))))))) -> 10349 | O11: =IF($C$2=2,'2'!H11,IF($C$2=3,'3'!H11,IF($C$2=4,'4'!H11,IF($C$2=5,'5'!H11,IF($C$2=6,'6'!H11,IF($C$2=8,'8'!H11,IF($C$2=9,'9'!H11,IF($C$2="PERU2020",PERU2020!H11)))))))) -> 8155 | Q11: 29950 | R11: 21492 | S11: 14614 | T11: 10349 | U11: 8155
A12: 35 | B12: 35-39 | D12: 33535 | E12: 24056 | F12: 16392 | G12: 11608 | H12: 9136 | K12: =IF($C$2=2,'2'!D12,IF($C$2=3,'3'!D12,IF($C$2=4,'4'!D12,IF($C$2=5,'5'!D12,IF($C$2=6,'6'!D12,IF($C$2=8,'8'!D12,IF($C$2=9,'9'!D12,IF($C$2="PERU2020",PERU2020!D12)))))))) -> 33535 | L12: =IF($C$2=2,'2'!E12,IF($C$2=3,'3'!E12,IF($C$2=4,'4'!E12,IF($C$2=5,'5'!E12,IF($C$2=6,'6'!E12,IF($C$2=8,'8'!E12,IF($C$2=9,'9'!E12,IF($C$2="PERU2020",PERU2020!E12)))))))) -> 24056 | M12: =IF($C$2=2,'2'!F12,IF($C$2=3,'3'!F12,IF($C$2=4,'4'!F12,IF($C$2=5,'5'!F12,IF($C$2=6,'6'!F12,IF($C$2=8,'8'!F12,IF($C$2=9,'9'!F12,IF($C$2="PERU2020",PERU2020!F12)))))))) -> 16392 | N12: =IF($C$2=2,'2'!G12,IF($C$2=3,'3'!G12,IF($C$2=4,'4'!G12,IF($C$2=5,'5'!G12,IF($C$2=6,'6'!G12,IF($C$2=8,'8'!G12,IF($C$2=9,'9'!G12,IF($C$2="PERU2020",PERU2020!G12)))))))) -> 11608 | O12: =IF($C$2=2,'2'!H12,IF($C$2=3,'3'!H12,IF($C$2=4,'4'!H12,IF($C$2=5,'5'!H12,IF($C$2=6,'6'!H12,IF($C$2=8,'8'!H12,IF($C$2=9,'9'!H12,IF($C$2="PERU2020",PERU2020!H12)))))))) -> 9136 | Q12: 33535 | R12: 24056 | S12: 16392 | T12: 11608 | U12: 9136
A13: 40 | B13: 40-44 | D13: 38881 | E13: 26324 | F13: 18187 | G13: 12771 | H13: 10045 | K13: =IF($C$2=2,'2'!D13,IF($C$2=3,'3'!D13,IF($C$2=4,'4'!D13,IF($C$2=5,'5'!D13,IF($C$2=6,'6'!D13,IF($C$2=8,'8'!D13,IF($C$2=9,'9'!D13,IF($C$2="PERU2020",PERU2020!D13)))))))) -> 38881 | L13: =IF($C$2=2,'2'!E13,IF($C$2=3,'3'!E13,IF($C$2=4,'4'!E13,IF($C$2=5,'5'!E13,IF($C$2=6,'6'!E13,IF($C$2=8,'8'!E13,IF($C$2=9,'9'!E13,IF($C$2="PERU2020",PERU2020!E13)))))))) -> 26324 | M13: =IF($C$2=2,'2'!F13,IF($C$2=3,'3'!F13,IF($C$2=4,'4'!F13,IF($C$2=5,'5'!F13,IF($C$2=6,'6'!F13,IF($C$2=8,'8'!F13,IF($C$2=9,'9'!F13,IF($C$2="PERU2020",PERU2020!F13)))))))) -> 18187 | N13: =IF($C$2=2,'2'!G13,IF($C$2=3,'3'!G13,IF($C$2=4,'4'!G13,IF($C$2=5,'5'!G13,IF($C$2=6,'6'!G13,IF($C$2=8,'8'!G13,IF($C$2=9,'9'!G13,IF($C$2="PERU2020",PERU2020!G13)))))))) -> 12771 | O13: =IF($C$2=2,'2'!H13,IF($C$2=3,'3'!H13,IF($C$2=4,'4'!H13,IF($C$2=5,'5'!H13,IF($C$2=6,'6'!H13,IF($C$2=8,'8'!H13,IF($C$2=9,'9'!H13,IF($C$2="PERU2020",PERU2020!H13)))))))) -> 10045 | Q13: 38881 | R13: 26324 | S13: 18187 | T13: 12771 | U13: 10045
A14: 45 | B14: 45-49 | D14: 43477 | E14: 29438 | F14: 20333 | G14: 14278 | H14: 11241 | K14: =IF($C$2=2,'2'!D14,IF($C$2=3,'3'!D14,IF($C$2=4,'4'!D14,IF($C$2=5,'5'!D14,IF($C$2=6,'6'!D14,IF($C$2=8,'8'!D14,IF($C$2=9,'9'!D14,IF($C$2="PERU2020",PERU2020!D14)))))))) -> 43477 | L14: =IF($C$2=2,'2'!E14,IF($C$2=3,'3'!E14,IF($C$2=4,'4'!E14,IF($C$2=5,'5'!E14,IF($C$2=6,'6'!E14,IF($C$2=8,'8'!E14,IF($C$2=9,'9'!E14,IF($C$2="PERU2020",PERU2020!E14)))))))) -> 29438 | M14: =IF($C$2=2,'2'!F14,IF($C$2=3,'3'!F14,IF($C$2=4,'4'!F14,IF($C$2=5,'5'!F14,IF($C$2=6,'6'!F14,IF($C$2=8,'8'!F14,IF($C$2=9,'9'!F14,IF($C$2="PERU2020",PERU2020!F14)))))))) -> 20333 | N14: =IF($C$2=2,'2'!G14,IF($C$2=3,'3'!G14,IF($C$2=4,'4'!G14,IF($C$2=5,'5'!G14,IF($C$2=6,'6'!G14,IF($C$2=8,'8'!G14,IF($C$2=9,'9'!G14,IF($C$2="PERU2020",PERU2020!G14)))))))) -> 14278 | O14: =IF($C$2=2,'2'!H14,IF($C$2=3,'3'!H14,IF($C$2=4,'4'!H14,IF($C$2=5,'5'!H14,IF($C$2=6,'6'!H14,IF($C$2=8,'8'!H14,IF($C$2=9,'9'!H14,IF($C$2="PERU2020",PERU2020!H14)))))))) -> 11241 | Q14: 43477 | R14: 29438 | S14: 20333 | T14: 14278 | U14: 11241
A15: 50 | B15: 50-54 | D15: 55647 | E15: 38641 | F15: 26545 | G15: 20171 | H15: 15897 | K15: =IF($C$2=2,'2'!D15,IF($C$2=3,'3'!D15,IF($C$2=4,'4'!D15,IF($C$2=5,'5'!D15,IF($C$2=6,'6'!D15,IF($C$2=8,'8'!D15,IF($C$2=9,'9'!D15,IF($C$2="PERU2020",PERU2020!D15)))))))) -> 55647 | L15: =IF($C$2=2,'2'!E15,IF($C$2=3,'3'!E15,IF($C$2=4,'4'!E15,IF($C$2=5,'5'!E15,IF($C$2=6,'6'!E15,IF($C$2=8,'8'!E15,IF($C$2=9,'9'!E15,IF($C$2="PERU2020",PERU2020!E15)))))))) -> 38641 | M15: =IF($C$2=2,'2'!F15,IF($C$2=3,'3'!F15,IF($C$2=4,'4'!F15,IF($C$2=5,'5'!F15,IF($C$2=6,'6'!F15,IF($C$2=8,'8'!F15,IF($C$2=9,'9'!F15,IF($C$2="PERU2020",PERU2020!F15)))))))) -> 26545 | N15: =IF($C$2=2,'2'!G15,IF($C$2=3,'3'!G15,IF($C$2=4,'4'!G15,IF($C$2=5,'5'!G15,IF($C$2=6,'6'!G15,IF($C$2=8,'8'!G15,IF($C$2=9,'9'!G15,IF($C$2="PERU2020",PERU2020!G15)))))))) -> 20171 | O15: =IF($C$2=2,'2'!H15,IF($C$2=3,'3'!H15,IF($C$2=4,'4'!H15,IF($C$2=5,'5'!H15,IF($C$2=6,'6'!H15,IF($C$2=8,'8'!H15,IF($C$2=9,'9'!H15,IF($C$2="PERU2020",PERU2020!H15)))))))) -> 15897 | Q15: 55647 | R15: 38641 | S15: 26545 | T15: 20171 | U15: 15897
A16: 55 | B16: 55-59 | D16: 59215 | E16: 41117 | F16: 28244 | G16: 21471 | H16: 16926 | K16: =IF($C$2=2,'2'!D16,IF($C$2=3,'3'!D16,IF($C$2=4,'4'!D16,IF($C$2=5,'5'!D16,IF($C$2=6,'6'!D16,IF($C$2=8,'8'!D16,IF($C$2=9,'9'!D16,IF($C$2="PERU2020",PERU2020!D16)))))))) -> 59215 | L16: =IF($C$2=2,'2'!E16,IF($C$2=3,'3'!E16,IF($C$2=4,'4'!E16,IF($C$2=5,'5'!E16,IF($C$2=6,'6'!E16,IF($C$2=8,'8'!E16,IF($C$2=9,'9'!E16,IF($C$2="PERU2020",PERU2020!E16)))))))) -> 41117 | M16: =IF($C$2=2,'2'!F16,IF($C$2=3,'3'!F16,IF($C$2=4,'4'!F16,IF($C$2=5,'5'!F16,IF($C$2=6,'6'!F16,IF($C$2=8,'8'!F16,IF($C$2=9,'9'!F16,IF($C$2="PERU2020",PERU2020!F16)))))))) -> 28244 | N16: =IF($C$2=2,'2'!G16,IF($C$2=3,'3'!G16,IF($C$2=4,'4'!G16,IF($C$2=5,'5'!G16,IF($C$2=6,'6'!G16,IF($C$2=8,'8'!G16,IF($C$2=9,'9'!G16,IF($C$2="PERU2020",PERU2020!G16)))))))) -> 21471 | O16: =IF($C$2=2,'2'!H16,IF($C$2=3,'3'!H16,IF($C$2=4,'4'!H16,IF($C$2=5,'5'!H16,IF($C$2=6,'6'!H16,IF($C$2=8,'8'!H16,IF($C$2=9,'9'!H16,IF($C$2="PERU2020",PERU2020!H16)))))))) -> 16926 | Q16: 59215 | R16: 41117 | S16: 28244 | T16: 21471 | U16: 16926
A17: 60 | B17: 60 | D17: 64513 | E17: 44869 | F17: 32510 | G17: 25874 | H17: 21033 | K17: =IF($C$2=2,'2'!D17,IF($C$2=3,'3'!D17,IF($C$2=4,'4'!D17,IF($C$2=5,'5'!D17,IF($C$2=6,'6'!D17,IF($C$2=8,'8'!D17,IF($C$2=9,'9'!D17,IF($C$2="PERU2020",PERU2020!D17)))))))) -> 64513 | L17: =IF($C$2=2,'2'!E17,IF($C$2=3,'3'!E17,IF($C$2=4,'4'!E17,IF($C$2=5,'5'!E17,IF($C$2=6,'6'!E17,IF($C$2=8,'8'!E17,IF($C$2=9,'9'!E17,IF($C$2="PERU2020",PERU2020!E17)))))))) -> 44869 | M17: =IF($C$2=2,'2'!F17,IF($C$2=3,'3'!F17,IF($C$2=4,'4'!F17,IF($C$2=5,'5'!F17,IF($C$2=6,'6'!F17,IF($C$2=8,'8'!F17,IF($C$2=9,'9'!F17,IF($C$2="PERU2020",PERU2020!F17)))))))) -> 32510 | N17: =IF($C$2=2,'2'!G17,IF($C$2=3,'3'!G17,IF($C$2=4,'4'!G17,IF($C$2=5,'5'!G17,IF($C$2=6,'6'!G17,IF($C$2=8,'8'!G17,IF($C$2=9,'9'!G17,IF($C$2="PERU2020",PERU2020!G17)))))))) -> 25874 | O17: =IF($C$2=2,'2'!H17,IF($C$2=3,'3'!H17,IF($C$2=4,'4'!H17,IF($C$2=5,'5'!H17,IF($C$2=6,'6'!H17,IF($C$2=8,'8'!H17,IF($C$2=9,'9'!H17,IF($C$2="PERU2020",PERU2020!H17)))))))) -> 21033 | Q17: 64513 | R17: 44869 | S17: 32510 | T17: 25874 | U17: 21033
A18: 61 | B18: 61 | D18: 69311 | E18: 48206 | F18: 34915 | G18: 27816 | H18: 22606 | K18: =IF($C$2=2,'2'!D18,IF($C$2=3,'3'!D18,IF($C$2=4,'4'!D18,IF($C$2=5,'5'!D18,IF($C$2=6,'6'!D18,IF($C$2=8,'8'!D18,IF($C$2=9,'9'!D18,IF($C$2="PERU2020",PERU2020!D18)))))))) -> 69311 | L18: =IF($C$2=2,'2'!E18,IF($C$2=3,'3'!E18,IF($C$2=4,'4'!E18,IF($C$2=5,'5'!E18,IF($C$2=6,'6'!E18,IF($C$2=8,'8'!E18,IF($C$2=9,'9'!E18,IF($C$2="PERU2020",PERU2020!E18)))))))) -> 48206 | M18: =IF($C$2=2,'2'!F18,IF($C$2=3,'3'!F18,IF($C$2=4,'4'!F18,IF($C$2=5,'5'!F18,IF($C$2=6,'6'!F18,IF($C$2=8,'8'!F18,IF($C$2=9,'9'!F18,IF($C$2="PERU2020",PERU2020!F18)))))))) -> 34915 | N18: =IF($C$2=2,'2'!G18,IF($C$2=3,'3'!G18,IF($C$2=4,'4'!G18,IF($C$2=5,'5'!G18,IF($C$2=6,'6'!G18,IF($C$2=8,'8'!G18,IF($C$2=9,'9'!G18,IF($C$2="PERU2020",PERU2020!G18)))))))) -> 27816 | O18: =IF($C$2=2,'2'!H18,IF($C$2=3,'3'!H18,IF($C$2=4,'4'!H18,IF($C$2=5,'5'!H18,IF($C$2=6,'6'!H18,IF($C$2=8,'8'!H18,IF($C$2=9,'9'!H18,IF($C$2="PERU2020",PERU2020!H18)))))))) -> 22606 | Q18: 69311 | R18: 48206 | S18: 34915 | T18: 27816 | U18: 22606
A19: 62 | B19: 62 | D19: 75886 | E19: 52804 | F19: 38239 | G19: 30444 | H19: 24757 | K19: =IF($C$2=2,'2'!D19,IF($C$2=3,'3'!D19,IF($C$2=4,'4'!D19,IF($C$2=5,'5'!D19,IF($C$2=6,'6'!D19,IF($C$2=8,'8'!D19,IF($C$2=9,'9'!D19,IF($C$2="PERU2020",PERU2020!D19)))))))) -> 75886 | L19: =IF($C$2=2,'2'!E19,IF($C$2=3,'3'!E19,IF($C$2=4,'4'!E19,IF($C$2=5,'5'!E19,IF($C$2=6,'6'!E19,IF($C$2=8,'8'!E19,IF($C$2=9,'9'!E19,IF($C$2="PERU2020",PERU2020!E19)))))))) -> 52804 | M19: =IF($C$2=2,'2'!F19,IF($C$2=3,'3'!F19,IF($C$2=4,'4'!F19,IF($C$2=5,'5'!F19,IF($C$2=6,'6'!F19,IF($C$2=8,'8'!F19,IF($C$2=9,'9'!F19,IF($C$2="PERU2020",PERU2020!F19)))))))) -> 38239 | N19: =IF($C$2=2,'2'!G19,IF($C$2=3,'3'!G19,IF($C$2=4,'4'!G19,IF($C$2=5,'5'!G19,IF($C$2=6,'6'!G19,IF($C$2=8,'8'!G19,IF($C$2=9,'9'!G19,IF($C$2="PERU2020",PERU2020!G19)))))))) -> 30444 | O19: =IF($C$2=2,'2'!H19,IF($C$2=3,'3'!H19,IF($C$2=4,'4'!H19,IF($C$2=5,'5'!H19,IF($C$2=6,'6'!H19,IF($C$2=8,'8'!H19,IF($C$2=9,'9'!H19,IF($C$2="PERU2020",PERU2020!H19)))))))) -> 24757 | Q19: 75886 | R19: 52804 | S19: 38239 | T19: 30444 | U19: 24757
A20: 63 | B20: 63 | D20: 80691 | E20: 56139 | F20: 40654 | G20: 32383 | H20: 26323 | K20: =IF($C$2=2,'2'!D20,IF($C$2=3,'3'!D20,IF($C$2=4,'4'!D20,IF($C$2=5,'5'!D20,IF($C$2=6,'6'!D20,IF($C$2=8,'8'!D20,IF($C$2=9,'9'!D20,IF($C$2="PERU2020",PERU2020!D20)))))))) -> 80691 | L20: =IF($C$2=2,'2'!E20,IF($C$2=3,'3'!E20,IF($C$2=4,'4'!E20,IF($C$2=5,'5'!E20,IF($C$2=6,'6'!E20,IF($C$2=8,'8'!E20,IF($C$2=9,'9'!E20,IF($C$2="PERU2020",PERU2020!E20)))))))) -> 56139 | M20: =IF($C$2=2,'2'!F20,IF($C$2=3,'3'!F20,IF($C$2=4,'4'!F20,IF($C$2=5,'5'!F20,IF($C$2=6,'6'!F20,IF($C$2=8,'8'!F20,IF($C$2=9,'9'!F20,IF($C$2="PERU2020",PERU2020!F20)))))))) -> 40654 | N20: =IF($C$2=2,'2'!G20,IF($C$2=3,'3'!G20,IF($C$2=4,'4'!G20,IF($C$2=5,'5'!G20,IF($C$2=6,'6'!G20,IF($C$2=8,'8'!G20,IF($C$2=9,'9'!G20,IF($C$2="PERU2020",PERU2020!G20)))))))) -> 32383 | O20: =IF($C$2=2,'2'!H20,IF($C$2=3,'3'!H20,IF($C$2=4,'4'!H20,IF($C$2=5,'5'!H20,IF($C$2=6,'6'!H20,IF($C$2=8,'8'!H20,IF($C$2=9,'9'!H20,IF($C$2="PERU2020",PERU2020!H20)))))))) -> 26323 | Q20: 80691 | R20: 56139 | S20: 40654 | T20: 32383 | U20: 26323
A21: 64 | B21: 64 | D21: 87297 | E21: 60754 | F21: 43994 | G21: 35034 | H21: 28494 | K21: =IF($C$2=2,'2'!D21,IF($C$2=3,'3'!D21,IF($C$2=4,'4'!D21,IF($C$2=5,'5'!D21,IF($C$2=6,'6'!D21,IF($C$2=8,'8'!D21,IF($C$2=9,'9'!D21,IF($C$2="PERU2020",PERU2020!D21)))))))) -> 87297 | L21: =IF($C$2=2,'2'!E21,IF($C$2=3,'3'!E21,IF($C$2=4,'4'!E21,IF($C$2=5,'5'!E21,IF($C$2=6,'6'!E21,IF($C$2=8,'8'!E21,IF($C$2=9,'9'!E21,IF($C$2="PERU2020",PERU2020!E21)))))))) -> 60754 | M21: =IF($C$2=2,'2'!F21,IF($C$2=3,'3'!F21,IF($C$2=4,'4'!F21,IF($C$2=5,'5'!F21,IF($C$2=6,'6'!F21,IF($C$2=8,'8'!F21,IF($C$2=9,'9'!F21,IF($C$2="PERU2020",PERU2020!F21)))))))) -> 43994 | N21: =IF($C$2=2,'2'!G21,IF($C$2=3,'3'!G21,IF($C$2=4,'4'!G21,IF($C$2=5,'5'!G21,IF($C$2=6,'6'!G21,IF($C$2=8,'8'!G21,IF($C$2=9,'9'!G21,IF($C$2="PERU2020",PERU2020!G21)))))))) -> 35034 | O21: =IF($C$2=2,'2'!H21,IF($C$2=3,'3'!H21,IF($C$2=4,'4'!H21,IF($C$2=5,'5'!H21,IF($C$2=6,'6'!H21,IF($C$2=8,'8'!H21,IF($C$2=9,'9'!H21,IF($C$2="PERU2020",PERU2020!H21)))))))) -> 28494 | Q21: 87297 | R21: 60754 | S21: 43994 | T21: 35034 | U21: 28494
A22: 65 | B22: 65 | D22: 114127 | E22: 79247 | F22: 55639 | G22: 46736 | H22: 40193 | K22: =IF($C$2=2,'2'!D22,IF($C$2=3,'3'!D22,IF($C$2=4,'4'!D22,IF($C$2=5,'5'!D22,IF($C$2=6,'6'!D22,IF($C$2=8,'8'!D22,IF($C$2=9,'9'!D22,IF($C$2="PERU2020",PERU2020!D22)))))))) -> 114127 | L22: =IF($C$2=2,'2'!E22,IF($C$2=3,'3'!E22,IF($C$2=4,'4'!E22,IF($C$2=5,'5'!E22,IF($C$2=6,'6'!E22,IF($C$2=8,'8'!E22,IF($C$2=9,'9'!E22,IF($C$2="PERU2020",PERU2020!E22)))))))) -> 79247 | M22: =IF($C$2=2,'2'!F22,IF($C$2=3,'3'!F22,IF($C$2=4,'4'!F22,IF($C$2=5,'5'!F22,IF($C$2=6,'6'!F22,IF($C$2=8,'8'!F22,IF($C$2=9,'9'!F22,IF($C$2="PERU2020",PERU2020!F22)))))))) -> 55639 | N22: =IF($C$2=2,'2'!G22,IF($C$2=3,'3'!G22,IF($C$2=4,'4'!G22,IF($C$2=5,'5'!G22,IF($C$2=6,'6'!G22,IF($C$2=8,'8'!G22,IF($C$2=9,'9'!G22,IF($C$2="PERU2020",PERU2020!G22)))))))) -> 46736 | O22: =IF($C$2=2,'2'!H22,IF($C$2=3,'3'!H22,IF($C$2=4,'4'!H22,IF($C$2=5,'5'!H22,IF($C$2=6,'6'!H22,IF($C$2=8,'8'!H22,IF($C$2=9,'9'!H22,IF($C$2="PERU2020",PERU2020!H22)))))))) -> 40193 | Q22: 114127 | R22: 79247 | S22: 55639 | T22: 46736 | U22: 40193
A23: 66 | B23: 66 | D23: 132590 | E23: 92103 | F23: 64660 | G23: 54329 | H23: 46705 | K23: =IF($C$2=2,'2'!D23,IF($C$2=3,'3'!D23,IF($C$2=4,'4'!D23,IF($C$2=5,'5'!D23,IF($C$2=6,'6'!D23,IF($C$2=8,'8'!D23,IF($C$2=9,'9'!D23,IF($C$2="PERU2020",PERU2020!D23)))))))) -> 132590 | L23: =IF($C$2=2,'2'!E23,IF($C$2=3,'3'!E23,IF($C$2=4,'4'!E23,IF($C$2=5,'5'!E23,IF($C$2=6,'6'!E23,IF($C$2=8,'8'!E23,IF($C$2=9,'9'!E23,IF($C$2="PERU2020",PERU2020!E23)))))))) -> 92103 | M23: =IF($C$2=2,'2'!F23,IF($C$2=3,'3'!F23,IF($C$2=4,'4'!F23,IF($C$2=5,'5'!F23,IF($C$2=6,'6'!F23,IF($C$2=8,'8'!F23,IF($C$2=9,'9'!F23,IF($C$2="PERU2020",PERU2020!F23)))))))) -> 64660 | N23: =IF($C$2=2,'2'!G23,IF($C$2=3,'3'!G23,IF($C$2=4,'4'!G23,IF($C$2=5,'5'!G23,IF($C$2=6,'6'!G23,IF($C$2=8,'8'!G23,IF($C$2=9,'9'!G23,IF($C$2="PERU2020",PERU2020!G23)))))))) -> 54329 | O23: =IF($C$2=2,'2'!H23,IF($C$2=3,'3'!H23,IF($C$2=4,'4'!H23,IF($C$2=5,'5'!H23,IF($C$2=6,'6'!H23,IF($C$2=8,'8'!H23,IF($C$2=9,'9'!H23,IF($C$2="PERU2020",PERU2020!H23)))))))) -> 46705 | Q23: 132590 | R23: 92103 | S23: 64660 | T23: 54329 | U23: 46705
A24: 67 | B24: 67 | D24: 144827 | E24: 100591 | F24: 70632 | G24: 59325 | H24: 51021 | K24: =IF($C$2=2,'2'!D24,IF($C$2=3,'3'!D24,IF($C$2=4,'4'!D24,IF($C$2=5,'5'!D24,IF($C$2=6,'6'!D24,IF($C$2=8,'8'!D24,IF($C$2=9,'9'!D24,IF($C$2="PERU2020",PERU2020!D24)))))))) -> 144827 | L24: =IF($C$2=2,'2'!E24,IF($C$2=3,'3'!E24,IF($C$2=4,'4'!E24,IF($C$2=5,'5'!E24,IF($C$2=6,'6'!E24,IF($C$2=8,'8'!E24,IF($C$2=9,'9'!E24,IF($C$2="PERU2020",PERU2020!E24)))))))) -> 100591 | M24: =IF($C$2=2,'2'!F24,IF($C$2=3,'3'!F24,IF($C$2=4,'4'!F24,IF($C$2=5,'5'!F24,IF($C$2=6,'6'!F24,IF($C$2=8,'8'!F24,IF($C$2=9,'9'!F24,IF($C$2="PERU2020",PERU2020!F24)))))))) -> 70632 | N24: =IF($C$2=2,'2'!G24,IF($C$2=3,'3'!G24,IF($C$2=4,'4'!G24,IF($C$2=5,'5'!G24,IF($C$2=6,'6'!G24,IF($C$2=8,'8'!G24,IF($C$2=9,'9'!G24,IF($C$2="PERU2020",PERU2020!G24)))))))) -> 59325 | O24: =IF($C$2=2,'2'!H24,IF($C$2=3,'3'!H24,IF($C$2=4,'4'!H24,IF($C$2=5,'5'!H24,IF($C$2=6,'6'!H24,IF($C$2=8,'8'!H24,IF($C$2=9,'9'!H24,IF($C$2="PERU2020",PERU2020!H24)))))))) -> 51021 | Q24: 144827 | R24: 100591 | S24: 70632 | T24: 59325 | U24: 51021
A25: 68 | B25: 68 | D25: 160371 | E25: 111386 | F25: 78204 | G25: 65710 | H25: 56503 | K25: =IF($C$2=2,'2'!D25,IF($C$2=3,'3'!D25,IF($C$2=4,'4'!D25,IF($C$2=5,'5'!D25,IF($C$2=6,'6'!D25,IF($C$2=8,'8'!D25,IF($C$2=9,'9'!D25,IF($C$2="PERU2020",PERU2020!D25)))))))) -> 160371 | L25: =IF($C$2=2,'2'!E25,IF($C$2=3,'3'!E25,IF($C$2=4,'4'!E25,IF($C$2=5,'5'!E25,IF($C$2=6,'6'!E25,IF($C$2=8,'8'!E25,IF($C$2=9,'9'!E25,IF($C$2="PERU2020",PERU2020!E25)))))))) -> 111386 | M25: =IF($C$2=2,'2'!F25,IF($C$2=3,'3'!F25,IF($C$2=4,'4'!F25,IF($C$2=5,'5'!F25,IF($C$2=6,'6'!F25,IF($C$2=8,'8'!F25,IF($C$2=9,'9'!F25,IF($C$2="PERU2020",PERU2020!F25)))))))) -> 78204 | N25: =IF($C$2=2,'2'!G25,IF($C$2=3,'3'!G25,IF($C$2=4,'4'!G25,IF($C$2=5,'5'!G25,IF($C$2=6,'6'!G25,IF($C$2=8,'8'!G25,IF($C$2=9,'9'!G25,IF($C$2="PERU2020",PERU2020!G25)))))))) -> 65710 | O25: =IF($C$2=2,'2'!H25,IF($C$2=3,'3'!H25,IF($C$2=4,'4'!H25,IF($C$2=5,'5'!H25,IF($C$2=6,'6'!H25,IF($C$2=8,'8'!H25,IF($C$2=9,'9'!H25,IF($C$2="PERU2020",PERU2020!H25)))))))) -> 56503 | Q25: 160371 | R25: 111386 | S25: 78204 | T25: 65710 | U25: 56503
A26: 69 | B26: 69 | D26: 176455 | E26: 122547 | F26: 86054 | G26: 72294 | H26: 62181 | K26: =IF($C$2=2,'2'!D26,IF($C$2=3,'3'!D26,IF($C$2=4,'4'!D26,IF($C$2=5,'5'!D26,IF($C$2=6,'6'!D26,IF($C$2=8,'8'!D26,IF($C$2=9,'9'!D26,IF($C$2="PERU2020",PERU2020!D26)))))))) -> 176455 | L26: =IF($C$2=2,'2'!E26,IF($C$2=3,'3'!E26,IF($C$2=4,'4'!E26,IF($C$2=5,'5'!E26,IF($C$2=6,'6'!E26,IF($C$2=8,'8'!E26,IF($C$2=9,'9'!E26,IF($C$2="PERU2020",PERU2020!E26)))))))) -> 122547 | M26: =IF($C$2=2,'2'!F26,IF($C$2=3,'3'!F26,IF($C$2=4,'4'!F26,IF($C$2=5,'5'!F26,IF($C$2=6,'6'!F26,IF($C$2=8,'8'!F26,IF($C$2=9,'9'!F26,IF($C$2="PERU2020",PERU2020!F26)))))))) -> 86054 | N26: =IF($C$2=2,'2'!G26,IF($C$2=3,'3'!G26,IF($C$2=4,'4'!G26,IF($C$2=5,'5'!G26,IF($C$2=6,'6'!G26,IF($C$2=8,'8'!G26,IF($C$2=9,'9'!G26,IF($C$2="PERU2020",PERU2020!G26)))))))) -> 72294 | O26: =IF($C$2=2,'2'!H26,IF($C$2=3,'3'!H26,IF($C$2=4,'4'!H26,IF($C$2=5,'5'!H26,IF($C$2=6,'6'!H26,IF($C$2=8,'8'!H26,IF($C$2=9,'9'!H26,IF($C$2="PERU2020",PERU2020!H26)))))))) -> 62181 | Q26: 176455 | R26: 122547 | S26: 86054 | T26: 72294 | U26: 62181
A27: 70 | B27: 70 | D27: 217186 | E27: 149238 | F27: 101317 | G27: 84264 | H27: 73142 | K27: =IF($C$2=2,'2'!D27,IF($C$2=3,'3'!D27,IF($C$2=4,'4'!D27,IF($C$2=5,'5'!D27,IF($C$2=6,'6'!D27,IF($C$2=8,'8'!D27,IF($C$2=9,'9'!D27,IF($C$2="PERU2020",PERU2020!D27)))))))) -> 217186 | L27: =IF($C$2=2,'2'!E27,IF($C$2=3,'3'!E27,IF($C$2=4,'4'!E27,IF($C$2=5,'5'!E27,IF($C$2=6,'6'!E27,IF($C$2=8,'8'!E27,IF($C$2=9,'9'!E27,IF($C$2="PERU2020",PERU2020!E27)))))))) -> 149238 | M27: =IF($C$2=2,'2'!F27,IF($C$2=3,'3'!F27,IF($C$2=4,'4'!F27,IF($C$2=5,'5'!F27,IF($C$2=6,'6'!F27,IF($C$2=8,'8'!F27,IF($C$2=9,'9'!F27,IF($C$2="PERU2020",PERU2020!F27)))))))) -> 101317 | N27: =IF($C$2=2,'2'!G27,IF($C$2=3,'3'!G27,IF($C$2=4,'4'!G27,IF($C$2=5,'5'!G27,IF($C$2=6,'6'!G27,IF($C$2=8,'8'!G27,IF($C$2=9,'9'!G27,IF($C$2="PERU2020",PERU2020!G27)))))))) -> 84264 | O27: =IF($C$2=2,'2'!H27,IF($C$2=3,'3'!H27,IF($C$2=4,'4'!H27,IF($C$2=5,'5'!H27,IF($C$2=6,'6'!H27,IF($C$2=8,'8'!H27,IF($C$2=9,'9'!H27,IF($C$2="PERU2020",PERU2020!H27)))))))) -> 73142 | Q27: 217186 | R27: 149238 | S27: 101317 | T27: 84264 | U27: 73142
A28: 71 | B28: 71 | D28: 225709 | E28: 155093 | F28: 105294 | G28: 87572 | H28: 76019 | K28: =IF($C$2=2,'2'!D28,IF($C$2=3,'3'!D28,IF($C$2=4,'4'!D28,IF($C$2=5,'5'!D28,IF($C$2=6,'6'!D28,IF($C$2=8,'8'!D28,IF($C$2=9,'9'!D28,IF($C$2="PERU2020",PERU2020!D28)))))))) -> 225709 | L28: =IF($C$2=2,'2'!E28,IF($C$2=3,'3'!E28,IF($C$2=4,'4'!E28,IF($C$2=5,'5'!E28,IF($C$2=6,'6'!E28,IF($C$2=8,'8'!E28,IF($C$2=9,'9'!E28,IF($C$2="PERU2020",PERU2020!E28)))))))) -> 155093 | M28: =IF($C$2=2,'2'!F28,IF($C$2=3,'3'!F28,IF($C$2=4,'4'!F28,IF($C$2=5,'5'!F28,IF($C$2=6,'6'!F28,IF($C$2=8,'8'!F28,IF($C$2=9,'9'!F28,IF($C$2="PERU2020",PERU2020!F28)))))))) -> 105294 | N28: =IF($C$2=2,'2'!G28,IF($C$2=3,'3'!G28,IF($C$2=4,'4'!G28,IF($C$2=5,'5'!G28,IF($C$2=6,'6'!G28,IF($C$2=8,'8'!G28,IF($C$2=9,'9'!G28,IF($C$2="PERU2020",PERU2020!G28)))))))) -> 87572 | O28: =IF($C$2=2,'2'!H28,IF($C$2=3,'3'!H28,IF($C$2=4,'4'!H28,IF($C$2=5,'5'!H28,IF($C$2=6,'6'!H28,IF($C$2=8,'8'!H28,IF($C$2=9,'9'!H28,IF($C$2="PERU2020",PERU2020!H28)))))))) -> 76019 | Q28: 225709 | R28: 155093 | S28: 105294 | T28: 87572 | U28: 76019
A29: 72 | B29: 72 | D29: 232108 | E29: 159484 | F29: 108264 | G29: 90043 | H29: 78174 | K29: =IF($C$2=2,'2'!D29,IF($C$2=3,'3'!D29,IF($C$2=4,'4'!D29,IF($C$2=5,'5'!D29,IF($C$2=6,'6'!D29,IF($C$2=8,'8'!D29,IF($C$2=9,'9'!D29,IF($C$2="PERU2020",PERU2020!D29)))))))) -> 232108 | L29: =IF($C$2=2,'2'!E29,IF($C$2=3,'3'!E29,IF($C$2=4,'4'!E29,IF($C$2=5,'5'!E29,IF($C$2=6,'6'!E29,IF($C$2=8,'8'!E29,IF($C$2=9,'9'!E29,IF($C$2="PERU2020",PERU2020!E29)))))))) -> 159484 | M29: =IF($C$2=2,'2'!F29,IF($C$2=3,'3'!F29,IF($C$2=4,'4'!F29,IF($C$2=5,'5'!F29,IF($C$2=6,'6'!F29,IF($C$2=8,'8'!F29,IF($C$2=9,'9'!F29,IF($C$2="PERU2020",PERU2020!F29)))))))) -> 108264 | N29: =IF($C$2=2,'2'!G29,IF($C$2=3,'3'!G29,IF($C$2=4,'4'!G29,IF($C$2=5,'5'!G29,IF($C$2=6,'6'!G29,IF($C$2=8,'8'!G29,IF($C$2=9,'9'!G29,IF($C$2="PERU2020",PERU2020!G29)))))))) -> 90043 | O29: =IF($C$2=2,'2'!H29,IF($C$2=3,'3'!H29,IF($C$2=4,'4'!H29,IF($C$2=5,'5'!H29,IF($C$2=6,'6'!H29,IF($C$2=8,'8'!H29,IF($C$2=9,'9'!H29,IF($C$2="PERU2020",PERU2020!H29)))))))) -> 78174 | Q29: 232108 | R29: 159484 | S29: 108264 | T29: 90043 | U29: 78174
A30: 73 | B30: 73 | D30: 240630 | E30: 165355 | F30: 112239 | G30: 93371 | H30: 81052 | K30: =IF($C$2=2,'2'!D30,IF($C$2=3,'3'!D30,IF($C$2=4,'4'!D30,IF($C$2=5,'5'!D30,IF($C$2=6,'6'!D30,IF($C$2=8,'8'!D30,IF($C$2=9,'9'!D30,IF($C$2="PERU2020",PERU2020!D30)))))))) -> 240630 | L30: =IF($C$2=2,'2'!E30,IF($C$2=3,'3'!E30,IF($C$2=4,'4'!E30,IF($C$2=5,'5'!E30,IF($C$2=6,'6'!E30,IF($C$2=8,'8'!E30,IF($C$2=9,'9'!E30,IF($C$2="PERU2020",PERU2020!E30)))))))) -> 165355 | M30: =IF($C$2=2,'2'!F30,IF($C$2=3,'3'!F30,IF($C$2=4,'4'!F30,IF($C$2=5,'5'!F30,IF($C$2=6,'6'!F30,IF($C$2=8,'8'!F30,IF($C$2=9,'9'!F30,IF($C$2="PERU2020",PERU2020!F30)))))))) -> 112239 | N30: =IF($C$2=2,'2'!G30,IF($C$2=3,'3'!G30,IF($C$2=4,'4'!G30,IF($C$2=5,'5'!G30,IF($C$2=6,'6'!G30,IF($C$2=8,'8'!G30,IF($C$2=9,'9'!G30,IF($C$2="PERU2020",PERU2020!G30)))))))) -> 93371 | O30: =IF($C$2=2,'2'!H30,IF($C$2=3,'3'!H30,IF($C$2=4,'4'!H30,IF($C$2=5,'5'!H30,IF($C$2=6,'6'!H30,IF($C$2=8,'8'!H30,IF($C$2=9,'9'!H30,IF($C$2="PERU2020",PERU2020!H30)))))))) -> 81052 | Q30: 240630 | R30: 165355 | S30: 112239 | T30: 93371 | U30: 81052
A31: 74 | B31: 74 | D31: 244894 | E31: 168270 | F31: 114245 | G31: 95018 | H31: 82479 | K31: =IF($C$2=2,'2'!D31,IF($C$2=3,'3'!D31,IF($C$2=4,'4'!D31,IF($C$2=5,'5'!D31,IF($C$2=6,'6'!D31,IF($C$2=8,'8'!D31,IF($C$2=9,'9'!D31,IF($C$2="PERU2020",PERU2020!D31)))))))) -> 244894 | L31: =IF($C$2=2,'2'!E31,IF($C$2=3,'3'!E31,IF($C$2=4,'4'!E31,IF($C$2=5,'5'!E31,IF($C$2=6,'6'!E31,IF($C$2=8,'8'!E31,IF($C$2=9,'9'!E31,IF($C$2="PERU2020",PERU2020!E31)))))))) -> 168270 | M31: =IF($C$2=2,'2'!F31,IF($C$2=3,'3'!F31,IF($C$2=4,'4'!F31,IF($C$2=5,'5'!F31,IF($C$2=6,'6'!F31,IF($C$2=8,'8'!F31,IF($C$2=9,'9'!F31,IF($C$2="PERU2020",PERU2020!F31)))))))) -> 114245 | N31: =IF($C$2=2,'2'!G31,IF($C$2=3,'3'!G31,IF($C$2=4,'4'!G31,IF($C$2=5,'5'!G31,IF($C$2=6,'6'!G31,IF($C$2=8,'8'!G31,IF($C$2=9,'9'!G31,IF($C$2="PERU2020",PERU2020!G31)))))))) -> 95018 | O31: =IF($C$2=2,'2'!H31,IF($C$2=3,'3'!H31,IF($C$2=4,'4'!H31,IF($C$2=5,'5'!H31,IF($C$2=6,'6'!H31,IF($C$2=8,'8'!H31,IF($C$2=9,'9'!H31,IF($C$2="PERU2020",PERU2020!H31)))))))) -> 82479 | Q31: 244894 | R31: 168270 | S31: 114245 | T31: 95018 | U31: 82479
A32: 75 | B32: 75+ | D32: 255563 | E32: 175596 | F32: 119204 | G32: 99160 | H32: 86074 | K32: =IF($C$2=2,'2'!D32,IF($C$2=3,'3'!D32,IF($C$2=4,'4'!D32,IF($C$2=5,'5'!D32,IF($C$2=6,'6'!D32,IF($C$2=8,'8'!D32,IF($C$2=9,'9'!D32,IF($C$2="PERU2020",PERU2020!D32)))))))) -> 255563 | L32: =IF($C$2=2,'2'!E32,IF($C$2=3,'3'!E32,IF($C$2=4,'4'!E32,IF($C$2=5,'5'!E32,IF($C$2=6,'6'!E32,IF($C$2=8,'8'!E32,IF($C$2=9,'9'!E32,IF($C$2="PERU2020",PERU2020!E32)))))))) -> 175596 | M32: =IF($C$2=2,'2'!F32,IF($C$2=3,'3'!F32,IF($C$2=4,'4'!F32,IF($C$2=5,'5'!F32,IF($C$2=6,'6'!F32,IF($C$2=8,'8'!F32,IF($C$2=9,'9'!F32,IF($C$2="PERU2020",PERU2020!F32)))))))) -> 119204 | N32: =IF($C$2=2,'2'!G32,IF($C$2=3,'3'!G32,IF($C$2=4,'4'!G32,IF($C$2=5,'5'!G32,IF($C$2=6,'6'!G32,IF($C$2=8,'8'!G32,IF($C$2=9,'9'!G32,IF($C$2="PERU2020",PERU2020!G32)))))))) -> 99160 | O32: =IF($C$2=2,'2'!H32,IF($C$2=3,'3'!H32,IF($C$2=4,'4'!H32,IF($C$2=5,'5'!H32,IF($C$2=6,'6'!H32,IF($C$2=8,'8'!H32,IF($C$2=9,'9'!H32,IF($C$2="PERU2020",PERU2020!H32)))))))) -> 86074 | Q32: 255563 | R32: 175596 | S32: 119204 | T32: 99160 | U32: 86074
A33: 1 | B33: 1 Child | D33: 9547 | E33: 7031 | F33: 5278 | G33: 4152 | H33: 3237 | K33: =IF($C$2=2,'2'!D33,IF($C$2=3,'3'!D33,IF($C$2=4,'4'!D33,IF($C$2=5,'5'!D33,IF($C$2=6,'6'!D33,IF($C$2=8,'8'!D33,IF($C$2=9,'9'!D33,IF($C$2="PERU2020",PERU2020!D33)))))))) -> 9547 | L33: =IF($C$2=2,'2'!E33,IF($C$2=3,'3'!E33,IF($C$2=4,'4'!E33,IF($C$2=5,'5'!E33,IF($C$2=6,'6'!E33,IF($C$2=8,'8'!E33,IF($C$2=9,'9'!E33,IF($C$2="PERU2020",PERU2020!E33)))))))) -> 7031 | M33: =IF($C$2=2,'2'!F33,IF($C$2=3,'3'!F33,IF($C$2=4,'4'!F33,IF($C$2=5,'5'!F33,IF($C$2=6,'6'!F33,IF($C$2=8,'8'!F33,IF($C$2=9,'9'!F33,IF($C$2="PERU2020",PERU2020!F33)))))))) -> 5278 | N33: =IF($C$2=2,'2'!G33,IF($C$2=3,'3'!G33,IF($C$2=4,'4'!G33,IF($C$2=5,'5'!G33,IF($C$2=6,'6'!G33,IF($C$2=8,'8'!G33,IF($C$2=9,'9'!G33,IF($C$2="PERU2020",PERU2020!G33)))))))) -> 4152 | O33: =IF($C$2=2,'2'!H33,IF($C$2=3,'3'!H33,IF($C$2=4,'4'!H33,IF($C$2=5,'5'!H33,IF($C$2=6,'6'!H33,IF($C$2=8,'8'!H33,IF($C$2=9,'9'!H33,IF($C$2="PERU2020",PERU2020!H33)))))))) -> 3237 | Q33: =(K33)*$L$2 -> 9547 | R33: =(L33)*$L$2 -> 7031 | S33: 5278 | T33: 4152 | U33: 3237
A34: 2 | B34: 2 Children | D34: 15181 | E34: 11198 | F34: 8397 | G34: 6592 | H34: 5125 | K34: =IF($C$2=2,'2'!D34,IF($C$2=3,'3'!D34,IF($C$2=4,'4'!D34,IF($C$2=5,'5'!D34,IF($C$2=6,'6'!D34,IF($C$2=8,'8'!D34,IF($C$2=9,'9'!D34,IF($C$2="PERU2020",PERU2020!D34)))))))) -> 15181 | L34: =IF($C$2=2,'2'!E34,IF($C$2=3,'3'!E34,IF($C$2=4,'4'!E34,IF($C$2=5,'5'!E34,IF($C$2=6,'6'!E34,IF($C$2=8,'8'!E34,IF($C$2=9,'9'!E34,IF($C$2="PERU2020",PERU2020!E34)))))))) -> 11198 | M34: =IF($C$2=2,'2'!F34,IF($C$2=3,'3'!F34,IF($C$2=4,'4'!F34,IF($C$2=5,'5'!F34,IF($C$2=6,'6'!F34,IF($C$2=8,'8'!F34,IF($C$2=9,'9'!F34,IF($C$2="PERU2020",PERU2020!F34)))))))) -> 8397 | N34: =IF($C$2=2,'2'!G34,IF($C$2=3,'3'!G34,IF($C$2=4,'4'!G34,IF($C$2=5,'5'!G34,IF($C$2=6,'6'!G34,IF($C$2=8,'8'!G34,IF($C$2=9,'9'!G34,IF($C$2="PERU2020",PERU2020!G34)))))))) -> 6592 | O34: =IF($C$2=2,'2'!H34,IF($C$2=3,'3'!H34,IF($C$2=4,'4'!H34,IF($C$2=5,'5'!H34,IF($C$2=6,'6'!H34,IF($C$2=8,'8'!H34,IF($C$2=9,'9'!H34,IF($C$2="PERU2020",PERU2020!H34)))))))) -> 5125 | Q34: =(K34)*$L$2 -> 15181 | R34: =(L34)*$L$2 -> 11198 | S34: =(M34)*$L$2 -> 8397 | T34: =(N34)*$L$2 -> 6592 | U34: =(O34)*$L$2 -> 5125
A35: 3 | B35: 3+ Children | D35: 22257 | E35: 16419 | F35: 12293 | G35: 9657 | H35: 7514 | K35: =IF($C$2=2,'2'!D35,IF($C$2=3,'3'!D35,IF($C$2=4,'4'!D35,IF($C$2=5,'5'!D35,IF($C$2=6,'6'!D35,IF($C$2=8,'8'!D35,IF($C$2=9,'9'!D35,IF($C$2="PERU2020",PERU2020!D35)))))))) -> 22257 | L35: =IF($C$2=2,'2'!E35,IF($C$2=3,'3'!E35,IF($C$2=4,'4'!E35,IF($C$2=5,'5'!E35,IF($C$2=6,'6'!E35,IF($C$2=8,'8'!E35,IF($C$2=9,'9'!E35,IF($C$2="PERU2020",PERU2020!E35)))))))) -> 16419 | M35: =IF($C$2=2,'2'!F35,IF($C$2=3,'3'!F35,IF($C$2=4,'4'!F35,IF($C$2=5,'5'!F35,IF($C$2=6,'6'!F35,IF($C$2=8,'8'!F35,IF($C$2=9,'9'!F35,IF($C$2="PERU2020",PERU2020!F35)))))))) -> 12293 | N35: =IF($C$2=2,'2'!G35,IF($C$2=3,'3'!G35,IF($C$2=4,'4'!G35,IF($C$2=5,'5'!G35,IF($C$2=6,'6'!G35,IF($C$2=8,'8'!G35,IF($C$2=9,'9'!G35,IF($C$2="PERU2020",PERU2020!G35)))))))) -> 9657 | O35: =IF($C$2=2,'2'!H35,IF($C$2=3,'3'!H35,IF($C$2=4,'4'!H35,IF($C$2=5,'5'!H35,IF($C$2=6,'6'!H35,IF($C$2=8,'8'!H35,IF($C$2=9,'9'!H35,IF($C$2="PERU2020",PERU2020!H35)))))))) -> 7514 | Q35: 22257 | R35: 16419 | S35: 12293 | T35: 9657 | U35: 7514
A36: 1 | B36: Rider Comp. Maternidad | D36: 0 | E36: 0 | F36: 225 | G36: 225 | H36: 225
A37: 1 | B37: Transplante de organos | D37: 0 | E37: 0 | F37: 0 | G37: 0 | H37: 0
A41: TARIFAS SEMESTRALES
A42: EDAD
D43: DW2 | E43: DW3 | F43: DW4 | G43: DW5 | H43: DW6
A44: 18 | B44: 18-24 | D44: =$G$2*D9 -> 14544.26 | E44: 9605.19 | F44: 6241.28 | G44: 4127.11 | H44: 3243.6
A45: 25 | B45: 25-29 | D45: 15254.46 | E45: 10615.37 | F45: 6912.26 | G45: 4576.55 | H45: 3593.93
A46: 30 | B46: 30-34 | D46: 15873.5 | E46: 11390.76 | F46: 7745.42 | G46: 5484.97 | H46: 4322.15
A47: 35 | B47: 35-39 | D47: 17773.55 | E47: 12749.68 | F47: 8687.76 | G47: 6152.24 | H47: 4842.08
A48: 40 | B48: 40-44 | D48: 20606.93 | E48: 13951.72 | F48: 9639.11 | G48: 6768.63 | H48: 5323.85
A49: 45 | B49: 45-49 | D49: 23042.81 | E49: 15602.14 | F49: 10776.49 | G49: 7567.34 | H49: 5957.73
A50: 50 | B50: 50-54 | D50: 29492.91 | E50: 20479.73 | F50: 14068.85 | G50: 10690.63 | H50: 8425.41
A51: 55 | B51: 55-59 | D51: 31383.95 | E51: 21792.01 | F51: 14969.32 | G51: 11379.63 | H51: 8970.78
A52: 60 | B52: 60 | D52: 34191.89 | E52: 23780.57 | F52: 17230.3 | G52: 13713.22 | H52: 11147.49
A53: 61 | B53: 61 | D53: 36734.83 | E53: 25549.18 | F53: 18504.95 | G53: 14742.48 | H53: 11981.18
A54: 62 | B54: 62 | D54: =$G$2*D19 -> 40219.58 | E54: 27986.12 | F54: 20266.67 | G54: 16135.32 | H54: 13121.21
A55: 63 | B55: 63 | D55: 42766.23 | E55: 29753.67 | F55: 21546.62 | G55: 17162.99 | H55: 13951.19
A56: 64 | B56: 64 | D56: 46267.41 | E56: 32199.62 | F56: 23316.82 | G56: 18568.02 | H56: 15101.82
A57: 65 | B57: 65 | D57: 60487.31 | E57: 42000.91 | F57: 29488.67 | G57: 24770.08 | H57: 21302.29
A58: 66 | B58: 66 | D58: 70272.7 | E58: 48814.59 | F58: 34269.8 | G58: 28794.37 | H58: 24753.65
A59: 67 | B59: 67 | D59: 76758.31 | E59: 53313.23 | F59: 37434.96 | G59: 31442.25 | H59: 27041.13
A60: 68 | B60: 68 | D60: 84996.63 | E60: 59034.58 | F60: 41448.12 | G60: 34826.3 | H60: 29946.59
A61: 69 | B61: 69 | D61: 93521.15 | E61: 64949.91 | F61: 45608.62 | G61: 38315.82 | H61: 32955.93
A62: 70 | B62: 70 | D62: 115108.58 | E62: 79096.14 | F62: 53698.01 | G62: 44659.92 | H62: 38765.26
A63: 71 | B63: 71 | D63: 119625.77 | E63: 82199.29 | F63: 55805.82 | G63: 46413.16 | H63: 40290.07
A64: 72 | B64: 72 | D64: =$G$2*D29 -> 123017.24 | E64: 84526.52 | F64: 57379.92 | G64: 47722.79 | H64: 41432.22
A65: 73 | B65: 73 | D65: 127533.9 | E65: 87638.15 | F65: 59486.67 | G65: 49486.63 | H65: 42957.56
A66: 74 | B66: 74 | D66: 129793.82 | E66: 89183.1 | F66: 60549.85 | G66: 50359.54 | H66: 43713.87
A67: 75 | B67: 75+ | D67: 135448.39 | E67: 93065.88 | F67: 63178.12 | G67: 52554.8 | H67: 45619.22
A68: 1 | B68: 1 Child | D68: 5059.91 | E68: 3726.43 | F68: 2797.34 | G68: 2200.56 | H68: 1715.61
A69: 2 | B69: 2 Children | D69: 8045.93 | E69: 5934.94 | F69: 4450.41 | G69: 3493.76 | H69: 2716.25
A70: 3 | B70: 3+ Children | D70: 11796.21 | E70: 8702.07 | F70: 6515.29 | G70: 5118.21 | H70: 3982.42
A71: 1 | B71: Rider Comp. Maternidad | D71: =+D36*$G$2 -> 0 | E71: 0 | F71: 119.25 | G71: 119.25 | H71: 119.25
A72: 1 | B72: Transplante de organos | D72: 0 | E72: 0 | F72: 0 | G72: 0 | H72: 0
A78: DIAMOND (LATINAMERICA ONLY)
A79: TARIFAS ANUALES
A80: EDAD
C81: DL1 | D81: DL2 | E81: DL3 | F81: DL4 | G81: DL5 | H81: DL6
A82: 18 | B82: - 24
A83: 25 | B83: - 29
A84: 30 | B84: - 34
A85: 35 | B85: - 39
A86: 40 | B86: - 44
A87: 45 | B87: - 49
A88: 50 | B88: - 54
A89: 55 | B89: - 59
A90: 60
A91: 61
A92: 62
A93: 63
A94: 64
A95: 65
A96: 66
A97: 67
A98: 68
A99: 69
A100: 70
A101: 71
A102: 72
A103: 73
A104: 74
A105: 75 | B105: o más
A106: 1 | B106: Hijo
A107: 2 | B107: Hijos
A108: 3 | B108: Hijos o más
A109: 1 | B109: Rider Comp. Maternidad
A110: 1 | B110: Transplante de organos | C110: 0 | D110: 0 | E110: 0 | F110: 0 | G110: 0 | H110: 0
A112: TARIFAS SEMESTRALES
A113: EDAD
C114: DL1 | D114: DL2 | E114: DL3 | F114: DL4 | G114: DL5 | H114: DL6
A115: 18 | B115: - 24 | C115: =+C82*$G$2 -> 0 | D115: 0 | E115: 0 | F115: 0 | G115: 0 | H115: 0
A116: 25 | B116: - 29 | C116: 0 | D116: 0 | E116: 0 | F116: 0 | G116: 0 | H116: 0
A117: 30 | B117: - 34 | C117: 0 | D117: 0 | E117: 0 | F117: 0 | G117: 0 | H117: 0
A118: 35 | B118: - 39 | C118: 0 | D118: 0 | E118: 0 | F118: 0 | G118: 0 | H118: 0
A119: 40 | B119: - 44 | C119: 0 | D119: 0 | E119: 0 | F119: 0 | G119: 0 | H119: 0
A120: 45 | B120: - 49 | C120: 0 | D120: 0 | E120: 0 | F120: 0 | G120: 0 | H120: 0
A121: 50 | B121: - 54 | C121: 0 | D121: 0 | E121: 0 | F121: 0 | G121: 0 | H121: 0
A122: 55 | B122: - 59 | C122: 0 | D122: 0 | E122: 0 | F122: 0 | G122: 0 | H122: 0
A123: 60 | C123: 0 | D123: 0 | E123: 0 | F123: 0 | G123: 0 | H123: 0
A124: 61 | C124: 0 | D124: 0 | E124: 0 | F124: 0 | G124: 0 | H124: 0
A125: 62 | C125: =+C92*$G$2 -> 0 | D125: 0 | E125: 0 | F125: 0 | G125: 0 | H125: 0
A126: 63 | C126: 0 | D126: 0 | E126: 0 | F126: 0 | G126: 0 | H126: 0
A127: 64 | C127: 0 | D127: 0 | E127: 0 | F127: 0 | G127: 0 | H127: 0
A128: 65 | C128: 0 | D128: 0 | E128: 0 | F128: 0 | G128: 0 | H128: 0
A129: 66 | C129: 0 | D129: 0 | E129: 0 | F129: 0 | G129: 0 | H129: 0
A130: 67 | C130: 0 | D130: 0 | E130: 0 | F130: 0 | G130: 0 | H130: 0
A131: 68 | C131: 0 | D131: 0 | E131: 0 | F131: 0 | G131: 0 | H131: 0
A132: 69 | C132: 0 | D132: 0 | E132: 0 | F132: 0 | G132: 0 | H132: 0
A133: 70 | C133: 0 | D133: 0 | E133: 0 | F133: 0 | G133: 0 | H133: 0
A134: 71 | C134: 0 | D134: 0 | E134: 0 | F134: 0 | G134: 0 | H134: 0
A135: 72 | C135: =+C102*$G$2 -> 0 | D135: 0 | E135: 0 | F135: 0 | G135: 0 | H135: 0
A136: 73 | C136: 0 | D136: 0 | E136: 0 | F136: 0 | G136: 0 | H136: 0
A137: 74 | C137: 0 | D137: 0 | E137: 0 | F137: 0 | G137: 0 | H137: 0
A138: 75 | B138: o más | C138: 0 | D138: 0 | E138: 0 | F138: 0 | G138: 0 | H138: 0
A139: 1 | B139: Hijo | C139: 0 | D139: 0 | E139: 0 | F139: 0 | G139: 0 | H139: 0
A140: 2 | B140: Hijos | C140: 0 | D140: 0 | E140: 0 | F140: 0 | G140: 0 | H140: 0
A141: 3 | B141: Hijos o más | C141: 0 | D141: 0 | E141: 0 | F141: 0 | G141: 0 | H141: 0
A142: 1 | B142: Rider Comp. Maternidad | C142: 0 | D142: 0 | E142: 0 | F142: 0 | G142: 0 | H142: 0
A143: 1 | B143: Transplante de organos | C143: 0 | D143: 0 | E143: 0 | F143: 0 | G143: 0 | H143: 0
A148: BUPA PRIVILEGE CARE
A149: TARIFAS ANUALES
A150: EDAD
C151: CW1 | D151: CW2 | E151: CW3 | F151: CW4 | G151: CW5 | H151: CW6
A152: 18 | B152: 18-24 | D152: =Q152 -> 23086 | E152: =R152 -> 15872 | F152: 10249 | G152: 6778 | H152: 5154 | K152: =IF($C$2=2,'2'!D152,IF($C$2=3,'3'!D152,IF($C$2=4,'4'!D152,IF($C$2=5,'5'!D152,IF($C$2=6,'6'!D152,IF($C$2=8,'8'!D152,IF($C$2=9,'9'!D152,IF($C$2="PERU2020",PERU2020!D152)))))))) -> 23086 | L152: =IF($C$2=2,'2'!E152,IF($C$2=3,'3'!E152,IF($C$2=4,'4'!E152,IF($C$2=5,'5'!E152,IF($C$2=6,'6'!E152,IF($C$2=8,'8'!E152,IF($C$2=9,'9'!E152,IF($C$2="PERU2020",PERU2020!E152)))))))) -> 15872 | M152: =IF($C$2=2,'2'!F152,IF($C$2=3,'3'!F152,IF($C$2=4,'4'!F152,IF($C$2=5,'5'!F152,IF($C$2=6,'6'!F152,IF($C$2=8,'8'!F152,IF($C$2=9,'9'!F152,IF($C$2="PERU2020",PERU2020!F152)))))))) -> 10249 | N152: =IF($C$2=2,'2'!G152,IF($C$2=3,'3'!G152,IF($C$2=4,'4'!G152,IF($C$2=5,'5'!G152,IF($C$2=6,'6'!G152,IF($C$2=8,'8'!G152,IF($C$2=9,'9'!G152,IF($C$2="PERU2020",PERU2020!G152)))))))) -> 6778 | O152: =IF($C$2=2,'2'!H152,IF($C$2=3,'3'!H152,IF($C$2=4,'4'!H152,IF($C$2=5,'5'!H152,IF($C$2=6,'6'!H152,IF($C$2=8,'8'!H152,IF($C$2=9,'9'!H152,IF($C$2="PERU2020",PERU2020!H152)))))))) -> 5154 | Q152: =(K152-50)*$M$2+50 -> 23086 | R152: =(L152-50)*$M$2+50 -> 15872 | S152: 10249 | T152: 6778 | U152: 5154
A153: 25 | B153: 25-29 | D153: =Q153 -> 24219 | E153: =R153 -> 17563 | F153: =S153 -> 11350 | G153: =T153 -> 7509 | H153: =U153 -> 5720 | K153: =IF($C$2=2,'2'!D153,IF($C$2=3,'3'!D153,IF($C$2=4,'4'!D153,IF($C$2=5,'5'!D153,IF($C$2=6,'6'!D153,IF($C$2=8,'8'!D153,IF($C$2=9,'9'!D153,IF($C$2="PERU2020",PERU2020!D153)))))))) -> 24219 | L153: =IF($C$2=2,'2'!E153,IF($C$2=3,'3'!E153,IF($C$2=4,'4'!E153,IF($C$2=5,'5'!E153,IF($C$2=6,'6'!E153,IF($C$2=8,'8'!E153,IF($C$2=9,'9'!E153,IF($C$2="PERU2020",PERU2020!E153)))))))) -> 17563 | M153: =IF($C$2=2,'2'!F153,IF($C$2=3,'3'!F153,IF($C$2=4,'4'!F153,IF($C$2=5,'5'!F153,IF($C$2=6,'6'!F153,IF($C$2=8,'8'!F153,IF($C$2=9,'9'!F153,IF($C$2="PERU2020",PERU2020!F153)))))))) -> 11350 | N153: =IF($C$2=2,'2'!G153,IF($C$2=3,'3'!G153,IF($C$2=4,'4'!G153,IF($C$2=5,'5'!G153,IF($C$2=6,'6'!G153,IF($C$2=8,'8'!G153,IF($C$2=9,'9'!G153,IF($C$2="PERU2020",PERU2020!G153)))))))) -> 7509 | O153: =IF($C$2=2,'2'!H153,IF($C$2=3,'3'!H153,IF($C$2=4,'4'!H153,IF($C$2=5,'5'!H153,IF($C$2=6,'6'!H153,IF($C$2=8,'8'!H153,IF($C$2=9,'9'!H153,IF($C$2="PERU2020",PERU2020!H153)))))))) -> 5720 | Q153: =(K153-50)*$M$2+50 -> 24219 | R153: =(L153-50)*$M$2+50 -> 17563 | S153: =(M153-50)*$M$2+50 -> 11350 | T153: =(N153-50)*$M$2+50 -> 7509 | U153: =(O153-50)*$M$2+50 -> 5720
A154: 30 | B154: 30-34 | D154: 25275 | E154: 18785 | F154: 12736 | G154: 9083 | H154: 6927 | K154: =IF($C$2=2,'2'!D154,IF($C$2=3,'3'!D154,IF($C$2=4,'4'!D154,IF($C$2=5,'5'!D154,IF($C$2=6,'6'!D154,IF($C$2=8,'8'!D154,IF($C$2=9,'9'!D154,IF($C$2="PERU2020",PERU2020!D154)))))))) -> 25275 | L154: =IF($C$2=2,'2'!E154,IF($C$2=3,'3'!E154,IF($C$2=4,'4'!E154,IF($C$2=5,'5'!E154,IF($C$2=6,'6'!E154,IF($C$2=8,'8'!E154,IF($C$2=9,'9'!E154,IF($C$2="PERU2020",PERU2020!E154)))))))) -> 18785 | M154: =IF($C$2=2,'2'!F154,IF($C$2=3,'3'!F154,IF($C$2=4,'4'!F154,IF($C$2=5,'5'!F154,IF($C$2=6,'6'!F154,IF($C$2=8,'8'!F154,IF($C$2=9,'9'!F154,IF($C$2="PERU2020",PERU2020!F154)))))))) -> 12736 | N154: =IF($C$2=2,'2'!G154,IF($C$2=3,'3'!G154,IF($C$2=4,'4'!G154,IF($C$2=5,'5'!G154,IF($C$2=6,'6'!G154,IF($C$2=8,'8'!G154,IF($C$2=9,'9'!G154,IF($C$2="PERU2020",PERU2020!G154)))))))) -> 9083 | O154: =IF($C$2=2,'2'!H154,IF($C$2=3,'3'!H154,IF($C$2=4,'4'!H154,IF($C$2=5,'5'!H154,IF($C$2=6,'6'!H154,IF($C$2=8,'8'!H154,IF($C$2=9,'9'!H154,IF($C$2="PERU2020",PERU2020!H154)))))))) -> 6927 | Q154: 25275 | R154: 18785 | S154: 12736 | T154: 9083 | U154: 6927
A155: 35 | B155: 35-39 | D155: 28318 | E155: 21029 | F155: 14271 | G155: 10175 | H155: 7774 | K155: =IF($C$2=2,'2'!D155,IF($C$2=3,'3'!D155,IF($C$2=4,'4'!D155,IF($C$2=5,'5'!D155,IF($C$2=6,'6'!D155,IF($C$2=8,'8'!D155,IF($C$2=9,'9'!D155,IF($C$2="PERU2020",PERU2020!D155)))))))) -> 28318 | L155: =IF($C$2=2,'2'!E155,IF($C$2=3,'3'!E155,IF($C$2=4,'4'!E155,IF($C$2=5,'5'!E155,IF($C$2=6,'6'!E155,IF($C$2=8,'8'!E155,IF($C$2=9,'9'!E155,IF($C$2="PERU2020",PERU2020!E155)))))))) -> 21029 | M155: =IF($C$2=2,'2'!F155,IF($C$2=3,'3'!F155,IF($C$2=4,'4'!F155,IF($C$2=5,'5'!F155,IF($C$2=6,'6'!F155,IF($C$2=8,'8'!F155,IF($C$2=9,'9'!F155,IF($C$2="PERU2020",PERU2020!F155)))))))) -> 14271 | N155: =IF($C$2=2,'2'!G155,IF($C$2=3,'3'!G155,IF($C$2=4,'4'!G155,IF($C$2=5,'5'!G155,IF($C$2=6,'6'!G155,IF($C$2=8,'8'!G155,IF($C$2=9,'9'!G155,IF($C$2="PERU2020",PERU2020!G155)))))))) -> 10175 | O155: =IF($C$2=2,'2'!H155,IF($C$2=3,'3'!H155,IF($C$2=4,'4'!H155,IF($C$2=5,'5'!H155,IF($C$2=6,'6'!H155,IF($C$2=8,'8'!H155,IF($C$2=9,'9'!H155,IF($C$2="PERU2020",PERU2020!H155)))))))) -> 7774 | Q155: 28318 | R155: 21029 | S155: 14271 | T155: 10175 | U155: 7774
A156: 40 | B156: 40-44 | D156: 32779 | E156: 23058 | F156: 15864 | G156: 11215 | H156: 8561 | K156: =IF($C$2=2,'2'!D156,IF($C$2=3,'3'!D156,IF($C$2=4,'4'!D156,IF($C$2=5,'5'!D156,IF($C$2=6,'6'!D156,IF($C$2=8,'8'!D156,IF($C$2=9,'9'!D156,IF($C$2="PERU2020",PERU2020!D156)))))))) -> 32779 | L156: =IF($C$2=2,'2'!E156,IF($C$2=3,'3'!E156,IF($C$2=4,'4'!E156,IF($C$2=5,'5'!E156,IF($C$2=6,'6'!E156,IF($C$2=8,'8'!E156,IF($C$2=9,'9'!E156,IF($C$2="PERU2020",PERU2020!E156)))))))) -> 23058 | M156: =IF($C$2=2,'2'!F156,IF($C$2=3,'3'!F156,IF($C$2=4,'4'!F156,IF($C$2=5,'5'!F156,IF($C$2=6,'6'!F156,IF($C$2=8,'8'!F156,IF($C$2=9,'9'!F156,IF($C$2="PERU2020",PERU2020!F156)))))))) -> 15864 | N156: =IF($C$2=2,'2'!G156,IF($C$2=3,'3'!G156,IF($C$2=4,'4'!G156,IF($C$2=5,'5'!G156,IF($C$2=6,'6'!G156,IF($C$2=8,'8'!G156,IF($C$2=9,'9'!G156,IF($C$2="PERU2020",PERU2020!G156)))))))) -> 11215 | O156: =IF($C$2=2,'2'!H156,IF($C$2=3,'3'!H156,IF($C$2=4,'4'!H156,IF($C$2=5,'5'!H156,IF($C$2=6,'6'!H156,IF($C$2=8,'8'!H156,IF($C$2=9,'9'!H156,IF($C$2="PERU2020",PERU2020!H156)))))))) -> 8561 | Q156: 32779 | R156: 23058 | S156: 15864 | T156: 11215 | U156: 8561
A157: 45 | B157: 45-49 | D157: 36623 | E157: 25769 | F157: 17745 | G157: 12537 | H157: 9578 | K157: =IF($C$2=2,'2'!D157,IF($C$2=3,'3'!D157,IF($C$2=4,'4'!D157,IF($C$2=5,'5'!D157,IF($C$2=6,'6'!D157,IF($C$2=8,'8'!D157,IF($C$2=9,'9'!D157,IF($C$2="PERU2020",PERU2020!D157)))))))) -> 36623 | L157: =IF($C$2=2,'2'!E157,IF($C$2=3,'3'!E157,IF($C$2=4,'4'!E157,IF($C$2=5,'5'!E157,IF($C$2=6,'6'!E157,IF($C$2=8,'8'!E157,IF($C$2=9,'9'!E157,IF($C$2="PERU2020",PERU2020!E157)))))))) -> 25769 | M157: =IF($C$2=2,'2'!F157,IF($C$2=3,'3'!F157,IF($C$2=4,'4'!F157,IF($C$2=5,'5'!F157,IF($C$2=6,'6'!F157,IF($C$2=8,'8'!F157,IF($C$2=9,'9'!F157,IF($C$2="PERU2020",PERU2020!F157)))))))) -> 17745 | N157: =IF($C$2=2,'2'!G157,IF($C$2=3,'3'!G157,IF($C$2=4,'4'!G157,IF($C$2=5,'5'!G157,IF($C$2=6,'6'!G157,IF($C$2=8,'8'!G157,IF($C$2=9,'9'!G157,IF($C$2="PERU2020",PERU2020!G157)))))))) -> 12537 | O157: =IF($C$2=2,'2'!H157,IF($C$2=3,'3'!H157,IF($C$2=4,'4'!H157,IF($C$2=5,'5'!H157,IF($C$2=6,'6'!H157,IF($C$2=8,'8'!H157,IF($C$2=9,'9'!H157,IF($C$2="PERU2020",PERU2020!H157)))))))) -> 9578 | Q157: 36623 | R157: 25769 | S157: 17745 | T157: 12537 | U157: 9578
A158: 50 | B158: 50-54 | D158: 47878 | E158: 33988 | F158: 23296 | G158: 17905 | H158: 13684 | K158: =IF($C$2=2,'2'!D158,IF($C$2=3,'3'!D158,IF($C$2=4,'4'!D158,IF($C$2=5,'5'!D158,IF($C$2=6,'6'!D158,IF($C$2=8,'8'!D158,IF($C$2=9,'9'!D158,IF($C$2="PERU2020",PERU2020!D158)))))))) -> 47878 | L158: =IF($C$2=2,'2'!E158,IF($C$2=3,'3'!E158,IF($C$2=4,'4'!E158,IF($C$2=5,'5'!E158,IF($C$2=6,'6'!E158,IF($C$2=8,'8'!E158,IF($C$2=9,'9'!E158,IF($C$2="PERU2020",PERU2020!E158)))))))) -> 33988 | M158: =IF($C$2=2,'2'!F158,IF($C$2=3,'3'!F158,IF($C$2=4,'4'!F158,IF($C$2=5,'5'!F158,IF($C$2=6,'6'!F158,IF($C$2=8,'8'!F158,IF($C$2=9,'9'!F158,IF($C$2="PERU2020",PERU2020!F158)))))))) -> 23296 | N158: =IF($C$2=2,'2'!G158,IF($C$2=3,'3'!G158,IF($C$2=4,'4'!G158,IF($C$2=5,'5'!G158,IF($C$2=6,'6'!G158,IF($C$2=8,'8'!G158,IF($C$2=9,'9'!G158,IF($C$2="PERU2020",PERU2020!G158)))))))) -> 17905 | O158: =IF($C$2=2,'2'!H158,IF($C$2=3,'3'!H158,IF($C$2=4,'4'!H158,IF($C$2=5,'5'!H158,IF($C$2=6,'6'!H158,IF($C$2=8,'8'!H158,IF($C$2=9,'9'!H158,IF($C$2="PERU2020",PERU2020!H158)))))))) -> 13684 | Q158: 47878 | R158: 33988 | S158: 23296 | T158: 17905 | U158: 13684
A159: 55 | B159: 55-59 | D159: 50948 | E159: 36168 | F159: 24782 | G159: 19053 | H159: 14570 | K159: =IF($C$2=2,'2'!D159,IF($C$2=3,'3'!D159,IF($C$2=4,'4'!D159,IF($C$2=5,'5'!D159,IF($C$2=6,'6'!D159,IF($C$2=8,'8'!D159,IF($C$2=9,'9'!D159,IF($C$2="PERU2020",PERU2020!D159)))))))) -> 50948 | L159: =IF($C$2=2,'2'!E159,IF($C$2=3,'3'!E159,IF($C$2=4,'4'!E159,IF($C$2=5,'5'!E159,IF($C$2=6,'6'!E159,IF($C$2=8,'8'!E159,IF($C$2=9,'9'!E159,IF($C$2="PERU2020",PERU2020!E159)))))))) -> 36168 | M159: =IF($C$2=2,'2'!F159,IF($C$2=3,'3'!F159,IF($C$2=4,'4'!F159,IF($C$2=5,'5'!F159,IF($C$2=6,'6'!F159,IF($C$2=8,'8'!F159,IF($C$2=9,'9'!F159,IF($C$2="PERU2020",PERU2020!F159)))))))) -> 24782 | N159: =IF($C$2=2,'2'!G159,IF($C$2=3,'3'!G159,IF($C$2=4,'4'!G159,IF($C$2=5,'5'!G159,IF($C$2=6,'6'!G159,IF($C$2=8,'8'!G159,IF($C$2=9,'9'!G159,IF($C$2="PERU2020",PERU2020!G159)))))))) -> 19053 | O159: =IF($C$2=2,'2'!H159,IF($C$2=3,'3'!H159,IF($C$2=4,'4'!H159,IF($C$2=5,'5'!H159,IF($C$2=6,'6'!H159,IF($C$2=8,'8'!H159,IF($C$2=9,'9'!H159,IF($C$2="PERU2020",PERU2020!H159)))))))) -> 14570 | Q159: 50948 | R159: 36168 | S159: 24782 | T159: 19053 | U159: 14570
A160: 60 | B160: 60 | D160: 55485 | E160: 39274 | F160: 28219 | G160: 22668 | H160: 18188 | K160: =IF($C$2=2,'2'!D160,IF($C$2=3,'3'!D160,IF($C$2=4,'4'!D160,IF($C$2=5,'5'!D160,IF($C$2=6,'6'!D160,IF($C$2=8,'8'!D160,IF($C$2=9,'9'!D160,IF($C$2="PERU2020",PERU2020!D160)))))))) -> 55485 | L160: =IF($C$2=2,'2'!E160,IF($C$2=3,'3'!E160,IF($C$2=4,'4'!E160,IF($C$2=5,'5'!E160,IF($C$2=6,'6'!E160,IF($C$2=8,'8'!E160,IF($C$2=9,'9'!E160,IF($C$2="PERU2020",PERU2020!E160)))))))) -> 39274 | M160: =IF($C$2=2,'2'!F160,IF($C$2=3,'3'!F160,IF($C$2=4,'4'!F160,IF($C$2=5,'5'!F160,IF($C$2=6,'6'!F160,IF($C$2=8,'8'!F160,IF($C$2=9,'9'!F160,IF($C$2="PERU2020",PERU2020!F160)))))))) -> 28219 | N160: =IF($C$2=2,'2'!G160,IF($C$2=3,'3'!G160,IF($C$2=4,'4'!G160,IF($C$2=5,'5'!G160,IF($C$2=6,'6'!G160,IF($C$2=8,'8'!G160,IF($C$2=9,'9'!G160,IF($C$2="PERU2020",PERU2020!G160)))))))) -> 22668 | O160: =IF($C$2=2,'2'!H160,IF($C$2=3,'3'!H160,IF($C$2=4,'4'!H160,IF($C$2=5,'5'!H160,IF($C$2=6,'6'!H160,IF($C$2=8,'8'!H160,IF($C$2=9,'9'!H160,IF($C$2="PERU2020",PERU2020!H160)))))))) -> 18188 | Q160: 55485 | R160: 39274 | S160: 28219 | T160: 22668 | U160: 18188
A161: 61 | B161: 61 | D161: 59604 | E161: 42180 | F161: 30305 | G161: 24344 | H161: 19544 | K161: =IF($C$2=2,'2'!D161,IF($C$2=3,'3'!D161,IF($C$2=4,'4'!D161,IF($C$2=5,'5'!D161,IF($C$2=6,'6'!D161,IF($C$2=8,'8'!D161,IF($C$2=9,'9'!D161,IF($C$2="PERU2020",PERU2020!D161)))))))) -> 59604 | L161: =IF($C$2=2,'2'!E161,IF($C$2=3,'3'!E161,IF($C$2=4,'4'!E161,IF($C$2=5,'5'!E161,IF($C$2=6,'6'!E161,IF($C$2=8,'8'!E161,IF($C$2=9,'9'!E161,IF($C$2="PERU2020",PERU2020!E161)))))))) -> 42180 | M161: =IF($C$2=2,'2'!F161,IF($C$2=3,'3'!F161,IF($C$2=4,'4'!F161,IF($C$2=5,'5'!F161,IF($C$2=6,'6'!F161,IF($C$2=8,'8'!F161,IF($C$2=9,'9'!F161,IF($C$2="PERU2020",PERU2020!F161)))))))) -> 30305 | N161: =IF($C$2=2,'2'!G161,IF($C$2=3,'3'!G161,IF($C$2=4,'4'!G161,IF($C$2=5,'5'!G161,IF($C$2=6,'6'!G161,IF($C$2=8,'8'!G161,IF($C$2=9,'9'!G161,IF($C$2="PERU2020",PERU2020!G161)))))))) -> 24344 | O161: =IF($C$2=2,'2'!H161,IF($C$2=3,'3'!H161,IF($C$2=4,'4'!H161,IF($C$2=5,'5'!H161,IF($C$2=6,'6'!H161,IF($C$2=8,'8'!H161,IF($C$2=9,'9'!H161,IF($C$2="PERU2020",PERU2020!H161)))))))) -> 19544 | Q161: 59604 | R161: 42180 | S161: 30305 | T161: 24344 | U161: 19544
A162: 62 | B162: 62 | D162: 65240 | E162: 46190 | F162: 33182 | G162: 26658 | H162: 21403 | K162: =IF($C$2=2,'2'!D162,IF($C$2=3,'3'!D162,IF($C$2=4,'4'!D162,IF($C$2=5,'5'!D162,IF($C$2=6,'6'!D162,IF($C$2=8,'8'!D162,IF($C$2=9,'9'!D162,IF($C$2="PERU2020",PERU2020!D162)))))))) -> 65240 | L162: =IF($C$2=2,'2'!E162,IF($C$2=3,'3'!E162,IF($C$2=4,'4'!E162,IF($C$2=5,'5'!E162,IF($C$2=6,'6'!E162,IF($C$2=8,'8'!E162,IF($C$2=9,'9'!E162,IF($C$2="PERU2020",PERU2020!E162)))))))) -> 46190 | M162: =IF($C$2=2,'2'!F162,IF($C$2=3,'3'!F162,IF($C$2=4,'4'!F162,IF($C$2=5,'5'!F162,IF($C$2=6,'6'!F162,IF($C$2=8,'8'!F162,IF($C$2=9,'9'!F162,IF($C$2="PERU2020",PERU2020!F162)))))))) -> 33182 | N162: =IF($C$2=2,'2'!G162,IF($C$2=3,'3'!G162,IF($C$2=4,'4'!G162,IF($C$2=5,'5'!G162,IF($C$2=6,'6'!G162,IF($C$2=8,'8'!G162,IF($C$2=9,'9'!G162,IF($C$2="PERU2020",PERU2020!G162)))))))) -> 26658 | O162: =IF($C$2=2,'2'!H162,IF($C$2=3,'3'!H162,IF($C$2=4,'4'!H162,IF($C$2=5,'5'!H162,IF($C$2=6,'6'!H162,IF($C$2=8,'8'!H162,IF($C$2=9,'9'!H162,IF($C$2="PERU2020",PERU2020!H162)))))))) -> 21403 | Q162: 65240 | R162: 46190 | S162: 33182 | T162: 26658 | U162: 21403
A163: 63 | B163: 63 | D163: 69373 | E163: 49114 | F163: 35277 | G163: 28350 | H163: 22765 | K163: =IF($C$2=2,'2'!D163,IF($C$2=3,'3'!D163,IF($C$2=4,'4'!D163,IF($C$2=5,'5'!D163,IF($C$2=6,'6'!D163,IF($C$2=8,'8'!D163,IF($C$2=9,'9'!D163,IF($C$2="PERU2020",PERU2020!D163)))))))) -> 69373 | L163: =IF($C$2=2,'2'!E163,IF($C$2=3,'3'!E163,IF($C$2=4,'4'!E163,IF($C$2=5,'5'!E163,IF($C$2=6,'6'!E163,IF($C$2=8,'8'!E163,IF($C$2=9,'9'!E163,IF($C$2="PERU2020",PERU2020!E163)))))))) -> 49114 | M163: =IF($C$2=2,'2'!F163,IF($C$2=3,'3'!F163,IF($C$2=4,'4'!F163,IF($C$2=5,'5'!F163,IF($C$2=6,'6'!F163,IF($C$2=8,'8'!F163,IF($C$2=9,'9'!F163,IF($C$2="PERU2020",PERU2020!F163)))))))) -> 35277 | N163: =IF($C$2=2,'2'!G163,IF($C$2=3,'3'!G163,IF($C$2=4,'4'!G163,IF($C$2=5,'5'!G163,IF($C$2=6,'6'!G163,IF($C$2=8,'8'!G163,IF($C$2=9,'9'!G163,IF($C$2="PERU2020",PERU2020!G163)))))))) -> 28350 | O163: =IF($C$2=2,'2'!H163,IF($C$2=3,'3'!H163,IF($C$2=4,'4'!H163,IF($C$2=5,'5'!H163,IF($C$2=6,'6'!H163,IF($C$2=8,'8'!H163,IF($C$2=9,'9'!H163,IF($C$2="PERU2020",PERU2020!H163)))))))) -> 22765 | Q163: 69373 | R163: 49114 | S163: 35277 | T163: 28350 | U163: 22765
A164: 64 | B164: 64 | D164: 75043 | E164: 53134 | F164: 38171 | G164: 30659 | H164: 24636 | K164: =IF($C$2=2,'2'!D164,IF($C$2=3,'3'!D164,IF($C$2=4,'4'!D164,IF($C$2=5,'5'!D164,IF($C$2=6,'6'!D164,IF($C$2=8,'8'!D164,IF($C$2=9,'9'!D164,IF($C$2="PERU2020",PERU2020!D164)))))))) -> 75043 | L164: =IF($C$2=2,'2'!E164,IF($C$2=3,'3'!E164,IF($C$2=4,'4'!E164,IF($C$2=5,'5'!E164,IF($C$2=6,'6'!E164,IF($C$2=8,'8'!E164,IF($C$2=9,'9'!E164,IF($C$2="PERU2020",PERU2020!E164)))))))) -> 53134 | M164: =IF($C$2=2,'2'!F164,IF($C$2=3,'3'!F164,IF($C$2=4,'4'!F164,IF($C$2=5,'5'!F164,IF($C$2=6,'6'!F164,IF($C$2=8,'8'!F164,IF($C$2=9,'9'!F164,IF($C$2="PERU2020",PERU2020!F164)))))))) -> 38171 | N164: =IF($C$2=2,'2'!G164,IF($C$2=3,'3'!G164,IF($C$2=4,'4'!G164,IF($C$2=5,'5'!G164,IF($C$2=6,'6'!G164,IF($C$2=8,'8'!G164,IF($C$2=9,'9'!G164,IF($C$2="PERU2020",PERU2020!G164)))))))) -> 30659 | O164: =IF($C$2=2,'2'!H164,IF($C$2=3,'3'!H164,IF($C$2=4,'4'!H164,IF($C$2=5,'5'!H164,IF($C$2=6,'6'!H164,IF($C$2=8,'8'!H164,IF($C$2=9,'9'!H164,IF($C$2="PERU2020",PERU2020!H164)))))))) -> 24636 | Q164: 75043 | R164: 53134 | S164: 38171 | T164: 30659 | U164: 24636
A165: 65 | B165: 65 | D165: 98099 | E165: 69320 | F165: 48261 | G165: 40888 | H165: 34720 | K165: =IF($C$2=2,'2'!D165,IF($C$2=3,'3'!D165,IF($C$2=4,'4'!D165,IF($C$2=5,'5'!D165,IF($C$2=6,'6'!D165,IF($C$2=8,'8'!D165,IF($C$2=9,'9'!D165,IF($C$2="PERU2020",PERU2020!D165)))))))) -> 98099 | L165: =IF($C$2=2,'2'!E165,IF($C$2=3,'3'!E165,IF($C$2=4,'4'!E165,IF($C$2=5,'5'!E165,IF($C$2=6,'6'!E165,IF($C$2=8,'8'!E165,IF($C$2=9,'9'!E165,IF($C$2="PERU2020",PERU2020!E165)))))))) -> 69320 | M165: =IF($C$2=2,'2'!F165,IF($C$2=3,'3'!F165,IF($C$2=4,'4'!F165,IF($C$2=5,'5'!F165,IF($C$2=6,'6'!F165,IF($C$2=8,'8'!F165,IF($C$2=9,'9'!F165,IF($C$2="PERU2020",PERU2020!F165)))))))) -> 48261 | N165: =IF($C$2=2,'2'!G165,IF($C$2=3,'3'!G165,IF($C$2=4,'4'!G165,IF($C$2=5,'5'!G165,IF($C$2=6,'6'!G165,IF($C$2=8,'8'!G165,IF($C$2=9,'9'!G165,IF($C$2="PERU2020",PERU2020!G165)))))))) -> 40888 | O165: =IF($C$2=2,'2'!H165,IF($C$2=3,'3'!H165,IF($C$2=4,'4'!H165,IF($C$2=5,'5'!H165,IF($C$2=6,'6'!H165,IF($C$2=8,'8'!H165,IF($C$2=9,'9'!H165,IF($C$2="PERU2020",PERU2020!H165)))))))) -> 34720 | Q165: 98099 | R165: 69320 | S165: 48261 | T165: 40888 | U165: 34720
A166: 66 | B166: 66 | D166: 113961 | E166: 80539 | F166: 56071 | G166: 47528 | H166: 40352 | K166: =IF($C$2=2,'2'!D166,IF($C$2=3,'3'!D166,IF($C$2=4,'4'!D166,IF($C$2=5,'5'!D166,IF($C$2=6,'6'!D166,IF($C$2=8,'8'!D166,IF($C$2=9,'9'!D166,IF($C$2="PERU2020",PERU2020!D166)))))))) -> 113961 | L166: =IF($C$2=2,'2'!E166,IF($C$2=3,'3'!E166,IF($C$2=4,'4'!E166,IF($C$2=5,'5'!E166,IF($C$2=6,'6'!E166,IF($C$2=8,'8'!E166,IF($C$2=9,'9'!E166,IF($C$2="PERU2020",PERU2020!E166)))))))) -> 80539 | M166: =IF($C$2=2,'2'!F166,IF($C$2=3,'3'!F166,IF($C$2=4,'4'!F166,IF($C$2=5,'5'!F166,IF($C$2=6,'6'!F166,IF($C$2=8,'8'!F166,IF($C$2=9,'9'!F166,IF($C$2="PERU2020",PERU2020!F166)))))))) -> 56071 | N166: =IF($C$2=2,'2'!G166,IF($C$2=3,'3'!G166,IF($C$2=4,'4'!G166,IF($C$2=5,'5'!G166,IF($C$2=6,'6'!G166,IF($C$2=8,'8'!G166,IF($C$2=9,'9'!G166,IF($C$2="PERU2020",PERU2020!G166)))))))) -> 47528 | O166: =IF($C$2=2,'2'!H166,IF($C$2=3,'3'!H166,IF($C$2=4,'4'!H166,IF($C$2=5,'5'!H166,IF($C$2=6,'6'!H166,IF($C$2=8,'8'!H166,IF($C$2=9,'9'!H166,IF($C$2="PERU2020",PERU2020!H166)))))))) -> 40352 | Q166: 113961 | R166: 80539 | S166: 56071 | T166: 47528 | U166: 40352
A167: 67 | B167: 67 | D167: 124471 | E167: 87969 | F167: 61245 | G167: 51908 | H167: 44068 | K167: =IF($C$2=2,'2'!D167,IF($C$2=3,'3'!D167,IF($C$2=4,'4'!D167,IF($C$2=5,'5'!D167,IF($C$2=6,'6'!D167,IF($C$2=8,'8'!D167,IF($C$2=9,'9'!D167,IF($C$2="PERU2020",PERU2020!D167)))))))) -> 124471 | L167: =IF($C$2=2,'2'!E167,IF($C$2=3,'3'!E167,IF($C$2=4,'4'!E167,IF($C$2=5,'5'!E167,IF($C$2=6,'6'!E167,IF($C$2=8,'8'!E167,IF($C$2=9,'9'!E167,IF($C$2="PERU2020",PERU2020!E167)))))))) -> 87969 | M167: =IF($C$2=2,'2'!F167,IF($C$2=3,'3'!F167,IF($C$2=4,'4'!F167,IF($C$2=5,'5'!F167,IF($C$2=6,'6'!F167,IF($C$2=8,'8'!F167,IF($C$2=9,'9'!F167,IF($C$2="PERU2020",PERU2020!F167)))))))) -> 61245 | N167: =IF($C$2=2,'2'!G167,IF($C$2=3,'3'!G167,IF($C$2=4,'4'!G167,IF($C$2=5,'5'!G167,IF($C$2=6,'6'!G167,IF($C$2=8,'8'!G167,IF($C$2=9,'9'!G167,IF($C$2="PERU2020",PERU2020!G167)))))))) -> 51908 | O167: =IF($C$2=2,'2'!H167,IF($C$2=3,'3'!H167,IF($C$2=4,'4'!H167,IF($C$2=5,'5'!H167,IF($C$2=6,'6'!H167,IF($C$2=8,'8'!H167,IF($C$2=9,'9'!H167,IF($C$2="PERU2020",PERU2020!H167)))))))) -> 44068 | Q167: 124471 | R167: 87969 | S167: 61245 | T167: 51908 | U167: 44068
A168: 68 | B168: 68 | D168: 137817 | E168: 97384 | F168: 67817 | G168: 57476 | H168: 48786 | K168: =IF($C$2=2,'2'!D168,IF($C$2=3,'3'!D168,IF($C$2=4,'4'!D168,IF($C$2=5,'5'!D168,IF($C$2=6,'6'!D168,IF($C$2=8,'8'!D168,IF($C$2=9,'9'!D168,IF($C$2="PERU2020",PERU2020!D168)))))))) -> 137817 | L168: =IF($C$2=2,'2'!E168,IF($C$2=3,'3'!E168,IF($C$2=4,'4'!E168,IF($C$2=5,'5'!E168,IF($C$2=6,'6'!E168,IF($C$2=8,'8'!E168,IF($C$2=9,'9'!E168,IF($C$2="PERU2020",PERU2020!E168)))))))) -> 97384 | M168: =IF($C$2=2,'2'!F168,IF($C$2=3,'3'!F168,IF($C$2=4,'4'!F168,IF($C$2=5,'5'!F168,IF($C$2=6,'6'!F168,IF($C$2=8,'8'!F168,IF($C$2=9,'9'!F168,IF($C$2="PERU2020",PERU2020!F168)))))))) -> 67817 | N168: =IF($C$2=2,'2'!G168,IF($C$2=3,'3'!G168,IF($C$2=4,'4'!G168,IF($C$2=5,'5'!G168,IF($C$2=6,'6'!G168,IF($C$2=8,'8'!G168,IF($C$2=9,'9'!G168,IF($C$2="PERU2020",PERU2020!G168)))))))) -> 57476 | O168: =IF($C$2=2,'2'!H168,IF($C$2=3,'3'!H168,IF($C$2=4,'4'!H168,IF($C$2=5,'5'!H168,IF($C$2=6,'6'!H168,IF($C$2=8,'8'!H168,IF($C$2=9,'9'!H168,IF($C$2="PERU2020",PERU2020!H168)))))))) -> 48786 | Q168: 137817 | R168: 97384 | S168: 67817 | T168: 57476 | U168: 48786
A169: 69 | B169: 69 | D169: 151631 | E169: 107150 | F169: 74606 | G169: 63237 | H169: 53694 | K169: =IF($C$2=2,'2'!D169,IF($C$2=3,'3'!D169,IF($C$2=4,'4'!D169,IF($C$2=5,'5'!D169,IF($C$2=6,'6'!D169,IF($C$2=8,'8'!D169,IF($C$2=9,'9'!D169,IF($C$2="PERU2020",PERU2020!D169)))))))) -> 151631 | L169: =IF($C$2=2,'2'!E169,IF($C$2=3,'3'!E169,IF($C$2=4,'4'!E169,IF($C$2=5,'5'!E169,IF($C$2=6,'6'!E169,IF($C$2=8,'8'!E169,IF($C$2=9,'9'!E169,IF($C$2="PERU2020",PERU2020!E169)))))))) -> 107150 | M169: =IF($C$2=2,'2'!F169,IF($C$2=3,'3'!F169,IF($C$2=4,'4'!F169,IF($C$2=5,'5'!F169,IF($C$2=6,'6'!F169,IF($C$2=8,'8'!F169,IF($C$2=9,'9'!F169,IF($C$2="PERU2020",PERU2020!F169)))))))) -> 74606 | N169: =IF($C$2=2,'2'!G169,IF($C$2=3,'3'!G169,IF($C$2=4,'4'!G169,IF($C$2=5,'5'!G169,IF($C$2=6,'6'!G169,IF($C$2=8,'8'!G169,IF($C$2=9,'9'!G169,IF($C$2="PERU2020",PERU2020!G169)))))))) -> 63237 | O169: =IF($C$2=2,'2'!H169,IF($C$2=3,'3'!H169,IF($C$2=4,'4'!H169,IF($C$2=5,'5'!H169,IF($C$2=6,'6'!H169,IF($C$2=8,'8'!H169,IF($C$2=9,'9'!H169,IF($C$2="PERU2020",PERU2020!H169)))))))) -> 53694 | Q169: 151631 | R169: 107150 | S169: 74606 | T169: 63237 | U169: 53694
A170: 70 | B170: 70 | D170: 186606 | E170: 130483 | F170: 87826 | G170: 73678 | H170: 63156 | K170: =IF($C$2=2,'2'!D170,IF($C$2=3,'3'!D170,IF($C$2=4,'4'!D170,IF($C$2=5,'5'!D170,IF($C$2=6,'6'!D170,IF($C$2=8,'8'!D170,IF($C$2=9,'9'!D170,IF($C$2="PERU2020",PERU2020!D170)))))))) -> 186606 | L170: =IF($C$2=2,'2'!E170,IF($C$2=3,'3'!E170,IF($C$2=4,'4'!E170,IF($C$2=5,'5'!E170,IF($C$2=6,'6'!E170,IF($C$2=8,'8'!E170,IF($C$2=9,'9'!E170,IF($C$2="PERU2020",PERU2020!E170)))))))) -> 130483 | M170: =IF($C$2=2,'2'!F170,IF($C$2=3,'3'!F170,IF($C$2=4,'4'!F170,IF($C$2=5,'5'!F170,IF($C$2=6,'6'!F170,IF($C$2=8,'8'!F170,IF($C$2=9,'9'!F170,IF($C$2="PERU2020",PERU2020!F170)))))))) -> 87826 | N170: =IF($C$2=2,'2'!G170,IF($C$2=3,'3'!G170,IF($C$2=4,'4'!G170,IF($C$2=5,'5'!G170,IF($C$2=6,'6'!G170,IF($C$2=8,'8'!G170,IF($C$2=9,'9'!G170,IF($C$2="PERU2020",PERU2020!G170)))))))) -> 73678 | O170: =IF($C$2=2,'2'!H170,IF($C$2=3,'3'!H170,IF($C$2=4,'4'!H170,IF($C$2=5,'5'!H170,IF($C$2=6,'6'!H170,IF($C$2=8,'8'!H170,IF($C$2=9,'9'!H170,IF($C$2="PERU2020",PERU2020!H170)))))))) -> 63156 | Q170: 186606 | R170: 130483 | S170: 87826 | T170: 73678 | U170: 63156
A171: 71 | B171: 71 | D171: 193930 | E171: 135594 | F171: 91278 | G171: 76579 | H171: 65641 | K171: =IF($C$2=2,'2'!D171,IF($C$2=3,'3'!D171,IF($C$2=4,'4'!D171,IF($C$2=5,'5'!D171,IF($C$2=6,'6'!D171,IF($C$2=8,'8'!D171,IF($C$2=9,'9'!D171,IF($C$2="PERU2020",PERU2020!D171)))))))) -> 193930 | L171: =IF($C$2=2,'2'!E171,IF($C$2=3,'3'!E171,IF($C$2=4,'4'!E171,IF($C$2=5,'5'!E171,IF($C$2=6,'6'!E171,IF($C$2=8,'8'!E171,IF($C$2=9,'9'!E171,IF($C$2="PERU2020",PERU2020!E171)))))))) -> 135594 | M171: =IF($C$2=2,'2'!F171,IF($C$2=3,'3'!F171,IF($C$2=4,'4'!F171,IF($C$2=5,'5'!F171,IF($C$2=6,'6'!F171,IF($C$2=8,'8'!F171,IF($C$2=9,'9'!F171,IF($C$2="PERU2020",PERU2020!F171)))))))) -> 91278 | N171: =IF($C$2=2,'2'!G171,IF($C$2=3,'3'!G171,IF($C$2=4,'4'!G171,IF($C$2=5,'5'!G171,IF($C$2=6,'6'!G171,IF($C$2=8,'8'!G171,IF($C$2=9,'9'!G171,IF($C$2="PERU2020",PERU2020!G171)))))))) -> 76579 | O171: =IF($C$2=2,'2'!H171,IF($C$2=3,'3'!H171,IF($C$2=4,'4'!H171,IF($C$2=5,'5'!H171,IF($C$2=6,'6'!H171,IF($C$2=8,'8'!H171,IF($C$2=9,'9'!H171,IF($C$2="PERU2020",PERU2020!H171)))))))) -> 65641 | Q171: 193930 | R171: 135594 | S171: 91278 | T171: 76579 | U171: 65641
A172: 72 | B172: 72 | D172: 199431 | E172: 139428 | F172: 93859 | G172: 78751 | H172: 67498 | K172: =IF($C$2=2,'2'!D172,IF($C$2=3,'3'!D172,IF($C$2=4,'4'!D172,IF($C$2=5,'5'!D172,IF($C$2=6,'6'!D172,IF($C$2=8,'8'!D172,IF($C$2=9,'9'!D172,IF($C$2="PERU2020",PERU2020!D172)))))))) -> 199431 | L172: =IF($C$2=2,'2'!E172,IF($C$2=3,'3'!E172,IF($C$2=4,'4'!E172,IF($C$2=5,'5'!E172,IF($C$2=6,'6'!E172,IF($C$2=8,'8'!E172,IF($C$2=9,'9'!E172,IF($C$2="PERU2020",PERU2020!E172)))))))) -> 139428 | M172: =IF($C$2=2,'2'!F172,IF($C$2=3,'3'!F172,IF($C$2=4,'4'!F172,IF($C$2=5,'5'!F172,IF($C$2=6,'6'!F172,IF($C$2=8,'8'!F172,IF($C$2=9,'9'!F172,IF($C$2="PERU2020",PERU2020!F172)))))))) -> 93859 | N172: =IF($C$2=2,'2'!G172,IF($C$2=3,'3'!G172,IF($C$2=4,'4'!G172,IF($C$2=5,'5'!G172,IF($C$2=6,'6'!G172,IF($C$2=8,'8'!G172,IF($C$2=9,'9'!G172,IF($C$2="PERU2020",PERU2020!G172)))))))) -> 78751 | O172: =IF($C$2=2,'2'!H172,IF($C$2=3,'3'!H172,IF($C$2=4,'4'!H172,IF($C$2=5,'5'!H172,IF($C$2=6,'6'!H172,IF($C$2=8,'8'!H172,IF($C$2=9,'9'!H172,IF($C$2="PERU2020",PERU2020!H172)))))))) -> 67498 | Q172: 199431 | R172: 139428 | S172: 93859 | T172: 78751 | U172: 67498
A173: 73 | B173: 73 | D173: 206740 | E173: 144555 | F173: 97300 | G173: 81637 | H173: 69994 | K173: =IF($C$2=2,'2'!D173,IF($C$2=3,'3'!D173,IF($C$2=4,'4'!D173,IF($C$2=5,'5'!D173,IF($C$2=6,'6'!D173,IF($C$2=8,'8'!D173,IF($C$2=9,'9'!D173,IF($C$2="PERU2020",PERU2020!D173)))))))) -> 206740 | L173: =IF($C$2=2,'2'!E173,IF($C$2=3,'3'!E173,IF($C$2=4,'4'!E173,IF($C$2=5,'5'!E173,IF($C$2=6,'6'!E173,IF($C$2=8,'8'!E173,IF($C$2=9,'9'!E173,IF($C$2="PERU2020",PERU2020!E173)))))))) -> 144555 | M173: =IF($C$2=2,'2'!F173,IF($C$2=3,'3'!F173,IF($C$2=4,'4'!F173,IF($C$2=5,'5'!F173,IF($C$2=6,'6'!F173,IF($C$2=8,'8'!F173,IF($C$2=9,'9'!F173,IF($C$2="PERU2020",PERU2020!F173)))))))) -> 97300 | N173: =IF($C$2=2,'2'!G173,IF($C$2=3,'3'!G173,IF($C$2=4,'4'!G173,IF($C$2=5,'5'!G173,IF($C$2=6,'6'!G173,IF($C$2=8,'8'!G173,IF($C$2=9,'9'!G173,IF($C$2="PERU2020",PERU2020!G173)))))))) -> 81637 | O173: =IF($C$2=2,'2'!H173,IF($C$2=3,'3'!H173,IF($C$2=4,'4'!H173,IF($C$2=5,'5'!H173,IF($C$2=6,'6'!H173,IF($C$2=8,'8'!H173,IF($C$2=9,'9'!H173,IF($C$2="PERU2020",PERU2020!H173)))))))) -> 69994 | Q173: 206740 | R173: 144555 | S173: 97300 | T173: 81637 | U173: 69994
A174: 74 | B174: 74 | D174: 210428 | E174: 147119 | F174: 99033 | G174: 83084 | H174: 71217 | K174: =IF($C$2=2,'2'!D174,IF($C$2=3,'3'!D174,IF($C$2=4,'4'!D174,IF($C$2=5,'5'!D174,IF($C$2=6,'6'!D174,IF($C$2=8,'8'!D174,IF($C$2=9,'9'!D174,IF($C$2="PERU2020",PERU2020!D174)))))))) -> 210428 | L174: =IF($C$2=2,'2'!E174,IF($C$2=3,'3'!E174,IF($C$2=4,'4'!E174,IF($C$2=5,'5'!E174,IF($C$2=6,'6'!E174,IF($C$2=8,'8'!E174,IF($C$2=9,'9'!E174,IF($C$2="PERU2020",PERU2020!E174)))))))) -> 147119 | M174: =IF($C$2=2,'2'!F174,IF($C$2=3,'3'!F174,IF($C$2=4,'4'!F174,IF($C$2=5,'5'!F174,IF($C$2=6,'6'!F174,IF($C$2=8,'8'!F174,IF($C$2=9,'9'!F174,IF($C$2="PERU2020",PERU2020!F174)))))))) -> 99033 | N174: =IF($C$2=2,'2'!G174,IF($C$2=3,'3'!G174,IF($C$2=4,'4'!G174,IF($C$2=5,'5'!G174,IF($C$2=6,'6'!G174,IF($C$2=8,'8'!G174,IF($C$2=9,'9'!G174,IF($C$2="PERU2020",PERU2020!G174)))))))) -> 83084 | O174: =IF($C$2=2,'2'!H174,IF($C$2=3,'3'!H174,IF($C$2=4,'4'!H174,IF($C$2=5,'5'!H174,IF($C$2=6,'6'!H174,IF($C$2=8,'8'!H174,IF($C$2=9,'9'!H174,IF($C$2="PERU2020",PERU2020!H174)))))))) -> 71217 | Q174: 210428 | R174: 147119 | S174: 99033 | T174: 83084 | U174: 71217
A175: 75 | B175: 75+ | D175: 219566 | E175: 153520 | F175: 103338 | G175: 86696 | H175: 74315 | K175: =IF($C$2=2,'2'!D175,IF($C$2=3,'3'!D175,IF($C$2=4,'4'!D175,IF($C$2=5,'5'!D175,IF($C$2=6,'6'!D175,IF($C$2=8,'8'!D175,IF($C$2=9,'9'!D175,IF($C$2="PERU2020",PERU2020!D175)))))))) -> 219566 | L175: =IF($C$2=2,'2'!E175,IF($C$2=3,'3'!E175,IF($C$2=4,'4'!E175,IF($C$2=5,'5'!E175,IF($C$2=6,'6'!E175,IF($C$2=8,'8'!E175,IF($C$2=9,'9'!E175,IF($C$2="PERU2020",PERU2020!E175)))))))) -> 153520 | M175: =IF($C$2=2,'2'!F175,IF($C$2=3,'3'!F175,IF($C$2=4,'4'!F175,IF($C$2=5,'5'!F175,IF($C$2=6,'6'!F175,IF($C$2=8,'8'!F175,IF($C$2=9,'9'!F175,IF($C$2="PERU2020",PERU2020!F175)))))))) -> 103338 | N175: =IF($C$2=2,'2'!G175,IF($C$2=3,'3'!G175,IF($C$2=4,'4'!G175,IF($C$2=5,'5'!G175,IF($C$2=6,'6'!G175,IF($C$2=8,'8'!G175,IF($C$2=9,'9'!G175,IF($C$2="PERU2020",PERU2020!G175)))))))) -> 86696 | O175: =IF($C$2=2,'2'!H175,IF($C$2=3,'3'!H175,IF($C$2=4,'4'!H175,IF($C$2=5,'5'!H175,IF($C$2=6,'6'!H175,IF($C$2=8,'8'!H175,IF($C$2=9,'9'!H175,IF($C$2="PERU2020",PERU2020!H175)))))))) -> 74315 | Q175: 219566 | R175: 153520 | S175: 103338 | T175: 86696 | U175: 74315
A176: 1 | B176: 1 Child | D176: 7998 | E176: 5856 | F176: 4175 | G176: 3275 | H176: 2430 | K176: =IF($C$2=2,'2'!D176,IF($C$2=3,'3'!D176,IF($C$2=4,'4'!D176,IF($C$2=5,'5'!D176,IF($C$2=6,'6'!D176,IF($C$2=8,'8'!D176,IF($C$2=9,'9'!D176,IF($C$2="PERU2020",PERU2020!D176)))))))) -> 7998 | L176: =IF($C$2=2,'2'!E176,IF($C$2=3,'3'!E176,IF($C$2=4,'4'!E176,IF($C$2=5,'5'!E176,IF($C$2=6,'6'!E176,IF($C$2=8,'8'!E176,IF($C$2=9,'9'!E176,IF($C$2="PERU2020",PERU2020!E176)))))))) -> 5856 | M176: =IF($C$2=2,'2'!F176,IF($C$2=3,'3'!F176,IF($C$2=4,'4'!F176,IF($C$2=5,'5'!F176,IF($C$2=6,'6'!F176,IF($C$2=8,'8'!F176,IF($C$2=9,'9'!F176,IF($C$2="PERU2020",PERU2020!F176)))))))) -> 4175 | N176: =IF($C$2=2,'2'!G176,IF($C$2=3,'3'!G176,IF($C$2=4,'4'!G176,IF($C$2=5,'5'!G176,IF($C$2=6,'6'!G176,IF($C$2=8,'8'!G176,IF($C$2=9,'9'!G176,IF($C$2="PERU2020",PERU2020!G176)))))))) -> 3275 | O176: =IF($C$2=2,'2'!H176,IF($C$2=3,'3'!H176,IF($C$2=4,'4'!H176,IF($C$2=5,'5'!H176,IF($C$2=6,'6'!H176,IF($C$2=8,'8'!H176,IF($C$2=9,'9'!H176,IF($C$2="PERU2020",PERU2020!H176)))))))) -> 2430 | Q176: =(K176)*$M$2 -> 7998 | R176: =(L176)*$M$2 -> 5856 | S176: 4175 | T176: 3275 | U176: 2430
A177: 2 | B177: 2 Children | D177: 12738 | E177: 9316 | F177: 6632 | G177: 5199 | H177: 3859 | K177: =IF($C$2=2,'2'!D177,IF($C$2=3,'3'!D177,IF($C$2=4,'4'!D177,IF($C$2=5,'5'!D177,IF($C$2=6,'6'!D177,IF($C$2=8,'8'!D177,IF($C$2=9,'9'!D177,IF($C$2="PERU2020",PERU2020!D177)))))))) -> 12738 | L177: =IF($C$2=2,'2'!E177,IF($C$2=3,'3'!E177,IF($C$2=4,'4'!E177,IF($C$2=5,'5'!E177,IF($C$2=6,'6'!E177,IF($C$2=8,'8'!E177,IF($C$2=9,'9'!E177,IF($C$2="PERU2020",PERU2020!E177)))))))) -> 9316 | M177: =IF($C$2=2,'2'!F177,IF($C$2=3,'3'!F177,IF($C$2=4,'4'!F177,IF($C$2=5,'5'!F177,IF($C$2=6,'6'!F177,IF($C$2=8,'8'!F177,IF($C$2=9,'9'!F177,IF($C$2="PERU2020",PERU2020!F177)))))))) -> 6632 | N177: =IF($C$2=2,'2'!G177,IF($C$2=3,'3'!G177,IF($C$2=4,'4'!G177,IF($C$2=5,'5'!G177,IF($C$2=6,'6'!G177,IF($C$2=8,'8'!G177,IF($C$2=9,'9'!G177,IF($C$2="PERU2020",PERU2020!G177)))))))) -> 5199 | O177: =IF($C$2=2,'2'!H177,IF($C$2=3,'3'!H177,IF($C$2=4,'4'!H177,IF($C$2=5,'5'!H177,IF($C$2=6,'6'!H177,IF($C$2=8,'8'!H177,IF($C$2=9,'9'!H177,IF($C$2="PERU2020",PERU2020!H177)))))))) -> 3859 | Q177: =(K177)*$M$2 -> 12738 | R177: =(L177)*$M$2 -> 9316 | S177: =(M177)*$M$2 -> 6632 | T177: =(N177)*$M$2 -> 5199 | U177: =(O177)*$M$2 -> 3859
A178: 3 | B178: 3+ Children | D178: 18669 | E178: 13646 | F178: 9712 | G178: 7619 | H178: 5656 | K178: =IF($C$2=2,'2'!D178,IF($C$2=3,'3'!D178,IF($C$2=4,'4'!D178,IF($C$2=5,'5'!D178,IF($C$2=6,'6'!D178,IF($C$2=8,'8'!D178,IF($C$2=9,'9'!D178,IF($C$2="PERU2020",PERU2020!D178)))))))) -> 18669 | L178: =IF($C$2=2,'2'!E178,IF($C$2=3,'3'!E178,IF($C$2=4,'4'!E178,IF($C$2=5,'5'!E178,IF($C$2=6,'6'!E178,IF($C$2=8,'8'!E178,IF($C$2=9,'9'!E178,IF($C$2="PERU2020",PERU2020!E178)))))))) -> 13646 | M178: =IF($C$2=2,'2'!F178,IF($C$2=3,'3'!F178,IF($C$2=4,'4'!F178,IF($C$2=5,'5'!F178,IF($C$2=6,'6'!F178,IF($C$2=8,'8'!F178,IF($C$2=9,'9'!F178,IF($C$2="PERU2020",PERU2020!F178)))))))) -> 9712 | N178: =IF($C$2=2,'2'!G178,IF($C$2=3,'3'!G178,IF($C$2=4,'4'!G178,IF($C$2=5,'5'!G178,IF($C$2=6,'6'!G178,IF($C$2=8,'8'!G178,IF($C$2=9,'9'!G178,IF($C$2="PERU2020",PERU2020!G178)))))))) -> 7619 | O178: =IF($C$2=2,'2'!H178,IF($C$2=3,'3'!H178,IF($C$2=4,'4'!H178,IF($C$2=5,'5'!H178,IF($C$2=6,'6'!H178,IF($C$2=8,'8'!H178,IF($C$2=9,'9'!H178,IF($C$2="PERU2020",PERU2020!H178)))))))) -> 5656 | Q178: 18669 | R178: 13646 | S178: 9712 | T178: 7619 | U178: 5656
A179: 1 | B179: Rider Comp. Maternidad | D179: 0 | E179: 0 | F179: 225 | G179: 225 | H179: 225
A180: 1 | B180: Transplante de organos | D180: 0 | E180: 0 | F180: 0 | G180: 0 | H180: 0
A184: TARIFAS SEMESTRALES
A185: EDAD
D186: CW2 | E186: CW3 | F186: CW4 | G186: CW5 | H186: CW6
A187: 18 | B187: 18-24 | D187: =$G$2*D152 -> 12235.58 | E187: 8412.16 | F187: 5431.97 | G187: 3592.34 | H187: 2731.62
A188: 25 | B188: 25-29 | D188: 12836.07 | E188: 9308.39 | F188: 6015.5 | G188: 3979.77 | H188: 3031.6
A189: 30 | B189: 30-34 | D189: 13395.75 | E189: 9956.05 | F189: 6750.08 | G189: 4813.99 | H189: 3671.31
A190: 35 | B190: 35-39 | D190: 15008.54 | E190: 11145.37 | F190: 7563.63 | G190: 5392.75 | H190: 4120.22
A191: 40 | B191: 40-44 | D191: 17372.87 | E191: 12220.74 | F191: 8407.92 | G191: 5943.95 | H191: 4537.33
A192: 45 | B192: 45-49 | D192: 19410.19 | E192: 13657.57 | F192: 9404.85 | G192: 6644.61 | H192: 5076.34
A193: 50 | B193: 50-54 | D193: 25375.34 | E193: 18013.64 | F193: 12346.88 | G193: 9489.65 | H193: 7252.52
A194: 55 | B194: 55-59 | D194: 27002.44 | E194: 19169.04 | F194: 13134.46 | G194: 10098.09 | H194: 7722.1
A195: 60 | B195: 60 | D195: 29407.05 | E195: 20815.22 | F195: 14956.07 | G195: 12014.04 | H195: 9639.64
A196: 61 | B196: 61 | D196: 31590.12 | E196: 22355.4 | F196: 16061.65 | G196: 12902.32 | H196: 10358.32
A197: 62 | B197: 62 | D197: =$G$2*D162 -> 34577.2 | E197: 24480.7 | F197: 17586.46 | G197: 14128.74 | H197: 11343.59
A198: 63 | B198: 63 | D198: 36767.69 | E198: 26030.42 | F198: 18696.81 | G198: 15025.5 | H198: 12065.45
A199: 64 | B199: 64 | D199: 39772.79 | E199: 28161.02 | F199: 20230.63 | G199: 16249.27 | H199: 13057.08
A200: 65 | B200: 65 | D200: 51992.47 | E200: 36739.6 | F200: 25578.33 | G200: 21670.64 | H200: 18401.6
A201: 66 | B201: 66 | D201: 60399.33 | E201: 42685.67 | F201: 29717.63 | G201: 25189.84 | H201: 21386.56
A202: 67 | B202: 67 | D202: 65969.63 | E202: 46623.57 | F202: 32459.85 | G202: 27511.24 | H202: 23356.04
A203: 68 | B203: 68 | D203: 73043.01 | E203: 51613.52 | F203: 35943.01 | G203: 30462.28 | H203: 25856.58
A204: 69 | B204: 69 | D204: 80364.43 | E204: 56789.5 | F204: 39541.18 | G204: 33515.61 | H204: 28457.82
A205: 70 | B205: 70 | D205: 98901.18 | E205: 69155.99 | F205: 46547.78 | G205: 39049.34 | H205: 33472.68
A206: 71 | B206: 71 | D206: 102782.9 | E206: 71864.82 | F206: 48377.34 | G206: 40586.87 | H206: 34789.73
A207: 72 | B207: 72 | D207: =$G$2*D172 -> 105698.43 | E207: 73896.84 | F207: 49745.27 | G207: 41738.03 | H207: 35773.94
A208: 73 | B208: 73 | D208: 109572.2 | E208: 76614.15 | F208: 51569 | G208: 43267.61 | H208: 37096.82
A209: 74 | B209: 74 | D209: 111526.84 | E209: 77973.07 | F209: 52487.49 | G209: 44034.52 | H209: 37745.01
A210: 75 | B210: 75+ | D210: 116369.98 | E210: 81365.6 | F210: 54769.14 | G210: 45948.88 | H210: 39386.95
A211: 1 | B211: 1 Child | D211: 4238.94 | E211: 3103.68 | F211: 2212.75 | G211: 1735.75 | H211: 1287.9
A212: 2 | B212: 2 Children | D212: 6751.14 | E212: 4937.48 | F212: 3514.96 | G212: 2755.47 | H212: 2045.27
A213: 3 | B213: 3+ Children | D213: 9894.57 | E213: 7232.38 | F213: 5147.36 | G213: 4038.07 | H213: 2997.68
A214: 1 | B214: Rider Comp. Maternidad | D214: =+D179*$G$2 -> 0 | E214: 0 | F214: 119.25 | G214: 119.25 | H214: 119.25
A215: 1 | B215: Transplante de organos | D215: 0 | E215: 0 | F215: 0 | G215: 0 | H215: 0
A220: COMPLETE (LATINAMERICA ONLY)
A221: TARIFAS ANUALES
A222: EDAD
... 335 more rows

Sheet 2 (hidden)
K1: D1 | L1: D2 | M1: D3 | N1: D4 | O1: D5 | P1: D6
B2: REGIÓN | C2: ='INGRESO DE DATOS'!W14 -> 2 | E2: FACTOR SEMESTRAL : | G2: 0.53 | I2: NEW BUSINESS DISCUOUNTS | K2: ='INGRESO DE DATOS'!O42 -> 1 | L2: ='INGRESO DE DATOS'!P42 -> 1 | M2: ='INGRESO DE DATOS'!Q42 -> 1 | N2: ='INGRESO DE DATOS'!R42 -> 1 | O2: ='INGRESO DE DATOS'!S42 -> 1 | P2: ='INGRESO DE DATOS'!T42 -> 1
A5: BUPA EXCLUSIVE CARE
A6: TARIFAS ANUALES
A7: EDAD
C8: DW1 | D8: DW2 | E8: DW3 | F8: DW4 | G8: DW5 | H8: DW6
A9: 18 | B9: 18-24 | D9: 27442 | E9: 18123 | F9: 11776 | G9: 7787 | H9: 6120
A10: 25 | B10: 25-29 | D10: 28782 | E10: 20029 | F10: 13042 | G10: 8635 | H10: 6781
A11: 30 | B11: 30-34 | D11: 29950 | E11: 21492 | F11: 14614 | G11: 10349 | H11: 8155
A12: 35 | B12: 35-39 | D12: 33535 | E12: 24056 | F12: 16392 | G12: 11608 | H12: 9136
A13: 40 | B13: 40-44 | D13: 38881 | E13: 26324 | F13: 18187 | G13: 12771 | H13: 10045
A14: 45 | B14: 45-49 | D14: 43477 | E14: 29438 | F14: 20333 | G14: 14278 | H14: 11241
A15: 50 | B15: 50-54 | D15: 55647 | E15: 38641 | F15: 26545 | G15: 20171 | H15: 15897
A16: 55 | B16: 55-59 | D16: 59215 | E16: 41117 | F16: 28244 | G16: 21471 | H16: 16926
A17: 60 | B17: 60 | D17: 64513 | E17: 44869 | F17: 32510 | G17: 25874 | H17: 21033
A18: 61 | B18: 61 | D18: 69311 | E18: 48206 | F18: 34915 | G18: 27816 | H18: 22606
A19: 62 | B19: 62 | D19: 75886 | E19: 52804 | F19: 38239 | G19: 30444 | H19: 24757
A20: 63 | B20: 63 | D20: 80691 | E20: 56139 | F20: 40654 | G20: 32383 | H20: 26323
A21: 64 | B21: 64 | D21: 87297 | E21: 60754 | F21: 43994 | G21: 35034 | H21: 28494
A22: 65 | B22: 65 | D22: 114127 | E22: 79247 | F22: 55639 | G22: 46736 | H22: 40193
A23: 66 | B23: 66 | D23: 132590 | E23: 92103 | F23: 64660 | G23: 54329 | H23: 46705
A24: 67 | B24: 67 | D24: 144827 | E24: 100591 | F24: 70632 | G24: 59325 | H24: 51021
A25: 68 | B25: 68 | D25: 160371 | E25: 111386 | F25: 78204 | G25: 65710 | H25: 56503
A26: 69 | B26: 69 | D26: 176455 | E26: 122547 | F26: 86054 | G26: 72294 | H26: 62181
A27: 70 | B27: 70 | D27: 217186 | E27: 149238 | F27: 101317 | G27: 84264 | H27: 73142
A28: 71 | B28: 71 | D28: 225709 | E28: 155093 | F28: 105294 | G28: 87572 | H28: 76019
A29: 72 | B29: 72 | D29: 232108 | E29: 159484 | F29: 108264 | G29: 90043 | H29: 78174
A30: 73 | B30: 73 | D30: 240630 | E30: 165355 | F30: 112239 | G30: 93371 | H30: 81052
A31: 74 | B31: 74 | D31: 244894 | E31: 168270 | F31: 114245 | G31: 95018 | H31: 82479
A32: 75 | B32: 75+ | D32: 255563 | E32: 175596 | F32: 119204 | G32: 99160 | H32: 86074
A33: 1 | B33: 1 Child | D33: 9547 | E33: 7031 | F33: 5278 | G33: 4152 | H33: 3237
A34: 2 | B34: 2 Children | D34: 15181 | E34: 11198 | F34: 8397 | G34: 6592 | H34: 5125
A35: 3 | B35: 3+ Children | D35: 22257 | E35: 16419 | F35: 12293 | G35: 9657 | H35: 7514
A36: 1 | B36: Rider Comp. Maternidad | D36: 0 | E36: 0 | F36: 225 | G36: 225 | H36: 225
A37: 1 | B37: Transplante de organos | D37: 0 | E37: 0 | F37: 0 | G37: 0 | H37: 0
A41: TARIFAS SEMESTRALES
A42: EDAD
D43: DW2 | E43: DW3 | F43: DW4 | G43: DW5 | H43: DW6
A44: 18 | B44: 18-24 | D44: =$G$2*D9 -> 14544.26 | E44: 9605.19 | F44: 6241.28 | G44: 4127.11 | H44: 3243.6
A45: 25 | B45: 25-29 | D45: 15254.46 | E45: 10615.37 | F45: 6912.26 | G45: 4576.55 | H45: 3593.93
A46: 30 | B46: 30-34 | D46: 15873.5 | E46: 11390.76 | F46: 7745.42 | G46: 5484.97 | H46: 4322.15
A47: 35 | B47: 35-39 | D47: 17773.55 | E47: 12749.68 | F47: 8687.76 | G47: 6152.24 | H47: 4842.08
A48: 40 | B48: 40-44 | D48: 20606.93 | E48: 13951.72 | F48: 9639.11 | G48: 6768.63 | H48: 5323.85
A49: 45 | B49: 45-49 | D49: 23042.81 | E49: 15602.14 | F49: 10776.49 | G49: 7567.34 | H49: 5957.73
A50: 50 | B50: 50-54 | D50: 29492.91 | E50: 20479.73 | F50: 14068.85 | G50: 10690.63 | H50: 8425.41
A51: 55 | B51: 55-59 | D51: 31383.95 | E51: 21792.01 | F51: 14969.32 | G51: 11379.63 | H51: 8970.78
A52: 60 | B52: 60 | D52: 34191.89 | E52: 23780.57 | F52: 17230.3 | G52: 13713.22 | H52: 11147.49
A53: 61 | B53: 61 | D53: 36734.83 | E53: 25549.18 | F53: 18504.95 | G53: 14742.48 | H53: 11981.18
A54: 62 | B54: 62 | D54: =$G$2*D19 -> 40219.58 | E54: 27986.12 | F54: 20266.67 | G54: 16135.32 | H54: 13121.21
A55: 63 | B55: 63 | D55: 42766.23 | E55: 29753.67 | F55: 21546.62 | G55: 17162.99 | H55: 13951.19
A56: 64 | B56: 64 | D56: 46267.41 | E56: 32199.62 | F56: 23316.82 | G56: 18568.02 | H56: 15101.82
A57: 65 | B57: 65 | D57: 60487.31 | E57: 42000.91 | F57: 29488.67 | G57: 24770.08 | H57: 21302.29
A58: 66 | B58: 66 | D58: 70272.7 | E58: 48814.59 | F58: 34269.8 | G58: 28794.37 | H58: 24753.65
A59: 67 | B59: 67 | D59: 76758.31 | E59: 53313.23 | F59: 37434.96 | G59: 31442.25 | H59: 27041.13
A60: 68 | B60: 68 | D60: 84996.63 | E60: 59034.58 | F60: 41448.12 | G60: 34826.3 | H60: 29946.59
A61: 69 | B61: 69 | D61: 93521.15 | E61: 64949.91 | F61: 45608.62 | G61: 38315.82 | H61: 32955.93
A62: 70 | B62: 70 | D62: 115108.58 | E62: 79096.14 | F62: 53698.01 | G62: 44659.92 | H62: 38765.26
A63: 71 | B63: 71 | D63: 119625.77 | E63: 82199.29 | F63: 55805.82 | G63: 46413.16 | H63: 40290.07
A64: 72 | B64: 72 | D64: =$G$2*D29 -> 123017.24 | E64: 84526.52 | F64: 57379.92 | G64: 47722.79 | H64: 41432.22
A65: 73 | B65: 73 | D65: 127533.9 | E65: 87638.15 | F65: 59486.67 | G65: 49486.63 | H65: 42957.56
A66: 74 | B66: 74 | D66: 129793.82 | E66: 89183.1 | F66: 60549.85 | G66: 50359.54 | H66: 43713.87
A67: 75 | B67: 75+ | D67: 135448.39 | E67: 93065.88 | F67: 63178.12 | G67: 52554.8 | H67: 45619.22
A68: 1 | B68: 1 Child | D68: 5059.91 | E68: 3726.43 | F68: 2797.34 | G68: 2200.56 | H68: 1715.61
A69: 2 | B69: 2 Children | D69: 8045.93 | E69: 5934.94 | F69: 4450.41 | G69: 3493.76 | H69: 2716.25
A70: 3 | B70: 3+ Children | D70: 11796.21 | E70: 8702.07 | F70: 6515.29 | G70: 5118.21 | H70: 3982.42
A71: 1 | B71: Rider Comp. Maternidad | D71: =+D36*$G$2 -> 0 | E71: 0 | F71: 119.25 | G71: 119.25 | H71: 119.25
A72: 1 | B72: Transplante de organos | D72: 0 | E72: 0 | F72: 0 | G72: 0 | H72: 0
A78: DIAMOND (LATINAMERICA ONLY)
A79: TARIFAS ANUALES
A80: EDAD
C81: DL1 | D81: DL2 | E81: DL3 | F81: DL4 | G81: DL5 | H81: DL6
A82: 18 | B82: - 24
A83: 25 | B83: - 29
A84: 30 | B84: - 34
A85: 35 | B85: - 39
A86: 40 | B86: - 44
A87: 45 | B87: - 49
A88: 50 | B88: - 54
A89: 55 | B89: - 59
A90: 60
A91: 61
A92: 62
A93: 63
A94: 64
A95: 65
A96: 66
A97: 67
A98: 68
A99: 69
A100: 70
A101: 71
A102: 72
A103: 73
A104: 74
A105: 75 | B105: o más
A106: 1 | B106: Hijo
A107: 2 | B107: Hijos
A108: 3 | B108: Hijos o más
A109: 1 | B109: Rider Comp. Maternidad
A110: 1 | B110: Transplante de organos | C110: 0 | D110: 0 | E110: 0 | F110: 0 | G110: 0 | H110: 0
A112: TARIFAS SEMESTRALES
A113: EDAD
C114: DL1 | D114: DL2 | E114: DL3 | F114: DL4 | G114: DL5 | H114: DL6
A115: 18 | B115: - 24 | C115: =+C82*$G$2 -> 0 | D115: 0 | E115: 0 | F115: 0 | G115: 0 | H115: 0
A116: 25 | B116: - 29 | C116: 0 | D116: 0 | E116: 0 | F116: 0 | G116: 0 | H116: 0
A117: 30 | B117: - 34 | C117: 0 | D117: 0 | E117: 0 | F117: 0 | G117: 0 | H117: 0
A118: 35 | B118: - 39 | C118: 0 | D118: 0 | E118: 0 | F118: 0 | G118: 0 | H118: 0
A119: 40 | B119: - 44 | C119: 0 | D119: 0 | E119: 0 | F119: 0 | G119: 0 | H119: 0
A120: 45 | B120: - 49 | C120: 0 | D120: 0 | E120: 0 | F120: 0 | G120: 0 | H120: 0
A121: 50 | B121: - 54 | C121: 0 | D121: 0 | E121: 0 | F121: 0 | G121: 0 | H121: 0
A122: 55 | B122: - 59 | C122: 0 | D122: 0 | E122: 0 | F122: 0 | G122: 0 | H122: 0
A123: 60 | C123: 0 | D123: 0 | E123: 0 | F123: 0 | G123: 0 | H123: 0
A124: 61 | C124: 0 | D124: 0 | E124: 0 | F124: 0 | G124: 0 | H124: 0
A125: 62 | C125: =+C92*$G$2 -> 0 | D125: 0 | E125: 0 | F125: 0 | G125: 0 | H125: 0
A126: 63 | C126: 0 | D126: 0 | E126: 0 | F126: 0 | G126: 0 | H126: 0
A127: 64 | C127: 0 | D127: 0 | E127: 0 | F127: 0 | G127: 0 | H127: 0
A128: 65 | C128: 0 | D128: 0 | E128: 0 | F128: 0 | G128: 0 | H128: 0
A129: 66 | C129: 0 | D129: 0 | E129: 0 | F129: 0 | G129: 0 | H129: 0
A130: 67 | C130: 0 | D130: 0 | E130: 0 | F130: 0 | G130: 0 | H130: 0
A131: 68 | C131: 0 | D131: 0 | E131: 0 | F131: 0 | G131: 0 | H131: 0
A132: 69 | C132: 0 | D132: 0 | E132: 0 | F132: 0 | G132: 0 | H132: 0
A133: 70 | C133: 0 | D133: 0 | E133: 0 | F133: 0 | G133: 0 | H133: 0
A134: 71 | C134: 0 | D134: 0 | E134: 0 | F134: 0 | G134: 0 | H134: 0
A135: 72 | C135: =+C102*$G$2 -> 0 | D135: 0 | E135: 0 | F135: 0 | G135: 0 | H135: 0
A136: 73 | C136: 0 | D136: 0 | E136: 0 | F136: 0 | G136: 0 | H136: 0
A137: 74 | C137: 0 | D137: 0 | E137: 0 | F137: 0 | G137: 0 | H137: 0
A138: 75 | B138: o más | C138: 0 | D138: 0 | E138: 0 | F138: 0 | G138: 0 | H138: 0
A139: 1 | B139: Hijo | C139: 0 | D139: 0 | E139: 0 | F139: 0 | G139: 0 | H139: 0
A140: 2 | B140: Hijos | C140: 0 | D140: 0 | E140: 0 | F140: 0 | G140: 0 | H140: 0
A141: 3 | B141: Hijos o más | C141: 0 | D141: 0 | E141: 0 | F141: 0 | G141: 0 | H141: 0
A142: 1 | B142: Rider Comp. Maternidad | C142: 0 | D142: 0 | E142: 0 | F142: 0 | G142: 0 | H142: 0
A143: 1 | B143: Transplante de organos | C143: 0 | D143: 0 | E143: 0 | F143: 0 | G143: 0 | H143: 0
A148: BUPA PRIVILEGE CARE
A149: TARIFAS ANUALES
A150: EDAD
C151: CW1 | D151: CW2 | E151: CW3 | F151: CW4 | G151: CW5 | H151: CW6
A152: 18 | B152: 18-24 | D152: 23086 | E152: 15872 | F152: 10249 | G152: 6778 | H152: 5154
A153: 25 | B153: 25-29 | D153: 24219 | E153: 17563 | F153: 11350 | G153: 7509 | H153: 5720
A154: 30 | B154: 30-34 | D154: 25275 | E154: 18785 | F154: 12736 | G154: 9083 | H154: 6927
A155: 35 | B155: 35-39 | D155: 28318 | E155: 21029 | F155: 14271 | G155: 10175 | H155: 7774
A156: 40 | B156: 40-44 | D156: 32779 | E156: 23058 | F156: 15864 | G156: 11215 | H156: 8561
A157: 45 | B157: 45-49 | D157: 36623 | E157: 25769 | F157: 17745 | G157: 12537 | H157: 9578
A158: 50 | B158: 50-54 | D158: 47878 | E158: 33988 | F158: 23296 | G158: 17905 | H158: 13684
A159: 55 | B159: 55-59 | D159: 50948 | E159: 36168 | F159: 24782 | G159: 19053 | H159: 14570
A160: 60 | B160: 60 | D160: 55485 | E160: 39274 | F160: 28219 | G160: 22668 | H160: 18188
A161: 61 | B161: 61 | D161: 59604 | E161: 42180 | F161: 30305 | G161: 24344 | H161: 19544
A162: 62 | B162: 62 | D162: 65240 | E162: 46190 | F162: 33182 | G162: 26658 | H162: 21403
A163: 63 | B163: 63 | D163: 69373 | E163: 49114 | F163: 35277 | G163: 28350 | H163: 22765
A164: 64 | B164: 64 | D164: 75043 | E164: 53134 | F164: 38171 | G164: 30659 | H164: 24636
A165: 65 | B165: 65 | D165: 98099 | E165: 69320 | F165: 48261 | G165: 40888 | H165: 34720
A166: 66 | B166: 66 | D166: 113961 | E166: 80539 | F166: 56071 | G166: 47528 | H166: 40352
A167: 67 | B167: 67 | D167: 124471 | E167: 87969 | F167: 61245 | G167: 51908 | H167: 44068
A168: 68 | B168: 68 | D168: 137817 | E168: 97384 | F168: 67817 | G168: 57476 | H168: 48786
A169: 69 | B169: 69 | D169: 151631 | E169: 107150 | F169: 74606 | G169: 63237 | H169: 53694
A170: 70 | B170: 70 | D170: 186606 | E170: 130483 | F170: 87826 | G170: 73678 | H170: 63156
A171: 71 | B171: 71 | D171: 193930 | E171: 135594 | F171: 91278 | G171: 76579 | H171: 65641
A172: 72 | B172: 72 | D172: 199431 | E172: 139428 | F172: 93859 | G172: 78751 | H172: 67498
A173: 73 | B173: 73 | D173: 206740 | E173: 144555 | F173: 97300 | G173: 81637 | H173: 69994
A174: 74 | B174: 74 | D174: 210428 | E174: 147119 | F174: 99033 | G174: 83084 | H174: 71217
A175: 75 | B175: 75+ | D175: 219566 | E175: 153520 | F175: 103338 | G175: 86696 | H175: 74315
A176: 1 | B176: 1 Child | D176: 7998 | E176: 5856 | F176: 4175 | G176: 3275 | H176: 2430
A177: 2 | B177: 2 Children | D177: 12738 | E177: 9316 | F177: 6632 | G177: 5199 | H177: 3859
A178: 3 | B178: 3+ Children | D178: 18669 | E178: 13646 | F178: 9712 | G178: 7619 | H178: 5656
A179: 1 | B179: Rider Comp. Maternidad | D179: 0 | E179: 0 | F179: 225 | G179: 225 | H179: 225
A180: 1 | B180: Transplante de organos | D180: 0 | E180: 0 | F180: 0 | G180: 0 | H180: 0
A184: TARIFAS SEMESTRALES
A185: EDAD
D186: CW2 | E186: CW3 | F186: CW4 | G186: CW5 | H186: CW6
A187: 18 | B187: 18-24 | D187: =$G$2*D152 -> 12235.58 | E187: 8412.16 | F187: 5431.97 | G187: 3592.34 | H187: 2731.62
A188: 25 | B188: 25-29 | D188: 12836.07 | E188: 9308.39 | F188: 6015.5 | G188: 3979.77 | H188: 3031.6
A189: 30 | B189: 30-34 | D189: 13395.75 | E189: 9956.05 | F189: 6750.08 | G189: 4813.99 | H189: 3671.31
A190: 35 | B190: 35-39 | D190: 15008.54 | E190: 11145.37 | F190: 7563.63 | G190: 5392.75 | H190: 4120.22
A191: 40 | B191: 40-44 | D191: 17372.87 | E191: 12220.74 | F191: 8407.92 | G191: 5943.95 | H191: 4537.33
A192: 45 | B192: 45-49 | D192: 19410.19 | E192: 13657.57 | F192: 9404.85 | G192: 6644.61 | H192: 5076.34
A193: 50 | B193: 50-54 | D193: 25375.34 | E193: 18013.64 | F193: 12346.88 | G193: 9489.65 | H193: 7252.52
A194: 55 | B194: 55-59 | D194: 27002.44 | E194: 19169.04 | F194: 13134.46 | G194: 10098.09 | H194: 7722.1
A195: 60 | B195: 60 | D195: 29407.05 | E195: 20815.22 | F195: 14956.07 | G195: 12014.04 | H195: 9639.64
A196: 61 | B196: 61 | D196: 31590.12 | E196: 22355.4 | F196: 16061.65 | G196: 12902.32 | H196: 10358.32
A197: 62 | B197: 62 | D197: =$G$2*D162 -> 34577.2 | E197: 24480.7 | F197: 17586.46 | G197: 14128.74 | H197: 11343.59
A198: 63 | B198: 63 | D198: 36767.69 | E198: 26030.42 | F198: 18696.81 | G198: 15025.5 | H198: 12065.45
A199: 64 | B199: 64 | D199: 39772.79 | E199: 28161.02 | F199: 20230.63 | G199: 16249.27 | H199: 13057.08
A200: 65 | B200: 65 | D200: 51992.47 | E200: 36739.6 | F200: 25578.33 | G200: 21670.64 | H200: 18401.6
A201: 66 | B201: 66 | D201: 60399.33 | E201: 42685.67 | F201: 29717.63 | G201: 25189.84 | H201: 21386.56
A202: 67 | B202: 67 | D202: 65969.63 | E202: 46623.57 | F202: 32459.85 | G202: 27511.24 | H202: 23356.04
A203: 68 | B203: 68 | D203: 73043.01 | E203: 51613.52 | F203: 35943.01 | G203: 30462.28 | H203: 25856.58
A204: 69 | B204: 69 | D204: 80364.43 | E204: 56789.5 | F204: 39541.18 | G204: 33515.61 | H204: 28457.82
A205: 70 | B205: 70 | D205: 98901.18 | E205: 69155.99 | F205: 46547.78 | G205: 39049.34 | H205: 33472.68
A206: 71 | B206: 71 | D206: 102782.9 | E206: 71864.82 | F206: 48377.34 | G206: 40586.87 | H206: 34789.73
A207: 72 | B207: 72 | D207: =$G$2*D172 -> 105698.43 | E207: 73896.84 | F207: 49745.27 | G207: 41738.03 | H207: 35773.94
A208: 73 | B208: 73 | D208: 109572.2 | E208: 76614.15 | F208: 51569 | G208: 43267.61 | H208: 37096.82
A209: 74 | B209: 74 | D209: 111526.84 | E209: 77973.07 | F209: 52487.49 | G209: 44034.52 | H209: 37745.01
A210: 75 | B210: 75+ | D210: 116369.98 | E210: 81365.6 | F210: 54769.14 | G210: 45948.88 | H210: 39386.95
A211: 1 | B211: 1 Child | D211: 4238.94 | E211: 3103.68 | F211: 2212.75 | G211: 1735.75 | H211: 1287.9
A212: 2 | B212: 2 Children | D212: 6751.14 | E212: 4937.48 | F212: 3514.96 | G212: 2755.47 | H212: 2045.27
A213: 3 | B213: 3+ Children | D213: 9894.57 | E213: 7232.38 | F213: 5147.36 | G213: 4038.07 | H213: 2997.68
A214: 1 | B214: Rider Comp. Maternidad | D214: =+D179*$G$2 -> 0 | E214: 0 | F214: 119.25 | G214: 119.25 | H214: 119.25
A215: 1 | B215: Transplante de organos | D215: 0 | E215: 0 | F215: 0 | G215: 0 | H215: 0
A220: COMPLETE (LATINAMERICA ONLY)
A221: TARIFAS ANUALES
A222: EDAD
... 335 more rows

Sheet 3 (hidden)
K1: D1 | L1: D2 | M1: D3 | N1: D4 | O1: D5 | P1: D6
B2: REGIÓN | C2: ='INGRESO DE DATOS'!W14 -> 2 | E2: FACTOR SEMESTRAL : | G2: 0.53 | I2: NEW BUSINESS DISCUOUNTS | K2: ='INGRESO DE DATOS'!O42 -> 1 | L2: ='INGRESO DE DATOS'!P42 -> 1 | M2: ='INGRESO DE DATOS'!Q42 -> 1 | N2: ='INGRESO DE DATOS'!R42 -> 1 | O2: ='INGRESO DE DATOS'!S42 -> 1 | P2: ='INGRESO DE DATOS'!T42 -> 1
A5: BUPA EXCLUSIVE CARE
A6: TARIFAS ANUALES
A7: EDAD
C8: DW1 | D8: DW2 | E8: DW3 | F8: DW4 | G8: DW5 | H8: DW6
A9: 18 | B9: 18-24 | D9: 27670 | E9: 18277 | F9: 11985 | G9: 8010 | H9: 6309
A10: 25 | B10: 25-29 | D10: 29015 | E10: 20196 | F10: 13278 | G10: 8896 | H10: 6986
A11: 30 | B11: 30-34 | D11: 30185 | E11: 21663 | F11: 14867 | G11: 10650 | H11: 8400
A12: 35 | B12: 35-39 | D12: 33805 | E12: 24257 | F12: 16670 | G12: 11945 | H12: 9409
A13: 40 | B13: 40-44 | D13: 39204 | E13: 26533 | F13: 18498 | G13: 13143 | H13: 10337
A14: 45 | B14: 45-49 | D14: 43826 | E14: 29671 | F14: 20692 | G14: 14683 | H14: 11566
A15: 50 | B15: 50-54 | D15: 56091 | E15: 38959 | F15: 26997 | G15: 20752 | H15: 16363
A16: 55 | B16: 55-59 | D16: 59679 | E16: 41446 | F16: 28730 | G16: 22088 | H16: 17415
A17: 60 | B17: 60 | D17: 65024 | E17: 45231 | F17: 33056 | G17: 26608 | H17: 21648
A18: 61 | B18: 61 | D18: 69868 | E18: 48589 | F18: 35509 | G18: 28609 | H18: 23258
A19: 62 | B19: 62 | D19: 76486 | E19: 53220 | F19: 38894 | G19: 31315 | H19: 25465
A20: 63 | B20: 63 | D20: 81333 | E20: 56580 | F20: 41348 | G20: 33305 | H20: 27080
A21: 64 | B21: 64 | D21: 87976 | E21: 61250 | F21: 44745 | G21: 36033 | H21: 29301
A22: 65 | B22: 65 | D22: 115023 | E22: 79879 | F22: 56579 | G22: 48071 | H22: 41346
A23: 66 | B23: 66 | D23: 133633 | E23: 92826 | F23: 65742 | G23: 55879 | H23: 48048
A24: 67 | B24: 67 | D24: 145958 | E24: 101380 | F24: 71819 | G24: 61003 | H24: 52474
A25: 68 | B25: 68 | D25: 161623 | E25: 112253 | F25: 79527 | G25: 67591 | H25: 58113
A26: 69 | B26: 69 | D26: 177825 | E26: 123507 | F26: 87513 | G26: 74360 | H26: 63945
A27: 70 | B27: 70 | D27: 218867 | E27: 150400 | F27: 103015 | G27: 86652 | H27: 75228
A28: 71 | B28: 71 | D28: 227474 | E28: 156307 | F28: 107063 | G28: 90062 | H28: 78193
A29: 72 | B29: 72 | D29: 233914 | E29: 160722 | F29: 110079 | G29: 92605 | H29: 80403
A30: 73 | B30: 73 | D30: 242509 | E30: 166648 | F30: 114129 | G30: 96019 | H30: 83364
A31: 74 | B31: 74 | D31: 246795 | E31: 169582 | F31: 116156 | G31: 97719 | H31: 84826
A32: 75 | B32: 75+ | D32: 257542 | E32: 176970 | F32: 121209 | G32: 101981 | H32: 88539
A33: 1 | B33: 1 Child | D33: 9619 | E33: 7087 | F33: 5366 | G33: 4267 | H33: 3330
A34: 2 | B34: 2 Children | D34: 15300 | E34: 11292 | F34: 8540 | G34: 6773 | H34: 5273
A35: 3 | B35: 3+ Children | D35: 22413 | E35: 16540 | F35: 12498 | G35: 9931 | H35: 7740
A36: 1 | B36: Rider Comp. Maternidad | D36: 0 | E36: 0 | F36: 225 | G36: 225 | H36: 225
A37: 1 | B37: Transplante de organos | D37: 0 | E37: 0 | F37: 0 | G37: 0 | H37: 0
A41: TARIFAS SEMESTRALES
A42: EDAD
D43: DW2 | E43: DW3 | F43: DW4 | G43: DW5 | H43: DW6
A44: 18 | B44: 18-24 | D44: =$G$2*D9 -> 14665.1 | E44: 9686.81 | F44: 6352.05 | G44: 4245.3 | H44: 3343.77
A45: 25 | B45: 25-29 | D45: 15377.95 | E45: 10703.88 | F45: 7037.34 | G45: 4714.88 | H45: 3702.58
A46: 30 | B46: 30-34 | D46: 15998.05 | E46: 11481.39 | F46: 7879.51 | G46: 5644.5 | H46: 4452
A47: 35 | B47: 35-39 | D47: 17916.65 | E47: 12856.21 | F47: 8835.1 | G47: 6330.85 | H47: 4986.77
A48: 40 | B48: 40-44 | D48: 20778.12 | E48: 14062.49 | F48: 9803.94 | G48: 6965.79 | H48: 5478.61
A49: 45 | B49: 45-49 | D49: 23227.78 | E49: 15725.63 | F49: 10966.76 | G49: 7781.99 | H49: 6129.98
A50: 50 | B50: 50-54 | D50: 29728.23 | E50: 20648.27 | F50: 14308.41 | G50: 10998.56 | H50: 8672.39
A51: 55 | B51: 55-59 | D51: 31629.87 | E51: 21966.38 | F51: 15226.9 | G51: 11706.64 | H51: 9229.95
A52: 60 | B52: 60 | D52: 34462.72 | E52: 23972.43 | F52: 17519.68 | G52: 14102.24 | H52: 11473.44
A53: 61 | B53: 61 | D53: 37030.04 | E53: 25752.17 | F53: 18819.77 | G53: 15162.77 | H53: 12326.74
A54: 62 | B54: 62 | D54: 40537.58 | E54: 28206.6 | F54: 20613.82 | G54: 16596.95 | H54: 13496.45
A55: 63 | B55: 63 | D55: 43106.49 | E55: 29987.4 | F55: 21914.44 | G55: 17651.65 | H55: 14352.4
A56: 64 | B56: 64 | D56: 46627.28 | E56: 32462.5 | F56: 23714.85 | G56: 19097.49 | H56: 15529.53
A57: 65 | B57: 65 | D57: 60962.19 | E57: 42335.87 | F57: 29986.87 | G57: 25477.63 | H57: 21913.38
A58: 66 | B58: 66 | D58: 70825.49 | E58: 49197.78 | F58: 34843.26 | G58: 29615.87 | H58: 25465.44
A59: 67 | B59: 67 | D59: 77357.74 | E59: 53731.4 | F59: 38064.07 | G59: 32331.59 | H59: 27811.22
A60: 68 | B60: 68 | D60: =$G$2*D25 -> 85660.19 | E60: 59494.09 | F60: 42149.31 | G60: 35823.23 | H60: 30799.89
A61: 69 | B61: 69 | D61: 94247.25 | E61: 65458.71 | F61: 46381.89 | G61: 39410.8 | H61: 33890.85
A62: 70 | B62: 70 | D62: 115999.51 | E62: 79712 | F62: 54597.95 | G62: 45925.56 | H62: 39870.84
A63: 71 | B63: 71 | D63: 120561.22 | E63: 82842.71 | F63: 56743.39 | G63: 47732.86 | H63: 41442.29
A64: 72 | B64: 72 | D64: 123974.42 | E64: 85182.66 | F64: 58341.87 | G64: 49080.65 | H64: 42613.59
A65: 73 | B65: 73 | D65: 128529.77 | E65: 88323.44 | F65: 60488.37 | G65: 50890.07 | H65: 44182.92
A66: 74 | B66: 74 | D66: 130801.35 | E66: 89878.46 | F66: 61562.68 | G66: 51791.07 | H66: 44957.78
A67: 75 | B67: 75+ | D67: 136497.26 | E67: 93794.1 | F67: 64240.77 | G67: 54049.93 | H67: 46925.67
A68: 1 | B68: 1 Child | D68: 5098.07 | E68: 3756.11 | F68: 2843.98 | G68: 2261.51 | H68: 1764.9
A69: 2 | B69: 2 Children | D69: 8109 | E69: 5984.76 | F69: 4526.2 | G69: 3589.69 | H69: 2794.69
A70: 3 | B70: 3+ Children | D70: 11878.89 | E70: 8766.2 | F70: 6623.94 | G70: 5263.43 | H70: 4102.2
A71: 1 | B71: Rider Comp. Maternidad | D71: =+D36*$G$2 -> 0 | E71: 0 | F71: 119.25 | G71: 119.25 | H71: 119.25
A72: 1 | B72: Transplante de organos | D72: 0 | E72: 0 | F72: 0 | G72: 0 | H72: 0
A78: DIAMOND (LATINAMERICA ONLY)
A79: TARIFAS ANUALES
A80: EDAD
C81: DL1 | D81: DL2 | E81: DL3 | F81: DL4 | G81: DL5 | H81: DL6
A82: 18 | B82: - 24
A83: 25 | B83: - 29
A84: 30 | B84: - 34
A85: 35 | B85: - 39
A86: 40 | B86: - 44
A87: 45 | B87: - 49
A88: 50 | B88: - 54
A89: 55 | B89: - 59
A90: 60
A91: 61
A92: 62
A93: 63
A94: 64
A95: 65
A96: 66
A97: 67
A98: 68
A99: 69
A100: 70
A101: 71
A102: 72
A103: 73
A104: 74
A105: 75 | B105: o más
A106: 1 | B106: Hijo
A107: 2 | B107: Hijos
A108: 3 | B108: Hijos o más
A109: 1 | B109: Rider Comp. Maternidad
A110: 1 | B110: Transplante de organos | C110: 0 | D110: 0 | E110: 0 | F110: 0 | G110: 0 | H110: 0
A112: TARIFAS SEMESTRALES
A113: EDAD
C114: DL1 | D114: DL2 | E114: DL3 | F114: DL4 | G114: DL5 | H114: DL6
A115: 18 | B115: - 24 | C115: =+C82*$G$2 -> 0 | D115: 0 | E115: 0 | F115: 0 | G115: 0 | H115: 0
A116: 25 | B116: - 29 | C116: 0 | D116: 0 | E116: 0 | F116: 0 | G116: 0 | H116: 0
A117: 30 | B117: - 34 | C117: 0 | D117: 0 | E117: 0 | F117: 0 | G117: 0 | H117: 0
A118: 35 | B118: - 39 | C118: 0 | D118: 0 | E118: 0 | F118: 0 | G118: 0 | H118: 0
A119: 40 | B119: - 44 | C119: 0 | D119: 0 | E119: 0 | F119: 0 | G119: 0 | H119: 0
A120: 45 | B120: - 49 | C120: 0 | D120: 0 | E120: 0 | F120: 0 | G120: 0 | H120: 0
A121: 50 | B121: - 54 | C121: 0 | D121: 0 | E121: 0 | F121: 0 | G121: 0 | H121: 0
A122: 55 | B122: - 59 | C122: 0 | D122: 0 | E122: 0 | F122: 0 | G122: 0 | H122: 0
A123: 60 | C123: 0 | D123: 0 | E123: 0 | F123: 0 | G123: 0 | H123: 0
A124: 61 | C124: 0 | D124: 0 | E124: 0 | F124: 0 | G124: 0 | H124: 0
A125: 62 | C125: 0 | D125: 0 | E125: 0 | F125: 0 | G125: 0 | H125: 0
A126: 63 | C126: 0 | D126: 0 | E126: 0 | F126: 0 | G126: 0 | H126: 0
A127: 64 | C127: 0 | D127: 0 | E127: 0 | F127: 0 | G127: 0 | H127: 0
A128: 65 | C128: 0 | D128: 0 | E128: 0 | F128: 0 | G128: 0 | H128: 0
A129: 66 | C129: 0 | D129: 0 | E129: 0 | F129: 0 | G129: 0 | H129: 0
A130: 67 | C130: 0 | D130: 0 | E130: 0 | F130: 0 | G130: 0 | H130: 0
A131: 68 | C131: =+C98*$G$2 -> 0 | D131: 0 | E131: 0 | F131: 0 | G131: 0 | H131: 0
A132: 69 | C132: 0 | D132: 0 | E132: 0 | F132: 0 | G132: 0 | H132: 0
A133: 70 | C133: 0 | D133: 0 | E133: 0 | F133: 0 | G133: 0 | H133: 0
A134: 71 | C134: 0 | D134: 0 | E134: 0 | F134: 0 | G134: 0 | H134: 0
A135: 72 | C135: 0 | D135: 0 | E135: 0 | F135: 0 | G135: 0 | H135: 0
A136: 73 | C136: 0 | D136: 0 | E136: 0 | F136: 0 | G136: 0 | H136: 0
A137: 74 | C137: 0 | D137: 0 | E137: 0 | F137: 0 | G137: 0 | H137: 0
A138: 75 | B138: o más | C138: 0 | D138: 0 | E138: 0 | F138: 0 | G138: 0 | H138: 0
A139: 1 | B139: Hijo | C139: 0 | D139: 0 | E139: 0 | F139: 0 | G139: 0 | H139: 0
A140: 2 | B140: Hijos | C140: 0 | D140: 0 | E140: 0 | F140: 0 | G140: 0 | H140: 0
A141: 3 | B141: Hijos o más | C141: 0 | D141: 0 | E141: 0 | F141: 0 | G141: 0 | H141: 0
A142: 1 | B142: Rider Comp. Maternidad | C142: 0 | D142: 0 | E142: 0 | F142: 0 | G142: 0 | H142: 0
A143: 1 | B143: Transplante de organos | C143: 0 | D143: 0 | E143: 0 | F143: 0 | G143: 0 | H143: 0
A148: BUPA PRIVILEGE CARE
A149: TARIFAS ANUALES
A150: EDAD
C151: CW1 | D151: CW2 | E151: CW3 | F151: CW4 | G151: CW5 | H151: CW6
A152: 18 | B152: 18-24 | D152: 23259 | E152: 15988 | F152: 10418 | G152: 6964 | H152: 5315
A153: 25 | B153: 25-29 | D153: 24415 | E153: 17710 | F153: 11537 | G153: 7726 | H153: 5887
A154: 30 | B154: 30-34 | D154: 25484 | E154: 18939 | F154: 12957 | G154: 9331 | H154: 7117
A155: 35 | B155: 35-39 | D155: 28535 | E155: 21198 | F155: 14512 | G155: 10463 | H155: 7985
A156: 40 | B156: 40-44 | D156: 33035 | E156: 23242 | F156: 16133 | G156: 11541 | H156: 8810
A157: 45 | B157: 45-49 | D157: 36912 | E157: 25965 | F157: 18035 | G157: 12905 | H157: 9856
A158: 50 | B158: 50-54 | D158: 48255 | E158: 34262 | F158: 23677 | G158: 18410 | H158: 14079
A159: 55 | B159: 55-59 | D159: 51338 | E159: 36455 | F159: 25203 | G159: 19591 | H159: 14972
A160: 60 | B160: 60 | D160: 55900 | E160: 39590 | F160: 28679 | G160: 23305 | H160: 18703
A161: 61 | B161: 61 | D161: 60082 | E161: 42501 | F161: 30826 | G161: 25043 | H161: 20096
A162: 62 | B162: 62 | D162: 65751 | E162: 46564 | F162: 33746 | G162: 27420 | H162: 22018
A163: 63 | B163: 63 | D163: 69901 | E163: 49509 | F163: 35872 | G163: 29150 | H163: 23414
A164: 64 | B164: 64 | D164: 75621 | E164: 53559 | F164: 38815 | G164: 31531 | H164: 25331
A165: 65 | B165: 65 | D165: 98852 | E165: 69852 | F165: 49073 | G165: 42052 | H165: 35714
A166: 66 | B166: 66 | D166: 114843 | E166: 81157 | F166: 57003 | G166: 48864 | H166: 41502
A167: 67 | B167: 67 | D167: 125431 | E167: 88634 | F167: 62258 | G167: 53370 | H167: 45324
A168: 68 | B168: 68 | D168: 138893 | E168: 98153 | F168: 68959 | G168: 59113 | H168: 50180
A169: 69 | B169: 69 | D169: 152797 | E169: 107988 | F169: 75860 | G169: 65022 | H169: 55227
A170: 70 | B170: 70 | D170: 188058 | E170: 131486 | F170: 89288 | G170: 75773 | H170: 64948
A171: 71 | B171: 71 | D171: 195416 | E171: 136655 | F171: 92790 | G171: 78744 | H171: 67501
A172: 72 | B172: 72 | D172: 200961 | E172: 140515 | F172: 95426 | G172: 80979 | H172: 69411
A173: 73 | B173: 73 | D173: 208351 | E173: 145676 | F173: 98934 | G173: 83955 | H173: 71969
A174: 74 | B174: 74 | D174: 212027 | E174: 148249 | F174: 100686 | G174: 85448 | H174: 73241
A175: 75 | B175: 75+ | D175: 221262 | E175: 154705 | F175: 105072 | G175: 89152 | H175: 76439
A176: 1 | B176: 1 Child | D176: 8075 | E176: 5907 | F176: 4246 | G176: 3374 | H176: 2503
A177: 2 | B177: 2 Children | D177: 12836 | E177: 9386 | F177: 6737 | G177: 5369 | H177: 3967
A178: 3 | B178: 3+ Children | D178: 18803 | E178: 13745 | F178: 9878 | G178: 7859 | H178: 5811
A179: 1 | B179: Rider Comp. Maternidad | D179: 0 | E179: 0 | F179: 225 | G179: 225 | H179: 225
A180: 1 | B180: Transplante de organos | D180: 0 | E180: 0 | F180: 0 | G180: 0 | H180: 0
A184: TARIFAS SEMESTRALES
A185: EDAD
D186: CW2 | E186: CW3 | F186: CW4 | G186: CW5 | H186: CW6
A187: 18 | B187: 18-24 | D187: =$G$2*D152 -> 12327.27 | E187: 8473.64 | F187: 5521.54 | G187: 3690.92 | H187: 2816.95
A188: 25 | B188: 25-29 | D188: 12939.95 | E188: 9386.3 | F188: 6114.61 | G188: 4094.78 | H188: 3120.11
A189: 30 | B189: 30-34 | D189: 13506.52 | E189: 10037.67 | F189: 6867.21 | G189: 4945.43 | H189: 3772.01
A190: 35 | B190: 35-39 | D190: 15123.55 | E190: 11234.94 | F190: 7691.36 | G190: 5545.39 | H190: 4232.05
A191: 40 | B191: 40-44 | D191: 17508.55 | E191: 12318.26 | F191: 8550.49 | G191: 6116.73 | H191: 4669.3
A192: 45 | B192: 45-49 | D192: 19563.36 | E192: 13761.45 | F192: 9558.55 | G192: 6839.65 | H192: 5223.68
A193: 50 | B193: 50-54 | D193: 25575.15 | E193: 18158.86 | F193: 12548.81 | G193: 9757.3 | H193: 7461.87
A194: 55 | B194: 55-59 | D194: 27209.14 | E194: 19321.15 | F194: 13357.59 | G194: 10383.23 | H194: 7935.16
A195: 60 | B195: 60 | D195: 29627 | E195: 20982.7 | F195: 15199.87 | G195: 12351.65 | H195: 9912.59
A196: 61 | B196: 61 | D196: 31843.46 | E196: 22525.53 | F196: 16337.78 | G196: 13272.79 | H196: 10650.88
A197: 62 | B197: 62 | D197: 34848.03 | E197: 24678.92 | F197: 17885.38 | G197: 14532.6 | H197: 11669.54
A198: 63 | B198: 63 | D198: 37047.53 | E198: 26239.77 | F198: 19012.16 | G198: 15449.5 | H198: 12409.42
A199: 64 | B199: 64 | D199: 40079.13 | E199: 28386.27 | F199: 20571.95 | G199: 16711.43 | H199: 13425.43
A200: 65 | B200: 65 | D200: 52391.56 | E200: 37021.56 | F200: 26008.69 | G200: 22287.56 | H200: 18928.42
A201: 66 | B201: 66 | D201: 60866.79 | E201: 43013.21 | F201: 30211.59 | G201: 25897.92 | H201: 21996.06
A202: 67 | B202: 67 | D202: 66478.43 | E202: 46976.02 | F202: 32996.74 | G202: 28286.1 | H202: 24021.72
A203: 68 | B203: 68 | D203: =$G$2*D168 -> 73613.29 | E203: 52021.09 | F203: 36548.27 | G203: 31329.89 | H203: 26595.4
A204: 69 | B204: 69 | D204: 80982.41 | E204: 57233.64 | F204: 40205.8 | G204: 34461.66 | H204: 29270.31
A205: 70 | B205: 70 | D205: 99670.74 | E205: 69687.58 | F205: 47322.64 | G205: 40159.69 | H205: 34422.44
A206: 71 | B206: 71 | D206: 103570.48 | E206: 72427.15 | F206: 49178.7 | G206: 41734.32 | H206: 35775.53
A207: 72 | B207: 72 | D207: 106509.33 | E207: 74472.95 | F207: 50575.78 | G207: 42918.87 | H207: 36787.83
A208: 73 | B208: 73 | D208: 110426.03 | E208: 77208.28 | F208: 52435.02 | G208: 44496.15 | H208: 38143.57
A209: 74 | B209: 74 | D209: 112374.31 | E209: 78571.97 | F209: 53363.58 | G209: 45287.44 | H209: 38817.73
A210: 75 | B210: 75+ | D210: 117268.86 | E210: 81993.65 | F210: 55688.16 | G210: 47250.56 | H210: 40512.67
A211: 1 | B211: 1 Child | D211: 4279.75 | E211: 3130.71 | F211: 2250.38 | G211: 1788.22 | H211: 1326.59
A212: 2 | B212: 2 Children | D212: 6803.08 | E212: 4974.58 | F212: 3570.61 | G212: 2845.57 | H212: 2102.51
A213: 3 | B213: 3+ Children | D213: 9965.59 | E213: 7284.85 | F213: 5235.34 | G213: 4165.27 | H213: 3079.83
A214: 1 | B214: Rider Comp. Maternidad | D214: =+D179*$G$2 -> 0 | E214: 0 | F214: 119.25 | G214: 119.25 | H214: 119.25
A215: 1 | B215: Transplante de organos | D215: 0 | E215: 0 | F215: 0 | G215: 0 | H215: 0
A220: COMPLETE (LATINAMERICA ONLY)
A221: TARIFAS ANUALES
A222: EDAD
... 335 more rows

Sheet 4 (hidden)
K1: D1 | L1: D2 | M1: D3 | N1: D4 | O1: D5 | P1: D6
B2: REGIÓN | C2: ='INGRESO DE DATOS'!W14 -> 2 | E2: FACTOR SEMESTRAL : | G2: 0.53 | I2: NEW BUSINESS DISCUOUNTS | K2: ='INGRESO DE DATOS'!O42 -> 1 | L2: ='INGRESO DE DATOS'!P42 -> 1 | M2: ='INGRESO DE DATOS'!Q42 -> 1 | N2: ='INGRESO DE DATOS'!R42 -> 1 | O2: ='INGRESO DE DATOS'!S42 -> 1 | P2: ='INGRESO DE DATOS'!T42 -> 1
A5: BUPA EXCLUSIVE CARE
A6: TARIFAS ANUALES
A7: EDAD
C8: DW1 | D8: DW2 | E8: DW3 | F8: DW4 | G8: DW5 | H8: DW6
A9: 18 | B9: 18-24 | D9: 23776 | E9: 15710 | F9: 10299 | G9: 6753 | H9: 5315
A10: 25 | B10: 25-29 | D10: 24942 | E10: 17363 | F10: 11411 | G10: 7489 | H10: 5886
A11: 30 | B11: 30-34 | D11: 25945 | E11: 18619 | F11: 12774 | G11: 8979 | H11: 7080
A12: 35 | B12: 35-39 | D12: 29058 | E12: 20845 | F12: 14323 | G12: 10063 | H12: 7928
A13: 40 | B13: 40-44 | D13: 33701 | E13: 22802 | F13: 15900 | G13: 11068 | H13: 8717
A14: 45 | B14: 45-49 | D14: 37676 | E14: 25502 | F14: 17771 | G14: 12363 | H14: 9745
A15: 50 | B15: 50-54 | D15: 48210 | E15: 33461 | F15: 23188 | G15: 17479 | H15: 13777
A16: 55 | B16: 55-59 | D16: 51294 | E16: 35608 | F16: 24664 | G16: 18595 | H16: 14665
A17: 60 | B17: 60 | D17: 55878 | E17: 38844 | F17: 28392 | G17: 22400 | H17: 18222
A18: 61 | B18: 61 | D18: 60031 | E18: 41743 | F18: 30489 | G18: 24084 | H18: 19579
A19: 62 | B19: 62 | D19: 65725 | E19: 45717 | F19: 33398 | G19: 26355 | H19: 21439
A20: 63 | B20: 63 | D20: 69887 | E20: 48610 | F20: 35495 | G20: 28041 | H20: 22789
A21: 64 | B21: 64 | D21: 75594 | E21: 52595 | F21: 38417 | G21: 30324 | H21: 24675
A22: 65 | B22: 65 | D22: 98830 | E22: 68606 | F22: 48573 | G22: 40449 | H22: 34793
A23: 66 | B23: 66 | D23: 114813 | E23: 79721 | F23: 56437 | G23: 47023 | H23: 40424
A24: 67 | B24: 67 | D24: 125412 | E24: 87072 | F24: 61647 | G24: 51346 | H24: 44161
A25: 68 | B25: 68 | D25: 138869 | E25: 96404 | F25: 68265 | G25: 56867 | H25: 48897
A26: 69 | B26: 69 | D26: 152793 | E26: 106063 | F26: 75112 | G26: 62564 | H26: 53810
A27: 70 | B27: 70 | D27: 188038 | E27: 129157 | F27: 88420 | G27: 72898 | H27: 63299
A28: 71 | B28: 71 | D28: 195432 | E28: 134223 | F28: 91899 | G28: 75772 | H28: 65785
A29: 72 | B29: 72 | D29: 200968 | E29: 138025 | F29: 94482 | G29: 77917 | H29: 67647
A30: 73 | B30: 73 | D30: 208346 | E30: 143103 | F30: 97959 | G30: 80784 | H30: 70118
A31: 74 | B31: 74 | D31: 212036 | E31: 145634 | F31: 99712 | G31: 82213 | H31: 71374
A32: 75 | B32: 75+ | D32: 221266 | E32: 151968 | F32: 104034 | G32: 85793 | H32: 74492
A33: 1 | B33: 1 Child | D33: 8261 | E33: 6086 | F33: 4607 | G33: 3591 | H33: 2793
A34: 2 | B34: 2 Children | D34: 13140 | E34: 9694 | F34: 7331 | G34: 5699 | H34: 4445
A35: 3 | B35: 3+ Children | D35: 19269 | E35: 14197 | F35: 10733 | G35: 8352 | H35: 6504
A36: 1 | B36: Rider Comp. Maternidad | D36: 0 | E36: 0 | F36: 225 | G36: 225 | H36: 225
A37: 1 | B37: Transplante de organos | D37: 0 | E37: 0 | F37: 0 | G37: 0 | H37: 0
A41: TARIFAS SEMESTRALES
A42: EDAD
D43: DW2 | E43: DW3 | F43: DW4 | G43: DW5 | H43: DW6
A44: 18 | B44: 18-24 | D44: =$G$2*D9 -> 12601.28 | E44: 8326.3 | F44: 5458.47 | G44: 3579.09 | H44: 2816.95
A45: 25 | B45: 25-29 | D45: 13219.26 | E45: 9202.39 | F45: 6047.83 | G45: 3969.17 | H45: 3119.58
A46: 30 | B46: 30-34 | D46: 13750.85 | E46: 9868.07 | F46: 6770.22 | G46: 4758.87 | H46: 3752.4
A47: 35 | B47: 35-39 | D47: 15400.74 | E47: 11047.85 | F47: 7591.19 | G47: 5333.39 | H47: 4201.84
A48: 40 | B48: 40-44 | D48: 17861.53 | E48: 12085.06 | F48: 8427 | G48: 5866.04 | H48: 4620.01
A49: 45 | B49: 45-49 | D49: 19968.28 | E49: 13516.06 | F49: 9418.63 | G49: 6552.39 | H49: 5164.85
A50: 50 | B50: 50-54 | D50: 25551.3 | E50: 17734.33 | F50: 12289.64 | G50: 9263.87 | H50: 7301.81
A51: 55 | B51: 55-59 | D51: 27185.82 | E51: 18872.24 | F51: 13071.92 | G51: 9855.35 | H51: 7772.45
A52: 60 | B52: 60 | D52: 29615.34 | E52: 20587.32 | F52: 15047.76 | G52: 11872 | H52: 9657.66
A53: 61 | B53: 61 | D53: 31816.43 | E53: 22123.79 | F53: 16159.17 | G53: 12764.52 | H53: 10376.87
A54: 62 | B54: 62 | D54: 34834.25 | E54: 24230.01 | F54: 17700.94 | G54: 13968.15 | H54: 11362.67
A55: 63 | B55: 63 | D55: 37040.11 | E55: 25763.3 | F55: 18812.35 | G55: 14861.73 | H55: 12078.17
A56: 64 | B56: 64 | D56: 40064.82 | E56: 27875.35 | F56: 20361.01 | G56: 16071.72 | H56: 13077.75
A57: 65 | B57: 65 | D57: 52379.9 | E57: 36361.18 | F57: 25743.69 | G57: 21437.97 | H57: 18440.29
A58: 66 | B58: 66 | D58: 60850.89 | E58: 42252.13 | F58: 29911.61 | G58: 24922.19 | H58: 21424.72
A59: 67 | B59: 67 | D59: 66468.36 | E59: 46148.16 | F59: 32672.91 | G59: 27213.38 | H59: 23405.33
A60: 68 | B60: 68 | D60: =$G$2*D25 -> 73600.57 | E60: 51094.12 | F60: 36180.45 | G60: 30139.51 | H60: 25915.41
A61: 69 | B61: 69 | D61: 80980.29 | E61: 56213.39 | F61: 39809.36 | G61: 33158.92 | H61: 28519.3
A62: 70 | B62: 70 | D62: 99660.14 | E62: 68453.21 | F62: 46862.6 | G62: 38635.94 | H62: 33548.47
A63: 71 | B63: 71 | D63: 103578.96 | E63: 71138.19 | F63: 48706.47 | G63: 40159.16 | H63: 34866.05
A64: 72 | B64: 72 | D64: 106513.04 | E64: 73153.25 | F64: 50075.46 | G64: 41296.01 | H64: 35852.91
A65: 73 | B65: 73 | D65: 110423.38 | E65: 75844.59 | F65: 51918.27 | G65: 42815.52 | H65: 37162.54
A66: 74 | B66: 74 | D66: 112379.08 | E66: 77186.02 | F66: 52847.36 | G66: 43572.89 | H66: 37828.22
A67: 75 | B67: 75+ | D67: 117270.98 | E67: 80543.04 | F67: 55138.02 | G67: 45470.29 | H67: 39480.76
A68: 1 | B68: 1 Child | D68: 4378.33 | E68: 3225.58 | F68: 2441.71 | G68: 1903.23 | H68: 1480.29
A69: 2 | B69: 2 Children | D69: 6964.2 | E69: 5137.82 | F69: 3885.43 | G69: 3020.47 | H69: 2355.85
A70: 3 | B70: 3+ Children | D70: 10212.57 | E70: 7524.41 | F70: 5688.49 | G70: 4426.56 | H70: 3447.12
A71: 1 | B71: Rider Comp. Maternidad | D71: =+D36*$G$2 -> 0 | E71: 0 | F71: 119.25 | G71: 119.25 | H71: 119.25
A72: 1 | B72: Transplante de organos | D72: 0 | E72: 0 | F72: 0 | G72: 0 | H72: 0
A78: DIAMOND (LATINAMERICA ONLY)
A79: TARIFAS ANUALES
A80: EDAD
C81: DL1 | D81: DL2 | E81: DL3 | F81: DL4 | G81: DL5 | H81: DL6
A82: 18 | B82: - 24
A83: 25 | B83: - 29
A84: 30 | B84: - 34
A85: 35 | B85: - 39
A86: 40 | B86: - 44
A87: 45 | B87: - 49
A88: 50 | B88: - 54
A89: 55 | B89: - 59
A90: 60
A91: 61
A92: 62
A93: 63
A94: 64
A95: 65
A96: 66
A97: 67
A98: 68
A99: 69
A100: 70
A101: 71
A102: 72
A103: 73
A104: 74
A105: 75 | B105: o más
A106: 1 | B106: Hijo
A107: 2 | B107: Hijos
A108: 3 | B108: Hijos o más
A109: 1 | B109: Rider Comp. Maternidad
A110: 1 | B110: Transplante de organos | C110: 0 | D110: 0 | E110: 0 | F110: 0 | G110: 0 | H110: 0
A112: TARIFAS SEMESTRALES
A113: EDAD
C114: DL1 | D114: DL2 | E114: DL3 | F114: DL4 | G114: DL5 | H114: DL6
A115: 18 | B115: - 24 | C115: =+C82*$G$2 -> 0 | D115: 0 | E115: 0 | F115: 0 | G115: 0 | H115: 0
A116: 25 | B116: - 29 | C116: 0 | D116: 0 | E116: 0 | F116: 0 | G116: 0 | H116: 0
A117: 30 | B117: - 34 | C117: 0 | D117: 0 | E117: 0 | F117: 0 | G117: 0 | H117: 0
A118: 35 | B118: - 39 | C118: 0 | D118: 0 | E118: 0 | F118: 0 | G118: 0 | H118: 0
A119: 40 | B119: - 44 | C119: 0 | D119: 0 | E119: 0 | F119: 0 | G119: 0 | H119: 0
A120: 45 | B120: - 49 | C120: 0 | D120: 0 | E120: 0 | F120: 0 | G120: 0 | H120: 0
A121: 50 | B121: - 54 | C121: 0 | D121: 0 | E121: 0 | F121: 0 | G121: 0 | H121: 0
A122: 55 | B122: - 59 | C122: 0 | D122: 0 | E122: 0 | F122: 0 | G122: 0 | H122: 0
A123: 60 | C123: 0 | D123: 0 | E123: 0 | F123: 0 | G123: 0 | H123: 0
A124: 61 | C124: 0 | D124: 0 | E124: 0 | F124: 0 | G124: 0 | H124: 0
A125: 62 | C125: 0 | D125: 0 | E125: 0 | F125: 0 | G125: 0 | H125: 0
A126: 63 | C126: 0 | D126: 0 | E126: 0 | F126: 0 | G126: 0 | H126: 0
A127: 64 | C127: 0 | D127: 0 | E127: 0 | F127: 0 | G127: 0 | H127: 0
A128: 65 | C128: 0 | D128: 0 | E128: 0 | F128: 0 | G128: 0 | H128: 0
A129: 66 | C129: 0 | D129: 0 | E129: 0 | F129: 0 | G129: 0 | H129: 0
A130: 67 | C130: 0 | D130: 0 | E130: 0 | F130: 0 | G130: 0 | H130: 0
A131: 68 | C131: =+C98*$G$2 -> 0 | D131: 0 | E131: 0 | F131: 0 | G131: 0 | H131: 0
A132: 69 | C132: 0 | D132: 0 | E132: 0 | F132: 0 | G132: 0 | H132: 0
A133: 70 | C133: 0 | D133: 0 | E133: 0 | F133: 0 | G133: 0 | H133: 0
A134: 71 | C134: 0 | D134: 0 | E134: 0 | F134: 0 | G134: 0 | H134: 0
A135: 72 | C135: 0 | D135: 0 | E135: 0 | F135: 0 | G135: 0 | H135: 0
A136: 73 | C136: 0 | D136: 0 | E136: 0 | F136: 0 | G136: 0 | H136: 0
A137: 74 | C137: 0 | D137: 0 | E137: 0 | F137: 0 | G137: 0 | H137: 0
A138: 75 | B138: o más | C138: 0 | D138: 0 | E138: 0 | F138: 0 | G138: 0 | H138: 0
A139: 1 | B139: Hijo | C139: 0 | D139: 0 | E139: 0 | F139: 0 | G139: 0 | H139: 0
A140: 2 | B140: Hijos | C140: 0 | D140: 0 | E140: 0 | F140: 0 | G140: 0 | H140: 0
A141: 3 | B141: Hijos o más | C141: 0 | D141: 0 | E141: 0 | F141: 0 | G141: 0 | H141: 0
A142: 1 | B142: Rider Comp. Maternidad | C142: 0 | D142: 0 | E142: 0 | F142: 0 | G142: 0 | H142: 0
A143: 1 | B143: Transplante de organos | C143: 0 | D143: 0 | E143: 0 | F143: 0 | G143: 0 | H143: 0
A148: BUPA PRIVILEGE CARE
A149: TARIFAS ANUALES
A150: EDAD
C151: CW1 | D151: CW2 | E151: CW3 | F151: CW4 | G151: CW5 | H151: CW6
A152: 18 | B152: 18-24 | D152: 20001 | E152: 13749 | F152: 8953 | G152: 5875 | H152: 4468
A153: 25 | B153: 25-29 | D153: 20978 | E153: 15211 | F153: 9914 | G153: 6503 | H153: 4950
A154: 30 | B154: 30-34 | D154: 21917 | E154: 16269 | F154: 11128 | G154: 7857 | H154: 6012
A155: 35 | B155: 35-39 | D155: 24534 | E155: 18212 | F155: 12471 | G155: 8814 | H155: 6730
A156: 40 | B156: 40-44 | D156: 28405 | E156: 19975 | F156: 13863 | G156: 9720 | H156: 7430
A157: 45 | B157: 45-49 | D157: 31734 | E157: 22319 | F157: 15487 | G157: 10865 | H157: 8297
A158: 50 | B158: 50-54 | D158: 41478 | E158: 29440 | F158: 20336 | G158: 15490 | H158: 11846
A159: 55 | B159: 55-59 | D159: 44122 | E159: 31317 | F159: 21639 | G159: 16489 | H159: 12604
A160: 60 | B160: 60 | D160: 48050 | E160: 34001 | F160: 24628 | G160: 19606 | H160: 15762
A161: 61 | B161: 61 | D161: 51622 | E161: 36525 | F161: 26457 | G161: 21073 | H161: 16927
A162: 62 | B162: 62 | D162: 56506 | E162: 40006 | F162: 28971 | G162: 23073 | H162: 18535
A163: 63 | B163: 63 | D163: 60090 | E163: 42531 | F163: 30800 | G163: 24544 | H163: 19703
A164: 64 | B164: 64 | D164: 64988 | E164: 46020 | F164: 33325 | G164: 26549 | H164: 21321
A165: 65 | B165: 65 | D165: 84970 | E165: 60013 | F165: 42129 | G165: 35395 | H165: 30058
A166: 66 | B166: 66 | D166: 98701 | E166: 69732 | F166: 48951 | G166: 41137 | H166: 34923
A167: 67 | B167: 67 | D167: 107795 | E167: 76158 | F167: 53465 | G167: 44912 | H167: 38146
A168: 68 | B168: 68 | D168: 119363 | E168: 84318 | F168: 59208 | G168: 49739 | H168: 42239
A169: 69 | B169: 69 | D169: 131321 | E169: 92765 | F169: 65128 | G169: 54718 | H169: 46478
A170: 70 | B170: 70 | D170: 161618 | E170: 112958 | F170: 76669 | G170: 63776 | H170: 54653
A171: 71 | B171: 71 | D171: 167965 | E171: 117376 | F171: 79667 | G171: 66272 | H171: 56812
A172: 72 | B172: 72 | D172: 172727 | E172: 120697 | F172: 81934 | G172: 68149 | H172: 58413
A173: 73 | B173: 73 | D173: 179060 | E173: 125141 | F173: 84937 | G173: 70655 | H173: 60577
A174: 74 | B174: 74 | D174: 182230 | E174: 127348 | F174: 86441 | G174: 71915 | H174: 61633
A175: 75 | B175: 75+ | D175: 190166 | E175: 132896 | F175: 90201 | G175: 75038 | H175: 64316
A176: 1 | B176: 1 Child | D176: 6933 | E176: 5059 | F176: 3637 | G176: 2836 | H176: 2104
A177: 2 | B177: 2 Children | D177: 11019 | E177: 8063 | F177: 5798 | G177: 4515 | H177: 3342
A178: 3 | B178: 3+ Children | D178: 16162 | E178: 11811 | F178: 8488 | G178: 6615 | H178: 4899
A179: 1 | B179: Rider Comp. Maternidad | D179: 0 | E179: 0 | F179: 225 | G179: 225 | H179: 225
A180: 1 | B180: Transplante de organos | D180: 0 | E180: 0 | F180: 0 | G180: 0 | H180: 0
A184: TARIFAS SEMESTRALES
A185: EDAD
D186: CW2 | E186: CW3 | F186: CW4 | G186: CW5 | H186: CW6
A187: 18 | B187: 18-24 | D187: =$G$2*D152 -> 10600.53 | E187: 7286.97 | F187: 4745.09 | G187: 3113.75 | H187: 2368.04
A188: 25 | B188: 25-29 | D188: 11118.34 | E188: 8061.83 | F188: 5254.42 | G188: 3446.59 | H188: 2623.5
A189: 30 | B189: 30-34 | D189: 11616.01 | E189: 8622.57 | F189: 5897.84 | G189: 4164.21 | H189: 3186.36
A190: 35 | B190: 35-39 | D190: 13003.02 | E190: 9652.36 | F190: 6609.63 | G190: 4671.42 | H190: 3566.9
A191: 40 | B191: 40-44 | D191: 15054.65 | E191: 10586.75 | F191: 7347.39 | G191: 5151.6 | H191: 3937.9
A192: 45 | B192: 45-49 | D192: 16819.02 | E192: 11829.07 | F192: 8208.11 | G192: 5758.45 | H192: 4397.41
A193: 50 | B193: 50-54 | D193: 21983.34 | E193: 15603.2 | F193: 10778.08 | G193: 8209.7 | H193: 6278.38
A194: 55 | B194: 55-59 | D194: 23384.66 | E194: 16598.01 | F194: 11468.67 | G194: 8739.17 | H194: 6680.12
A195: 60 | B195: 60 | D195: 25466.5 | E195: 18020.53 | F195: 13052.84 | G195: 10391.18 | H195: 8353.86
A196: 61 | B196: 61 | D196: 27359.66 | E196: 19358.25 | F196: 14022.21 | G196: 11168.69 | H196: 8971.31
A197: 62 | B197: 62 | D197: 29948.18 | E197: 21203.18 | F197: 15354.63 | G197: 12228.69 | H197: 9823.55
A198: 63 | B198: 63 | D198: 31847.7 | E198: 22541.43 | F198: 16324 | G198: 13008.32 | H198: 10442.59
A199: 64 | B199: 64 | D199: 34443.64 | E199: 24390.6 | F199: 17662.25 | G199: 14070.97 | H199: 11300.13
A200: 65 | B200: 65 | D200: 45034.1 | E200: 31806.89 | F200: 22328.37 | G200: 18759.35 | H200: 15930.74
A201: 66 | B201: 66 | D201: 52311.53 | E201: 36957.96 | F201: 25944.03 | G201: 21802.61 | H201: 18509.19
A202: 67 | B202: 67 | D202: 57131.35 | E202: 40363.74 | F202: 28336.45 | G202: 23803.36 | H202: 20217.38
A203: 68 | B203: 68 | D203: =$G$2*D168 -> 63262.39 | E203: 44688.54 | F203: 31380.24 | G203: 26361.67 | H203: 22386.67
A204: 69 | B204: 69 | D204: 69600.13 | E204: 49165.45 | F204: 34517.84 | G204: 29000.54 | H204: 24633.34
A205: 70 | B205: 70 | D205: 85657.54 | E205: 59867.74 | F205: 40634.57 | G205: 33801.28 | H205: 28966.09
A206: 71 | B206: 71 | D206: 89021.45 | E206: 62209.28 | F206: 42223.51 | G206: 35124.16 | H206: 30110.36
A207: 72 | B207: 72 | D207: 91545.31 | E207: 63969.41 | F207: 43425.02 | G207: 36118.97 | H207: 30958.89
A208: 73 | B208: 73 | D208: 94901.8 | E208: 66324.73 | F208: 45016.61 | G208: 37447.15 | H208: 32105.81
A209: 74 | B209: 74 | D209: 96581.9 | E209: 67494.44 | F209: 45813.73 | G209: 38114.95 | H209: 32665.49
A210: 75 | B210: 75+ | D210: 100787.98 | E210: 70434.88 | F210: 47806.53 | G210: 39770.14 | H210: 34087.48
A211: 1 | B211: 1 Child | D211: 3674.49 | E211: 2681.27 | F211: 1927.61 | G211: 1503.08 | H211: 1115.12
A212: 2 | B212: 2 Children | D212: 5840.07 | E212: 4273.39 | F212: 3072.94 | G212: 2392.95 | H212: 1771.26
A213: 3 | B213: 3+ Children | D213: 8565.86 | E213: 6259.83 | F213: 4498.64 | G213: 3505.95 | H213: 2596.47
A214: 1 | B214: Rider Comp. Maternidad | D214: =+D179*$G$2 -> 0 | E214: 0 | F214: 119.25 | G214: 119.25 | H214: 119.25
A215: 1 | B215: Transplante de organos | D215: 0 | E215: 0 | F215: 0 | G215: 0 | H215: 0
A220: COMPLETE (LATINAMERICA ONLY)
A221: TARIFAS ANUALES
A222: EDAD
... 335 more rows

Sheet 5 (hidden)
K1: D1 | L1: D2 | M1: D3 | N1: D4 | O1: D5 | P1: D6
B2: REGIÓN | C2: ='INGRESO DE DATOS'!W14 -> 2 | E2: FACTOR SEMESTRAL : | G2: 0.53 | I2: NEW BUSINESS DISCUOUNTS | K2: ='INGRESO DE DATOS'!O42 -> 1 | L2: ='INGRESO DE DATOS'!P42 -> 1 | M2: ='INGRESO DE DATOS'!Q42 -> 1 | N2: ='INGRESO DE DATOS'!R42 -> 1 | O2: ='INGRESO DE DATOS'!S42 -> 1 | P2: ='INGRESO DE DATOS'!T42 -> 1
A5: BUPA EXCLUSIVE CARE
A6: TARIFAS ANUALES
A7: EDAD
C8: DW1 | D8: DW2 | E8: DW3 | F8: DW4 | G8: DW5 | H8: DW6
A9: 18 | B9: 18-24 | D9: 14911 | E9: 9866 | F9: 6865 | G9: 4531 | H9: 3562
A10: 25 | B10: 25-29 | D10: 15641 | E10: 10896 | F10: 7599 | G10: 5009 | H10: 3944
A11: 30 | B11: 30-34 | D11: 16267 | E11: 11683 | F11: 8507 | G11: 5998 | H11: 4732
A12: 35 | B12: 35-39 | D12: 18224 | E12: 13082 | F12: 9531 | G12: 6722 | H12: 5298
A13: 40 | B13: 40-44 | D13: 21116 | E13: 14295 | F13: 10579 | G13: 7381 | H13: 5821
A14: 45 | B14: 45-49 | D14: 23604 | E14: 15990 | F14: 11810 | G14: 8253 | H14: 6505
A15: 50 | B15: 50-54 | D15: 30207 | E15: 20969 | F15: 15415 | G15: 11654 | H15: 9193
A16: 55 | B16: 55-59 | D16: 32131 | E16: 22313 | F16: 16399 | G16: 12397 | H16: 9783
A17: 60 | B17: 60 | D17: 34998 | E17: 24343 | F17: 18860 | G17: 14928 | H17: 12150
A18: 61 | B18: 61 | D18: 37605 | E18: 26155 | F18: 20247 | G18: 16043 | H18: 13050
A19: 62 | B19: 62 | D19: 41173 | E19: 28637 | F19: 22185 | G19: 17555 | H19: 14285
A20: 63 | B20: 63 | D20: 43770 | E20: 30447 | F20: 23578 | G20: 18678 | H20: 15193
A21: 64 | B21: 64 | D21: 47346 | E21: 32949 | F21: 25511 | G21: 20200 | H21: 16434
A22: 65 | B22: 65 | D22: 61879 | E22: 42968 | F22: 32247 | G22: 26931 | H22: 23167
A23: 66 | B23: 66 | D23: 71883 | E23: 49919 | F23: 37471 | G23: 31297 | H23: 26917
A24: 67 | B24: 67 | D24: 78520 | E24: 54517 | F24: 40927 | G24: 34181 | H24: 29393
A25: 68 | B25: 68 | D25: 86934 | E25: 60362 | F25: 45310 | G25: 37851 | H25: 32557
A26: 69 | B26: 69 | D26: 95657 | E26: 66424 | F26: 49850 | G26: 41637 | H26: 35815
A27: 70 | B27: 70 | D27: 117719 | E27: 80866 | F27: 58685 | G27: 48517 | H27: 42118
A28: 71 | B28: 71 | D28: 122339 | E28: 84045 | F28: 60987 | G28: 50427 | H28: 43772
A29: 72 | B29: 72 | D29: 125808 | E29: 86410 | F29: 62706 | G29: 51851 | H29: 45022
A30: 73 | B30: 73 | D30: 130426 | E30: 89587 | F30: 65011 | G30: 53762 | H30: 46671
A31: 74 | B31: 74 | D31: 132733 | E31: 91168 | F31: 66167 | G31: 54707 | H31: 47495
A32: 75 | B32: 75+ | D32: 138511 | E32: 95143 | F32: 69041 | G32: 57092 | H32: 49565
A33: 1 | B33: 1 Child | D33: 5180 | E33: 3811 | F33: 3060 | G33: 2386 | H33: 1864
A34: 2 | B34: 2 Children | D34: 8229 | E34: 6069 | F34: 4859 | G34: 3791 | H34: 2951
A35: 3 | B35: 3+ Children | D35: 12067 | E35: 8881 | F35: 7123 | G35: 5557 | H35: 4330
A36: 1 | B36: Rider Comp. Maternidad | D36: 0 | E36: 0 | F36: 225 | G36: 225 | H36: 225
A37: 1 | B37: Transplante de organos | D37: 0 | E37: 0 | F37: 0 | G37: 0 | H37: 0
A41: TARIFAS SEMESTRALES
A42: EDAD
D43: DW2 | E43: DW3 | F43: DW4 | G43: DW5 | H43: DW6
A44: 18 | B44: 18-24 | D44: =$G$2*D9 -> 7902.83 | E44: 5228.98 | F44: 3638.45 | G44: 2401.43 | H44: 1887.86
A45: 25 | B45: 25-29 | D45: 8289.73 | E45: 5774.88 | F45: 4027.47 | G45: 2654.77 | H45: 2090.32
A46: 30 | B46: 30-34 | D46: 8621.51 | E46: 6191.99 | F46: 4508.71 | G46: 3178.94 | H46: 2507.96
A47: 35 | B47: 35-39 | D47: 9658.72 | E47: 6933.46 | F47: 5051.43 | G47: 3562.66 | H47: 2807.94
A48: 40 | B48: 40-44 | D48: 11191.48 | E48: 7576.35 | F48: 5606.87 | G48: 3911.93 | H48: 3085.13
A49: 45 | B49: 45-49 | D49: 12510.12 | E49: 8474.7 | F49: 6259.3 | G49: 4374.09 | H49: 3447.65
A50: 50 | B50: 50-54 | D50: 16009.71 | E50: 11113.57 | F50: 8169.95 | G50: 6176.62 | H50: 4872.29
A51: 55 | B51: 55-59 | D51: 17029.43 | E51: 11825.89 | F51: 8691.47 | G51: 6570.41 | H51: 5184.99
A52: 60 | B52: 60 | D52: 18548.94 | E52: 12901.79 | F52: 9995.8 | G52: 7911.84 | H52: 6439.5
A53: 61 | B53: 61 | D53: 19930.65 | E53: 13862.15 | F53: 10730.91 | G53: 8502.79 | H53: 6916.5
A54: 62 | B54: 62 | D54: 21821.69 | E54: 15177.61 | F54: 11758.05 | G54: 9304.15 | H54: 7571.05
A55: 63 | B55: 63 | D55: 23198.1 | E55: 16136.91 | F55: 12496.34 | G55: 9899.34 | H55: 8052.29
A56: 64 | B56: 64 | D56: 25093.38 | E56: 17462.97 | F56: 13520.83 | G56: 10706 | H56: 8710.02
A57: 65 | B57: 65 | D57: 32795.87 | E57: 22773.04 | F57: 17090.91 | G57: 14273.43 | H57: 12278.51
A58: 66 | B58: 66 | D58: 38097.99 | E58: 26457.07 | F58: 19859.63 | G58: 16587.41 | H58: 14266.01
A59: 67 | B59: 67 | D59: 41615.6 | E59: 28894.01 | F59: 21691.31 | G59: 18115.93 | H59: 15578.29
A60: 68 | B60: 68 | D60: =$G$2*D25 -> 46075.02 | E60: 31991.86 | F60: 24014.3 | G60: 20061.03 | H60: 17255.21
A61: 69 | B61: 69 | D61: 50698.21 | E61: 35204.72 | F61: 26420.5 | G61: 22067.61 | H61: 18981.95
A62: 70 | B62: 70 | D62: 62391.07 | E62: 42858.98 | F62: 31103.05 | G62: 25714.01 | H62: 22322.54
A63: 71 | B63: 71 | D63: 64839.67 | E63: 44543.85 | F63: 32323.11 | G63: 26726.31 | H63: 23199.16
A64: 72 | B64: 72 | D64: 66678.24 | E64: 45797.3 | F64: 33234.18 | G64: 27481.03 | H64: 23861.66
A65: 73 | B65: 73 | D65: 69125.78 | E65: 47481.11 | F65: 34455.83 | G65: 28493.86 | H65: 24735.63
A66: 74 | B66: 74 | D66: 70348.49 | E66: 48319.04 | F66: 35068.51 | G66: 28994.71 | H66: 25172.35
A67: 75 | B67: 75+ | D67: 73410.83 | E67: 50425.79 | F67: 36591.73 | G67: 30258.76 | H67: 26269.45
A68: 1 | B68: 1 Child | D68: 2745.4 | E68: 2019.83 | F68: 1621.8 | G68: 1264.58 | H68: 987.92
A69: 2 | B69: 2 Children | D69: 4361.37 | E69: 3216.57 | F69: 2575.27 | G69: 2009.23 | H69: 1564.03
A70: 3 | B70: 3+ Children | D70: 6395.51 | E70: 4706.93 | F70: 3775.19 | G70: 2945.21 | H70: 2294.9
A71: 1 | B71: Rider Comp. Maternidad | D71: =+D36*$G$2 -> 0 | E71: 0 | F71: 119.25 | G71: 119.25 | H71: 119.25
A72: 1 | B72: Transplante de organos | D72: 0 | E72: 0 | F72: 0 | G72: 0 | H72: 0
A78: DIAMOND (LATINAMERICA ONLY)
A79: TARIFAS ANUALES
A80: EDAD
C81: DL1 | D81: DL2 | E81: DL3 | F81: DL4 | G81: DL5 | H81: DL6
A82: 18 | B82: - 24
A83: 25 | B83: - 29
A84: 30 | B84: - 34
A85: 35 | B85: - 39
A86: 40 | B86: - 44
A87: 45 | B87: - 49
A88: 50 | B88: - 54
A89: 55 | B89: - 59
A90: 60
A91: 61
A92: 62
A93: 63
A94: 64
A95: 65
A96: 66
A97: 67
A98: 68
A99: 69
A100: 70
A101: 71
A102: 72
A103: 73
A104: 74
A105: 75 | B105: o más
A106: 1 | B106: Hijo
A107: 2 | B107: Hijos
A108: 3 | B108: Hijos o más
A109: 1 | B109: Rider Comp. Maternidad
A110: 1 | B110: Transplante de organos | C110: 0 | D110: 0 | E110: 0 | F110: 0 | G110: 0 | H110: 0
A112: TARIFAS SEMESTRALES
A113: EDAD
C114: DL1 | D114: DL2 | E114: DL3 | F114: DL4 | G114: DL5 | H114: DL6
A115: 18 | B115: - 24 | C115: =+C82*$G$2 -> 0 | D115: 0 | E115: 0 | F115: 0 | G115: 0 | H115: 0
A116: 25 | B116: - 29 | C116: 0 | D116: 0 | E116: 0 | F116: 0 | G116: 0 | H116: 0
A117: 30 | B117: - 34 | C117: 0 | D117: 0 | E117: 0 | F117: 0 | G117: 0 | H117: 0
A118: 35 | B118: - 39 | C118: 0 | D118: 0 | E118: 0 | F118: 0 | G118: 0 | H118: 0
A119: 40 | B119: - 44 | C119: 0 | D119: 0 | E119: 0 | F119: 0 | G119: 0 | H119: 0
A120: 45 | B120: - 49 | C120: 0 | D120: 0 | E120: 0 | F120: 0 | G120: 0 | H120: 0
A121: 50 | B121: - 54 | C121: 0 | D121: 0 | E121: 0 | F121: 0 | G121: 0 | H121: 0
A122: 55 | B122: - 59 | C122: 0 | D122: 0 | E122: 0 | F122: 0 | G122: 0 | H122: 0
A123: 60 | C123: 0 | D123: 0 | E123: 0 | F123: 0 | G123: 0 | H123: 0
A124: 61 | C124: 0 | D124: 0 | E124: 0 | F124: 0 | G124: 0 | H124: 0
A125: 62 | C125: 0 | D125: 0 | E125: 0 | F125: 0 | G125: 0 | H125: 0
A126: 63 | C126: 0 | D126: 0 | E126: 0 | F126: 0 | G126: 0 | H126: 0
A127: 64 | C127: 0 | D127: 0 | E127: 0 | F127: 0 | G127: 0 | H127: 0
A128: 65 | C128: 0 | D128: 0 | E128: 0 | F128: 0 | G128: 0 | H128: 0
A129: 66 | C129: 0 | D129: 0 | E129: 0 | F129: 0 | G129: 0 | H129: 0
A130: 67 | C130: 0 | D130: 0 | E130: 0 | F130: 0 | G130: 0 | H130: 0
A131: 68 | C131: =+C98*$G$2 -> 0 | D131: 0 | E131: 0 | F131: 0 | G131: 0 | H131: 0
A132: 69 | C132: 0 | D132: 0 | E132: 0 | F132: 0 | G132: 0 | H132: 0
A133: 70 | C133: 0 | D133: 0 | E133: 0 | F133: 0 | G133: 0 | H133: 0
A134: 71 | C134: 0 | D134: 0 | E134: 0 | F134: 0 | G134: 0 | H134: 0
A135: 72 | C135: 0 | D135: 0 | E135: 0 | F135: 0 | G135: 0 | H135: 0
A136: 73 | C136: 0 | D136: 0 | E136: 0 | F136: 0 | G136: 0 | H136: 0
A137: 74 | C137: 0 | D137: 0 | E137: 0 | F137: 0 | G137: 0 | H137: 0
A138: 75 | B138: o más | C138: 0 | D138: 0 | E138: 0 | F138: 0 | G138: 0 | H138: 0
A139: 1 | B139: Hijo | C139: 0 | D139: 0 | E139: 0 | F139: 0 | G139: 0 | H139: 0
A140: 2 | B140: Hijos | C140: 0 | D140: 0 | E140: 0 | F140: 0 | G140: 0 | H140: 0
A141: 3 | B141: Hijos o más | C141: 0 | D141: 0 | E141: 0 | F141: 0 | G141: 0 | H141: 0
A142: 1 | B142: Rider Comp. Maternidad | C142: 0 | D142: 0 | E142: 0 | F142: 0 | G142: 0 | H142: 0
A143: 1 | B143: Transplante de organos | C143: 0 | D143: 0 | E143: 0 | F143: 0 | G143: 0 | H143: 0
A148: BUPA PRIVILEGE CARE
A149: TARIFAS ANUALES
A150: EDAD
C151: CW1 | D151: CW2 | E151: CW3 | F151: CW4 | G151: CW5 | H151: CW6
A152: 18 | B152: 18-24 | D152: 12543 | E152: 8625 | F152: 5960 | G152: 3912 | H152: 2980
A153: 25 | B153: 25-29 | D153: 13161 | E153: 9535 | F153: 6603 | G153: 4336 | H153: 3310
A154: 30 | B154: 30-34 | D154: 13753 | E154: 10219 | F154: 7397 | G154: 5252 | H154: 4005
A155: 35 | B155: 35-39 | D155: 15396 | E155: 11437 | F155: 8286 | G155: 5881 | H155: 4486
A156: 40 | B156: 40-44 | D156: 17822 | E156: 12527 | F156: 9214 | G156: 6484 | H156: 4949
A157: 45 | B157: 45-49 | D157: 19901 | E157: 14003 | F157: 10309 | G157: 7242 | H157: 5535
A158: 50 | B158: 50-54 | D158: 26016 | E158: 18463 | F158: 13529 | G158: 10334 | H158: 7899
A159: 55 | B159: 55-59 | D159: 27682 | E159: 19643 | F159: 14396 | G159: 10998 | H159: 8409
A160: 60 | B160: 60 | D160: 30146 | E160: 21337 | F160: 16375 | G160: 13086 | H160: 10505
A161: 61 | B161: 61 | D161: 32383 | E161: 22916 | F161: 17589 | G161: 14053 | H161: 11281
A162: 62 | B162: 62 | D162: 35450 | E162: 25097 | F162: 19265 | G162: 15386 | H162: 12359
A163: 63 | B163: 63 | D163: 37693 | E163: 26675 | F163: 20478 | G163: 16357 | H163: 13137
A164: 64 | B164: 64 | D164: 40768 | E164: 28861 | F164: 22153 | G164: 17696 | H164: 14214
A165: 65 | B165: 65 | D165: 53285 | E165: 37643 | F165: 28013 | G165: 23591 | H165: 20038
A166: 66 | B166: 66 | D166: 61907 | E166: 43732 | F166: 32544 | G166: 27413 | H166: 23289
A167: 67 | B167: 67 | D167: 67620 | E167: 47770 | F167: 35541 | G167: 29941 | H167: 25426
A168: 68 | B168: 68 | D168: 74878 | E168: 52891 | F168: 39366 | G168: 33166 | H168: 28155
A169: 69 | B169: 69 | D169: 82375 | E169: 58189 | F169: 43305 | G169: 36479 | H169: 30980
A170: 70 | B170: 70 | D170: 101373 | E170: 70848 | F170: 50969 | G170: 42511 | H170: 36441
A171: 71 | B171: 71 | D171: 105352 | E171: 73619 | F171: 52977 | G171: 44172 | H171: 37869
A172: 72 | B172: 72 | D172: 108323 | E172: 75712 | F172: 54474 | G172: 45429 | H172: 38941
A173: 73 | B173: 73 | D173: 112323 | E173: 78490 | F173: 56474 | G173: 47095 | H173: 40375
A174: 74 | B174: 74 | D174: 114305 | E174: 79881 | F174: 57467 | G174: 47928 | H174: 41086
A175: 75 | B175: 75+ | D175: 119277 | E175: 83348 | F175: 59973 | G175: 50016 | H175: 42876
A176: 1 | B176: 1 Child | D176: 4352 | E176: 3180 | F176: 2422 | G176: 1894 | H176: 1402
A177: 2 | B177: 2 Children | D177: 6923 | E177: 5063 | F177: 3852 | G177: 3014 | H177: 2228
A178: 3 | B178: 3+ Children | D178: 10141 | E178: 7419 | F178: 5646 | G178: 4412 | H178: 3268
A179: 1 | B179: Rider Comp. Maternidad | D179: 0 | E179: 0 | F179: 225 | G179: 225 | H179: 225
A180: 1 | B180: Transplante de organos | D180: 0 | E180: 0 | F180: 0 | G180: 0 | H180: 0
A184: TARIFAS SEMESTRALES
A185: EDAD
D186: CW2 | E186: CW3 | F186: CW4 | G186: CW5 | H186: CW6
A187: 18 | B187: 18-24 | D187: =$G$2*D152 -> 6647.79 | E187: 4571.25 | F187: 3158.8 | G187: 2073.36 | H187: 1579.4
A188: 25 | B188: 25-29 | D188: 6975.33 | E188: 5053.55 | F188: 3499.59 | G188: 2298.08 | H188: 1754.3
A189: 30 | B189: 30-34 | D189: 7289.09 | E189: 5416.07 | F189: 3920.41 | G189: 2783.56 | H189: 2122.65
A190: 35 | B190: 35-39 | D190: 8159.88 | E190: 6061.61 | F190: 4391.58 | G190: 3116.93 | H190: 2377.58
A191: 40 | B191: 40-44 | D191: 9445.66 | E191: 6639.31 | F191: 4883.42 | G191: 3436.52 | H191: 2622.97
A192: 45 | B192: 45-49 | D192: 10547.53 | E192: 7421.59 | F192: 5463.77 | G192: 3838.26 | H192: 2933.55
A193: 50 | B193: 50-54 | D193: 13788.48 | E193: 9785.39 | F193: 7170.37 | G193: 5477.02 | H193: 4186.47
A194: 55 | B194: 55-59 | D194: 14671.46 | E194: 10410.79 | F194: 7629.88 | G194: 5828.94 | H194: 4456.77
A195: 60 | B195: 60 | D195: 15977.38 | E195: 11308.61 | F195: 8678.75 | G195: 6935.58 | H195: 5567.65
A196: 61 | B196: 61 | D196: 17162.99 | E196: 12145.48 | F196: 9322.17 | G196: 7448.09 | H196: 5978.93
A197: 62 | B197: 62 | D197: 18788.5 | E197: 13301.41 | F197: 10210.45 | G197: 8154.58 | H197: 6550.27
A198: 63 | B198: 63 | D198: 19977.29 | E198: 14137.75 | F198: 10853.34 | G198: 8669.21 | H198: 6962.61
A199: 64 | B199: 64 | D199: 21607.04 | E199: 15296.33 | F199: 11741.09 | G199: 9378.88 | H199: 7533.42
A200: 65 | B200: 65 | D200: 28241.05 | E200: 19950.79 | F200: 14846.89 | G200: 12503.23 | H200: 10620.14
A201: 66 | B201: 66 | D201: 32810.71 | E201: 23177.96 | F201: 17248.32 | G201: 14528.89 | H201: 12343.17
A202: 67 | B202: 67 | D202: 35838.6 | E202: 25318.1 | F202: 18836.73 | G202: 15868.73 | H202: 13475.78
A203: 68 | B203: 68 | D203: =$G$2*D168 -> 39685.34 | E203: 28032.23 | F203: 20863.98 | G203: 17577.98 | H203: 14922.15
A204: 69 | B204: 69 | D204: 43658.75 | E204: 30840.17 | F204: 22951.65 | G204: 19333.87 | H204: 16419.4
A205: 70 | B205: 70 | D205: 53727.69 | E205: 37549.44 | F205: 27013.57 | G205: 22530.83 | H205: 19313.73
A206: 71 | B206: 71 | D206: 55836.56 | E206: 39018.07 | F206: 28077.81 | G206: 23411.16 | H206: 20070.57
A207: 72 | B207: 72 | D207: 57411.19 | E207: 40127.36 | F207: 28871.22 | G207: 24077.37 | H207: 20638.73
A208: 73 | B208: 73 | D208: 59531.19 | E208: 41599.7 | F208: 29931.22 | G208: 24960.35 | H208: 21398.75
A209: 74 | B209: 74 | D209: 60581.65 | E209: 42336.93 | F209: 30457.51 | G209: 25401.84 | H209: 21775.58
A210: 75 | B210: 75+ | D210: 63216.81 | E210: 44174.44 | F210: 31785.69 | G210: 26508.48 | H210: 22724.28
A211: 1 | B211: 1 Child | D211: 2306.56 | E211: 1685.4 | F211: 1283.66 | G211: 1003.82 | H211: 743.06
A212: 2 | B212: 2 Children | D212: 3669.19 | E212: 2683.39 | F212: 2041.56 | G212: 1597.42 | H212: 1180.84
A213: 3 | B213: 3+ Children | D213: 5374.73 | E213: 3932.07 | F213: 2992.38 | G213: 2338.36 | H213: 1732.04
A214: 1 | B214: Rider Comp. Maternidad | D214: =+D179*$G$2 -> 0 | E214: 0 | F214: 119.25 | G214: 119.25 | H214: 119.25
A215: 1 | B215: Transplante de organos | D215: 0 | E215: 0 | F215: 0 | G215: 0 | H215: 0
A220: COMPLETE (LATINAMERICA ONLY)
A221: TARIFAS ANUALES
A222: EDAD
... 335 more rows

Sheet 6 (hidden)
K1: D1 | L1: D2 | M1: D3 | N1: D4 | O1: D5 | P1: D6
B2: REGIÓN | C2: ='INGRESO DE DATOS'!W14 -> 2 | E2: FACTOR SEMESTRAL : | G2: 0.53 | I2: NEW BUSINESS DISCUOUNTS | K2: ='INGRESO DE DATOS'!O42 -> 1 | L2: ='INGRESO DE DATOS'!P42 -> 1 | M2: ='INGRESO DE DATOS'!Q42 -> 1 | N2: ='INGRESO DE DATOS'!R42 -> 1 | O2: ='INGRESO DE DATOS'!S42 -> 1 | P2: ='INGRESO DE DATOS'!T42 -> 1
A5: BUPA EXCLUSIVE CARE
A6: TARIFAS ANUALES
A7: EDAD
C8: DW1 | D8: DW2 | E8: DW3 | F8: DW4 | G8: DW5 | H8: DW6
A9: 18 | B9: 18-24 | D9: 16901 | E9: 11181 | F9: 7594 | G9: 4902 | H9: 3859
A10: 25 | B10: 25-29 | D10: 17727 | E10: 12343 | F10: 8413 | G10: 5426 | H10: 4273
A11: 30 | B11: 30-34 | D11: 18430 | E11: 13248 | F11: 9418 | G11: 6492 | H11: 5122
A12: 35 | B12: 35-39 | D12: 20647 | E12: 14828 | F12: 10553 | G12: 7282 | H12: 5739
A13: 40 | B13: 40-44 | D13: 23931 | E13: 16220 | F13: 11705 | G13: 8002 | H13: 6305
A14: 45 | B14: 45-49 | D14: 26756 | E14: 18131 | F14: 13082 | G14: 8943 | H14: 7051
A15: 50 | B15: 50-54 | D15: 34229 | E15: 23778 | F15: 17071 | G15: 12628 | H15: 9957
A16: 55 | B16: 55-59 | D16: 36416 | E16: 25298 | F16: 18157 | G16: 13432 | H16: 10597
A17: 60 | B17: 60 | D17: 39671 | E17: 27602 | F17: 20887 | G17: 16178 | H17: 13160
A18: 61 | B18: 61 | D18: 42614 | E18: 29651 | F18: 22432 | G18: 17392 | H18: 14142
A19: 62 | B19: 62 | D19: 46659 | E19: 32480 | F19: 24569 | G19: 19027 | H19: 15489
A20: 63 | B20: 63 | D20: 49616 | E20: 34531 | F20: 26103 | G20: 20237 | H20: 16462
A21: 64 | B21: 64 | D21: 53658 | E21: 37362 | F21: 28244 | G21: 21895 | H21: 17807
A22: 65 | B22: 65 | D22: 70143 | E22: 48726 | F22: 35707 | G22: 29191 | H22: 25103
A23: 66 | B23: 66 | D23: 81478 | E23: 56612 | F23: 41500 | G23: 33924 | H23: 29173
A24: 67 | B24: 67 | D24: 89011 | E24: 61829 | F24: 45327 | G24: 37048 | H24: 31863
A25: 68 | B25: 68 | D25: 98543 | E25: 68468 | F25: 50185 | G25: 41028 | H25: 35286
A26: 69 | B26: 69 | D26: 108424 | E26: 75324 | F26: 55209 | G26: 45135 | H26: 38824
A27: 70 | B27: 70 | D27: 133439 | E27: 91711 | F27: 64998 | G27: 52590 | H27: 45657
A28: 71 | B28: 71 | D28: 138677 | E28: 95310 | F28: 67547 | G28: 54659 | H28: 47455
A29: 72 | B29: 72 | D29: 142605 | E29: 98001 | F29: 69449 | G29: 56209 | H29: 48806
A30: 73 | B30: 73 | D30: 147843 | E30: 101602 | F30: 72005 | G30: 58279 | H30: 50598
A31: 74 | B31: 74 | D31: 150455 | E31: 103398 | F31: 73278 | G31: 59306 | H31: 51498
A32: 75 | B32: 75+ | D32: 157013 | E32: 107893 | F32: 76468 | G32: 61896 | H32: 53734
A33: 1 | B33: 1 Child | D33: 5870 | E33: 4321 | F33: 3384 | G33: 2590 | H33: 2025
A34: 2 | B34: 2 Children | D34: 9327 | E34: 6873 | F34: 5386 | G34: 4109 | H34: 3198
A35: 3 | B35: 3+ Children | D35: 13675 | E35: 10079 | F35: 7885 | G35: 6029 | H35: 4696
A36: 1 | B36: Rider Comp. Maternidad | D36: 0 | E36: 0 | F36: 225 | G36: 225 | H36: 225
A37: 1 | B37: Transplante de organos | D37: 0 | E37: 0 | F37: 0 | G37: 0 | H37: 0
A41: TARIFAS SEMESTRALES
A42: EDAD
D43: DW2 | E43: DW3 | F43: DW4 | G43: DW5 | H43: DW6
A44: 18 | B44: 18-24 | D44: =$G$2*D9 -> 8957.53 | E44: 5925.93 | F44: 4024.82 | G44: 2598.06 | H44: 2045.27
A45: 25 | B45: 25-29 | D45: 9395.31 | E45: 6541.79 | F45: 4458.89 | G45: 2875.78 | H45: 2264.69
A46: 30 | B46: 30-34 | D46: 9767.9 | E46: 7021.44 | F46: 4991.54 | G46: 3440.76 | H46: 2714.66
A47: 35 | B47: 35-39 | D47: 10942.91 | E47: 7858.84 | F47: 5593.09 | G47: 3859.46 | H47: 3041.67
A48: 40 | B48: 40-44 | D48: 12683.43 | E48: 8596.6 | F48: 6203.65 | G48: 4241.06 | H48: 3341.65
A49: 45 | B49: 45-49 | D49: 14180.68 | E49: 9609.43 | F49: 6933.46 | G49: 4739.79 | H49: 3737.03
A50: 50 | B50: 50-54 | D50: 18141.37 | E50: 12602.34 | F50: 9047.63 | G50: 6692.84 | H50: 5277.21
A51: 55 | B51: 55-59 | D51: 19300.48 | E51: 13407.94 | F51: 9623.21 | G51: 7118.96 | H51: 5616.41
A52: 60 | B52: 60 | D52: 21025.63 | E52: 14629.06 | F52: 11070.11 | G52: 8574.34 | H52: 6974.8
A53: 61 | B53: 61 | D53: 22585.42 | E53: 15715.03 | F53: 11888.96 | G53: 9217.76 | H53: 7495.26
A54: 62 | B54: 62 | D54: 24729.27 | E54: 17214.4 | F54: 13021.57 | G54: 10084.31 | H54: 8209.17
A55: 63 | B55: 63 | D55: 26296.48 | E55: 18301.43 | F55: 13834.59 | G55: 10725.61 | H55: 8724.86
A56: 64 | B56: 64 | D56: 28438.74 | E56: 19801.86 | F56: 14969.32 | G56: 11604.35 | H56: 9437.71
A57: 65 | B57: 65 | D57: 37175.79 | E57: 25824.78 | F57: 18924.71 | G57: 15471.23 | H57: 13304.59
A58: 66 | B58: 66 | D58: 43183.34 | E58: 30004.36 | F58: 21995 | G58: 17979.72 | H58: 15461.69
A59: 67 | B59: 67 | D59: 47175.83 | E59: 32769.37 | F59: 24023.31 | G59: 19635.44 | H59: 16887.39
A60: 68 | B60: 68 | D60: =$G$2*D25 -> 52227.79 | E60: 36288.04 | F60: 26598.05 | G60: 21744.84 | H60: 18701.58
A61: 69 | B61: 69 | D61: 57464.72 | E61: 39921.72 | F61: 29260.77 | G61: 23921.55 | H61: 20576.72
A62: 70 | B62: 70 | D62: 70722.67 | E62: 48606.83 | F62: 34448.94 | G62: 27872.7 | H62: 24198.21
A63: 71 | B63: 71 | D63: 73498.81 | E63: 50514.3 | F63: 35799.91 | G63: 28969.27 | H63: 25151.15
A64: 72 | B64: 72 | D64: 75580.65 | E64: 51940.53 | F64: 36807.97 | G64: 29790.77 | H64: 25867.18
A65: 73 | B65: 73 | D65: 78356.79 | E65: 53849.06 | F65: 38162.65 | G65: 30887.87 | H65: 26816.94
A66: 74 | B66: 74 | D66: 79741.15 | E66: 54800.94 | F66: 38837.34 | G66: 31432.18 | H66: 27293.94
A67: 75 | B67: 75+ | D67: 83216.89 | E67: 57183.29 | F67: 40528.04 | G67: 32804.88 | H67: 28479.02
A68: 1 | B68: 1 Child | D68: 3111.1 | E68: 2290.13 | F68: 1793.52 | G68: 1372.7 | H68: 1073.25
A69: 2 | B69: 2 Children | D69: 4943.31 | E69: 3642.69 | F69: 2854.58 | G69: 2177.77 | H69: 1694.94
A70: 3 | B70: 3+ Children | D70: 7247.75 | E70: 5341.87 | F70: 4179.05 | G70: 3195.37 | H70: 2488.88
A71: 1 | B71: Rider Comp. Maternidad | D71: =+D36*$G$2 -> 0 | E71: 0 | F71: 119.25 | G71: 119.25 | H71: 119.25
A72: 1 | B72: Transplante de organos | D72: 0 | E72: 0 | F72: 0 | G72: 0 | H72: 0
A78: DIAMOND (LATINAMERICA ONLY)
A79: TARIFAS ANUALES
A80: EDAD
C81: DL1 | D81: DL2 | E81: DL3 | F81: DL4 | G81: DL5 | H81: DL6
A82: 18 | B82: - 24
A83: 25 | B83: - 29
A84: 30 | B84: - 34
A85: 35 | B85: - 39
A86: 40 | B86: - 44
A87: 45 | B87: - 49
A88: 50 | B88: - 54
A89: 55 | B89: - 59
A90: 60
A91: 61
A92: 62
A93: 63
A94: 64
A95: 65
A96: 66
A97: 67
A98: 68
A99: 69
A100: 70
A101: 71
A102: 72
A103: 73
A104: 74
A105: 75 | B105: o más
A106: 1 | B106: Hijo
A107: 2 | B107: Hijos
A108: 3 | B108: Hijos o más
A109: 1 | B109: Rider Comp. Maternidad
A110: 1 | B110: Transplante de organos | C110: 0 | D110: 0 | E110: 0 | F110: 0 | G110: 0 | H110: 0
A112: TARIFAS SEMESTRALES
A113: EDAD
C114: DL1 | D114: DL2 | E114: DL3 | F114: DL4 | G114: DL5 | H114: DL6
A115: 18 | B115: - 24 | C115: =+C82*$G$2 -> 0 | D115: 0 | E115: 0 | F115: 0 | G115: 0 | H115: 0
A116: 25 | B116: - 29 | C116: 0 | D116: 0 | E116: 0 | F116: 0 | G116: 0 | H116: 0
A117: 30 | B117: - 34 | C117: 0 | D117: 0 | E117: 0 | F117: 0 | G117: 0 | H117: 0
A118: 35 | B118: - 39 | C118: 0 | D118: 0 | E118: 0 | F118: 0 | G118: 0 | H118: 0
A119: 40 | B119: - 44 | C119: 0 | D119: 0 | E119: 0 | F119: 0 | G119: 0 | H119: 0
A120: 45 | B120: - 49 | C120: 0 | D120: 0 | E120: 0 | F120: 0 | G120: 0 | H120: 0
A121: 50 | B121: - 54 | C121: 0 | D121: 0 | E121: 0 | F121: 0 | G121: 0 | H121: 0
A122: 55 | B122: - 59 | C122: 0 | D122: 0 | E122: 0 | F122: 0 | G122: 0 | H122: 0
A123: 60 | C123: 0 | D123: 0 | E123: 0 | F123: 0 | G123: 0 | H123: 0
A124: 61 | C124: 0 | D124: 0 | E124: 0 | F124: 0 | G124: 0 | H124: 0
A125: 62 | C125: 0 | D125: 0 | E125: 0 | F125: 0 | G125: 0 | H125: 0
A126: 63 | C126: 0 | D126: 0 | E126: 0 | F126: 0 | G126: 0 | H126: 0
A127: 64 | C127: 0 | D127: 0 | E127: 0 | F127: 0 | G127: 0 | H127: 0
A128: 65 | C128: 0 | D128: 0 | E128: 0 | F128: 0 | G128: 0 | H128: 0
A129: 66 | C129: 0 | D129: 0 | E129: 0 | F129: 0 | G129: 0 | H129: 0
A130: 67 | C130: 0 | D130: 0 | E130: 0 | F130: 0 | G130: 0 | H130: 0
A131: 68 | C131: =+C98*$G$2 -> 0 | D131: 0 | E131: 0 | F131: 0 | G131: 0 | H131: 0
A132: 69 | C132: 0 | D132: 0 | E132: 0 | F132: 0 | G132: 0 | H132: 0
A133: 70 | C133: 0 | D133: 0 | E133: 0 | F133: 0 | G133: 0 | H133: 0
A134: 71 | C134: 0 | D134: 0 | E134: 0 | F134: 0 | G134: 0 | H134: 0
A135: 72 | C135: 0 | D135: 0 | E135: 0 | F135: 0 | G135: 0 | H135: 0
A136: 73 | C136: 0 | D136: 0 | E136: 0 | F136: 0 | G136: 0 | H136: 0
A137: 74 | C137: 0 | D137: 0 | E137: 0 | F137: 0 | G137: 0 | H137: 0
A138: 75 | B138: o más | C138: 0 | D138: 0 | E138: 0 | F138: 0 | G138: 0 | H138: 0
A139: 1 | B139: Hijo | C139: 0 | D139: 0 | E139: 0 | F139: 0 | G139: 0 | H139: 0
A140: 2 | B140: Hijos | C140: 0 | D140: 0 | E140: 0 | F140: 0 | G140: 0 | H140: 0
A141: 3 | B141: Hijos o más | C141: 0 | D141: 0 | E141: 0 | F141: 0 | G141: 0 | H141: 0
A142: 1 | B142: Rider Comp. Maternidad | C142: 0 | D142: 0 | E142: 0 | F142: 0 | G142: 0 | H142: 0
A143: 1 | B143: Transplante de organos | C143: 0 | D143: 0 | E143: 0 | F143: 0 | G143: 0 | H143: 0
A148: BUPA PRIVILEGE CARE
A149: TARIFAS ANUALES
A150: EDAD
C151: CW1 | D151: CW2 | E151: CW3 | F151: CW4 | G151: CW5 | H151: CW6
A152: 18 | B152: 18-24 | D152: 14218 | E152: 9778 | F152: 6593 | G152: 4242 | H152: 3235
A153: 25 | B153: 25-29 | D153: 14919 | E153: 10823 | F153: 7307 | G153: 4697 | H153: 3577
A154: 30 | B154: 30-34 | D154: 15586 | E154: 11583 | F154: 8194 | G154: 5682 | H154: 4338
A155: 35 | B155: 35-39 | D155: 17450 | E155: 12968 | F155: 9176 | G155: 6371 | H155: 4859
A156: 40 | B156: 40-44 | D156: 20196 | E156: 14205 | F156: 10212 | G156: 7024 | H156: 5362
A157: 45 | B157: 45-49 | D157: 22562 | E157: 15874 | F157: 11414 | G157: 7849 | H157: 6001
A158: 50 | B158: 50-54 | D158: 29496 | E158: 20939 | F158: 14975 | G158: 11203 | H158: 8557
A159: 55 | B159: 55-59 | D159: 31378 | E159: 22278 | F159: 15944 | G159: 11917 | H159: 9115
A160: 60 | B160: 60 | D160: 34172 | E160: 24198 | F160: 18137 | G160: 14174 | H160: 11389
A161: 61 | B161: 61 | D161: 36710 | E161: 25979 | F161: 19485 | G161: 15239 | H161: 12226
A162: 62 | B162: 62 | D162: 40183 | E162: 28457 | F162: 21339 | G162: 16685 | H162: 13389
A163: 63 | B163: 63 | D163: 42729 | E163: 30257 | F163: 22682 | G163: 17733 | H163: 14237
A164: 64 | B164: 64 | D164: 46217 | E164: 32736 | F164: 24540 | G164: 19183 | H164: 15407
A165: 65 | B165: 65 | D165: 60415 | E165: 42694 | F165: 31028 | G165: 25587 | H165: 21722
A166: 66 | B166: 66 | D166: 70185 | E166: 49610 | F166: 36051 | G166: 29731 | H166: 25243
A167: 67 | B167: 67 | D167: 76657 | E167: 54189 | F167: 39371 | G167: 32461 | H167: 27569
A168: 68 | B168: 68 | D168: 84884 | E168: 59990 | F168: 43612 | G168: 35964 | H168: 30525
A169: 69 | B169: 69 | D169: 93386 | E169: 65993 | F169: 47969 | G169: 39556 | H169: 33589
A170: 70 | B170: 70 | D170: 114925 | E170: 80365 | F170: 56462 | G170: 46088 | H170: 39510
A171: 71 | B171: 71 | D171: 119445 | E171: 83517 | F171: 58681 | G171: 47900 | H171: 41066
A172: 72 | B172: 72 | D172: 122827 | E172: 85884 | F172: 60342 | G172: 49257 | H172: 42218
A173: 73 | B173: 73 | D173: 127340 | E173: 89040 | F173: 62566 | G173: 51062 | H173: 43781
A174: 74 | B174: 74 | D174: 129590 | E174: 90608 | F174: 63666 | G174: 51974 | H174: 44554
A175: 75 | B175: 75+ | D175: 135243 | E175: 94554 | F175: 66439 | G175: 54236 | H175: 46486
A176: 1 | B176: 1 Child | D176: 4934 | E176: 3612 | F176: 2683 | G176: 2052 | H176: 1516
A177: 2 | B177: 2 Children | D177: 7852 | E177: 5744 | F177: 4267 | G177: 3263 | H177: 2414
A178: 3 | B178: 3+ Children | D178: 11490 | E178: 8420 | F178: 6248 | G178: 4777 | H178: 3542
A179: 1 | B179: Rider Comp. Maternidad | D179: 0 | E179: 0 | F179: 225 | G179: 225 | H179: 225
A180: 1 | B180: Transplante de organos | D180: 0 | E180: 0 | F180: 0 | G180: 0 | H180: 0
A184: TARIFAS SEMESTRALES
A185: EDAD
D186: CW2 | E186: CW3 | F186: CW4 | G186: CW5 | H186: CW6
A187: 18 | B187: 18-24 | D187: =$G$2*D152 -> 7535.54 | E187: 5182.34 | F187: 3494.29 | G187: 2248.26 | H187: 1714.55
A188: 25 | B188: 25-29 | D188: 7907.07 | E188: 5736.19 | F188: 3872.71 | G188: 2489.41 | H188: 1895.81
A189: 30 | B189: 30-34 | D189: 8260.58 | E189: 6138.99 | F189: 4342.82 | G189: 3011.46 | H189: 2299.14
A190: 35 | B190: 35-39 | D190: 9248.5 | E190: 6873.04 | F190: 4863.28 | G190: 3376.63 | H190: 2575.27
A191: 40 | B191: 40-44 | D191: 10703.88 | E191: 7528.65 | F191: 5412.36 | G191: 3722.72 | H191: 2841.86
A192: 45 | B192: 45-49 | D192: 11957.86 | E192: 8413.22 | F192: 6049.42 | G192: 4159.97 | H192: 3180.53
A193: 50 | B193: 50-54 | D193: 15632.88 | E193: 11097.67 | F193: 7936.75 | G193: 5937.59 | H193: 4535.21
A194: 55 | B194: 55-59 | D194: 16630.34 | E194: 11807.34 | F194: 8450.32 | G194: 6316.01 | H194: 4830.95
A195: 60 | B195: 60 | D195: 18111.16 | E195: 12824.94 | F195: 9612.61 | G195: 7512.22 | H195: 6036.17
A196: 61 | B196: 61 | D196: 19456.3 | E196: 13768.87 | F196: 10327.05 | G196: 8076.67 | H196: 6479.78
A197: 62 | B197: 62 | D197: 21296.99 | E197: 15082.21 | F197: 11309.67 | G197: 8843.05 | H197: 7096.17
A198: 63 | B198: 63 | D198: 22646.37 | E198: 16036.21 | F198: 12021.46 | G198: 9398.49 | H198: 7545.61
A199: 64 | B199: 64 | D199: 24495.01 | E199: 17350.08 | F199: 13006.2 | G199: 10166.99 | H199: 8165.71
A200: 65 | B200: 65 | D200: 32019.95 | E200: 22627.82 | F200: 16444.84 | G200: 13561.11 | H200: 11512.66
A201: 66 | B201: 66 | D201: 37198.05 | E201: 26293.3 | F201: 19107.03 | G201: 15757.43 | H201: 13378.79
A202: 67 | B202: 67 | D202: 40628.21 | E202: 28720.17 | F202: 20866.63 | G202: 17204.33 | H202: 14611.57
A203: 68 | B203: 68 | D203: =$G$2*D168 -> 44988.52 | E203: 31794.7 | F203: 23114.36 | G203: 19060.92 | H203: 16178.25
A204: 69 | B204: 69 | D204: 49494.58 | E204: 34976.29 | F204: 25423.57 | G204: 20964.68 | H204: 17802.17
A205: 70 | B205: 70 | D205: 60910.25 | E205: 42593.45 | F205: 29924.86 | G205: 24426.64 | H205: 20940.3
A206: 71 | B206: 71 | D206: 63305.85 | E206: 44264.01 | F206: 31100.93 | G206: 25387 | H206: 21764.98
A207: 72 | B207: 72 | D207: 65098.31 | E207: 45518.52 | F207: 31981.26 | G207: 26106.21 | H207: 22375.54
A208: 73 | B208: 73 | D208: 67490.2 | E208: 47191.2 | F208: 33159.98 | G208: 27062.86 | H208: 23203.93
A209: 74 | B209: 74 | D209: 68682.7 | E209: 48022.24 | F209: 33742.98 | G209: 27546.22 | H209: 23613.62
A210: 75 | B210: 75+ | D210: 71678.79 | E210: 50113.62 | F210: 35212.67 | G210: 28745.08 | H210: 24637.58
A211: 1 | B211: 1 Child | D211: 2615.02 | E211: 1914.36 | F211: 1421.99 | G211: 1087.56 | H211: 803.48
A212: 2 | B212: 2 Children | D212: 4161.56 | E212: 3044.32 | F212: 2261.51 | G212: 1729.39 | H212: 1279.42
A213: 3 | B213: 3+ Children | D213: 6089.7 | E213: 4462.6 | F213: 3311.44 | G213: 2531.81 | H213: 1877.26
A214: 1 | B214: Rider Comp. Maternidad | D214: =+D179*$G$2 -> 0 | E214: 0 | F214: 119.25 | G214: 119.25 | H214: 119.25
A215: 1 | B215: Transplante de organos | D215: 0 | E215: 0 | F215: 0 | G215: 0 | H215: 0
A220: COMPLETE (LATINAMERICA ONLY)
A221: TARIFAS ANUALES
A222: EDAD
... 335 more rows

Sheet 8 (hidden)
K1: D1 | L1: D2 | M1: D3 | N1: D4 | O1: D5 | P1: D6
B2: REGIÓN | C2: ='INGRESO DE DATOS'!W14 -> 2 | E2: FACTOR SEMESTRAL : | G2: 0.53 | I2: NEW BUSINESS DISCUOUNTS | K2: ='INGRESO DE DATOS'!O42 -> 1 | L2: ='INGRESO DE DATOS'!P42 -> 1 | M2: ='INGRESO DE DATOS'!Q42 -> 1 | N2: ='INGRESO DE DATOS'!R42 -> 1 | O2: ='INGRESO DE DATOS'!S42 -> 1 | P2: ='INGRESO DE DATOS'!T42 -> 1
A5: BUPA EXCLUSIVE CARE
A6: TARIFAS ANUALES
A7: EDAD
C8: DW1 | D8: DW2 | E8: DW3 | F8: DW4 | G8: DW5 | H8: DW6
A9: 18 | B9: 18-24 | D9: 13392 | E9: 8847 | F9: 6249 | G9: 4159 | H9: 3270
A10: 25 | B10: 25-29 | D10: 14045 | E10: 9776 | F10: 6925 | G10: 4610 | H10: 3621
A11: 30 | B11: 30-34 | D11: 14613 | E11: 10488 | F11: 7751 | G11: 5527 | H11: 4359
A12: 35 | B12: 35-39 | D12: 16367 | E12: 11741 | F12: 8692 | G12: 6195 | H12: 4881
A13: 40 | B13: 40-44 | D13: 18976 | E13: 12847 | F13: 9643 | G13: 6811 | H13: 5367
A14: 45 | B14: 45-49 | D14: 21218 | E14: 14362 | F14: 10784 | G14: 7606 | H14: 5999
A15: 50 | B15: 50-54 | D15: 27147 | E15: 18841 | F15: 14068 | G15: 10752 | H15: 8476
A16: 55 | B16: 55-59 | D16: 28886 | E16: 20054 | F16: 14964 | G16: 11440 | H16: 9025
A17: 60 | B17: 60 | D17: 31470 | E17: 21874 | F17: 17222 | G17: 13784 | H17: 11209
A18: 61 | B18: 61 | D18: 33805 | E18: 23508 | F18: 18496 | G18: 14816 | H18: 12048
A19: 62 | B19: 62 | D19: 37013 | E19: 25748 | F19: 20267 | G19: 16218 | H19: 13189
A20: 63 | B20: 63 | D20: 39358 | E20: 27376 | F20: 21535 | G20: 17252 | H20: 14024
A21: 64 | B21: 64 | D21: 42572 | E21: 29622 | F21: 23305 | G21: 18659 | H21: 15180
A22: 65 | B22: 65 | D22: 55657 | E22: 38633 | F22: 29465 | G22: 24883 | H22: 21404
A23: 66 | B23: 66 | D23: 64656 | E23: 44896 | F23: 34238 | G23: 28929 | H23: 24872
A24: 67 | B24: 67 | D24: 70627 | E24: 49035 | F24: 37398 | G24: 31585 | H24: 27168
A25: 68 | B25: 68 | D25: 78201 | E25: 54288 | F25: 41416 | G25: 34986 | H25: 30082
A26: 69 | B26: 69 | D26: 86041 | E26: 59728 | F26: 45570 | G26: 38488 | H26: 33102
A27: 70 | B27: 70 | D27: 105894 | E27: 72736 | F27: 53643 | G27: 44851 | H27: 38941
A28: 71 | B28: 71 | D28: 110057 | E28: 75590 | F28: 55753 | G28: 46616 | H28: 40474
A29: 72 | B29: 72 | D29: 113173 | E29: 77731 | F29: 57322 | G29: 47935 | H29: 41616
A30: 73 | B30: 73 | D30: 117329 | E30: 80590 | F30: 59425 | G30: 49696 | H30: 43141
A31: 74 | B31: 74 | D31: 119404 | E31: 82009 | F31: 60489 | G31: 50580 | H31: 43908
A32: 75 | B32: 75+ | D32: 124606 | E32: 85581 | F32: 63114 | G32: 52779 | H32: 45825
A33: 1 | B33: 1 Child | D33: 4655 | E33: 3430 | F33: 2794 | G33: 2211 | H33: 1723
A34: 2 | B34: 2 Children | D34: 7405 | E34: 5458 | F34: 4447 | G34: 3505 | H34: 2735
A35: 3 | B35: 3+ Children | D35: 10849 | E35: 7996 | F35: 6512 | G35: 5141 | H35: 4008
A36: 1 | B36: Rider Comp. Maternidad | D36: 0 | E36: 0 | F36: 225 | G36: 225 | H36: 225
A37: 1 | B37: Transplante de organos | D37: 0 | E37: 0 | F37: 0 | G37: 0 | H37: 0
A41: TARIFAS SEMESTRALES
A42: EDAD
D43: DW2 | E43: DW3 | F43: DW4 | G43: DW5 | H43: DW6
A44: 18 | B44: 18-24 | D44: =$G$2*D9 -> 7097.76 | E44: 4688.91 | F44: 3311.97 | G44: 2204.27 | H44: 1733.1
A45: 25 | B45: 25-29 | D45: 7443.85 | E45: 5181.28 | F45: 3670.25 | G45: 2443.3 | H45: 1919.13
A46: 30 | B46: 30-34 | D46: 7744.89 | E46: 5558.64 | F46: 4108.03 | G46: 2929.31 | H46: 2310.27
A47: 35 | B47: 35-39 | D47: 8674.51 | E47: 6222.73 | F47: 4606.76 | G47: 3283.35 | H47: 2586.93
A48: 40 | B48: 40-44 | D48: 10057.28 | E48: 6808.91 | F48: 5110.79 | G48: 3609.83 | H48: 2844.51
A49: 45 | B49: 45-49 | D49: 11245.54 | E49: 7611.86 | F49: 5715.52 | G49: 4031.18 | H49: 3179.47
A50: 50 | B50: 50-54 | D50: 14387.91 | E50: 9985.73 | F50: 7456.04 | G50: 5698.56 | H50: 4492.28
A51: 55 | B51: 55-59 | D51: 15309.58 | E51: 10628.62 | F51: 7930.92 | G51: 6063.2 | H51: 4783.25
A52: 60 | B52: 60 | D52: 16679.1 | E52: 11593.22 | F52: 9127.66 | G52: 7305.52 | H52: 5940.77
A53: 61 | B53: 61 | D53: 17916.65 | E53: 12459.24 | F53: 9802.88 | G53: 7852.48 | H53: 6385.44
A54: 62 | B54: 62 | D54: 19616.89 | E54: 13646.44 | F54: 10741.51 | G54: 8595.54 | H54: 6990.17
A55: 63 | B55: 63 | D55: 20859.74 | E55: 14509.28 | F55: 11413.55 | G55: 9143.56 | H55: 7432.72
A56: 64 | B56: 64 | D56: 22563.16 | E56: 15699.66 | F56: 12351.65 | G56: 9889.27 | H56: 8045.4
A57: 65 | B57: 65 | D57: 29498.21 | E57: 20475.49 | F57: 15616.45 | G57: 13187.99 | H57: 11344.12
A58: 66 | B58: 66 | D58: 34267.68 | E58: 23794.88 | F58: 18146.14 | G58: 15332.37 | H58: 13182.16
A59: 67 | B59: 67 | D59: 37432.31 | E59: 25988.55 | F59: 19820.94 | G59: 16740.05 | H59: 14399.04
A60: 68 | B60: 68 | D60: =$G$2*D25 -> 41446.53 | E60: 28772.64 | F60: 21950.48 | G60: 18542.58 | H60: 15943.46
A61: 69 | B61: 69 | D61: 45601.73 | E61: 31655.84 | F61: 24152.1 | G61: 20398.64 | H61: 17544.06
A62: 70 | B62: 70 | D62: 56123.82 | E62: 38550.08 | F62: 28430.79 | G62: 23771.03 | H62: 20638.73
A63: 71 | B63: 71 | D63: 58330.21 | E63: 40062.7 | F63: 29549.09 | G63: 24706.48 | H63: 21451.22
A64: 72 | B64: 72 | D64: 59981.69 | E64: 41197.43 | F64: 30380.66 | G64: 25405.55 | H64: 22056.48
A65: 73 | B65: 73 | D65: 62184.37 | E65: 42712.7 | F65: 31495.25 | G65: 26338.88 | H65: 22864.73
A66: 74 | B66: 74 | D66: 63284.12 | E66: 43464.77 | F66: 32059.17 | G66: 26807.4 | H66: 23271.24
A67: 75 | B67: 75+ | D67: 66041.18 | E67: 45357.93 | F67: 33450.42 | G67: 27972.87 | H67: 24287.25
A68: 1 | B68: 1 Child | D68: 2467.15 | E68: 1817.9 | F68: 1480.82 | G68: 1171.83 | H68: 913.19
A69: 2 | B69: 2 Children | D69: 3924.65 | E69: 2892.74 | F69: 2356.91 | G69: 1857.65 | H69: 1449.55
A70: 3 | B70: 3+ Children | D70: 5749.97 | E70: 4237.88 | F70: 3451.36 | G70: 2724.73 | H70: 2124.24
A71: 1 | B71: Rider Comp. Maternidad | D71: =+D36*$G$2 -> 0 | E71: 0 | F71: 119.25 | G71: 119.25 | H71: 119.25
A72: 1 | B72: Transplante de organos | D72: 0 | E72: 0 | F72: 0 | G72: 0 | H72: 0
A78: DIAMOND (LATINAMERICA ONLY)
A79: TARIFAS ANUALES
A80: EDAD
C81: DL1 | D81: DL2 | E81: DL3 | F81: DL4 | G81: DL5 | H81: DL6
A82: 18 | B82: - 24
A83: 25 | B83: - 29
A84: 30 | B84: - 34
A85: 35 | B85: - 39
A86: 40 | B86: - 44
A87: 45 | B87: - 49
A88: 50 | B88: - 54
A89: 55 | B89: - 59
A90: 60
A91: 61
A92: 62
A93: 63
A94: 64
A95: 65
A96: 66
A97: 67
A98: 68
A99: 69
A100: 70
A101: 71
A102: 72
A103: 73
A104: 74
A105: 75 | B105: o más
A106: 1 | B106: Hijo
A107: 2 | B107: Hijos
A108: 3 | B108: Hijos o más
A109: 1 | B109: Rider Comp. Maternidad
A110: 1 | B110: Transplante de organos | C110: 0 | D110: 0 | E110: 0 | F110: 0 | G110: 0 | H110: 0
A112: TARIFAS SEMESTRALES
A113: EDAD
C114: DL1 | D114: DL2 | E114: DL3 | F114: DL4 | G114: DL5 | H114: DL6
A115: 18 | B115: - 24 | C115: =+C82*$G$2 -> 0 | D115: 0 | E115: 0 | F115: 0 | G115: 0 | H115: 0
A116: 25 | B116: - 29 | C116: 0 | D116: 0 | E116: 0 | F116: 0 | G116: 0 | H116: 0
A117: 30 | B117: - 34 | C117: 0 | D117: 0 | E117: 0 | F117: 0 | G117: 0 | H117: 0
A118: 35 | B118: - 39 | C118: 0 | D118: 0 | E118: 0 | F118: 0 | G118: 0 | H118: 0
A119: 40 | B119: - 44 | C119: 0 | D119: 0 | E119: 0 | F119: 0 | G119: 0 | H119: 0
A120: 45 | B120: - 49 | C120: 0 | D120: 0 | E120: 0 | F120: 0 | G120: 0 | H120: 0
A121: 50 | B121: - 54 | C121: 0 | D121: 0 | E121: 0 | F121: 0 | G121: 0 | H121: 0
A122: 55 | B122: - 59 | C122: 0 | D122: 0 | E122: 0 | F122: 0 | G122: 0 | H122: 0
A123: 60 | C123: 0 | D123: 0 | E123: 0 | F123: 0 | G123: 0 | H123: 0
A124: 61 | C124: 0 | D124: 0 | E124: 0 | F124: 0 | G124: 0 | H124: 0
A125: 62 | C125: 0 | D125: 0 | E125: 0 | F125: 0 | G125: 0 | H125: 0
A126: 63 | C126: 0 | D126: 0 | E126: 0 | F126: 0 | G126: 0 | H126: 0
A127: 64 | C127: 0 | D127: 0 | E127: 0 | F127: 0 | G127: 0 | H127: 0
A128: 65 | C128: 0 | D128: 0 | E128: 0 | F128: 0 | G128: 0 | H128: 0
A129: 66 | C129: 0 | D129: 0 | E129: 0 | F129: 0 | G129: 0 | H129: 0
A130: 67 | C130: 0 | D130: 0 | E130: 0 | F130: 0 | G130: 0 | H130: 0
A131: 68 | C131: =+C98*$G$2 -> 0 | D131: 0 | E131: 0 | F131: 0 | G131: 0 | H131: 0
A132: 69 | C132: 0 | D132: 0 | E132: 0 | F132: 0 | G132: 0 | H132: 0
A133: 70 | C133: 0 | D133: 0 | E133: 0 | F133: 0 | G133: 0 | H133: 0
A134: 71 | C134: 0 | D134: 0 | E134: 0 | F134: 0 | G134: 0 | H134: 0
A135: 72 | C135: 0 | D135: 0 | E135: 0 | F135: 0 | G135: 0 | H135: 0
A136: 73 | C136: 0 | D136: 0 | E136: 0 | F136: 0 | G136: 0 | H136: 0
A137: 74 | C137: 0 | D137: 0 | E137: 0 | F137: 0 | G137: 0 | H137: 0
A138: 75 | B138: o más | C138: 0 | D138: 0 | E138: 0 | F138: 0 | G138: 0 | H138: 0
A139: 1 | B139: Hijo | C139: 0 | D139: 0 | E139: 0 | F139: 0 | G139: 0 | H139: 0
A140: 2 | B140: Hijos | C140: 0 | D140: 0 | E140: 0 | F140: 0 | G140: 0 | H140: 0
A141: 3 | B141: Hijos o más | C141: 0 | D141: 0 | E141: 0 | F141: 0 | G141: 0 | H141: 0
A142: 1 | B142: Rider Comp. Maternidad | C142: 0 | D142: 0 | E142: 0 | F142: 0 | G142: 0 | H142: 0
A143: 1 | B143: Transplante de organos | C143: 0 | D143: 0 | E143: 0 | F143: 0 | G143: 0 | H143: 0
A148: BUPA PRIVILEGE CARE
A149: TARIFAS ANUALES
A150: EDAD
C151: CW1 | D151: CW2 | E151: CW3 | F151: CW4 | G151: CW5 | H151: CW6
A152: 18 | B152: 18-24 | D152: 11209 | E152: 7711 | F152: 5408 | G152: 3597 | H152: 2736
A153: 25 | B153: 25-29 | D153: 11763 | E153: 8528 | F153: 5987 | G153: 3984 | H153: 3034
A154: 30 | B154: 30-34 | D154: 12288 | E154: 9121 | F154: 6719 | G154: 4812 | H154: 3683
A155: 35 | B155: 35-39 | D155: 13752 | E155: 10208 | F155: 7528 | G155: 5401 | H155: 4120
A156: 40 | B156: 40-44 | D156: 15921 | E156: 11196 | F156: 8372 | G156: 5952 | H156: 4548
A157: 45 | B157: 45-49 | D157: 17792 | E157: 12514 | F157: 9354 | G157: 6656 | H157: 5086
A158: 50 | B158: 50-54 | D158: 23253 | E158: 16508 | F158: 12280 | G158: 9488 | H158: 7255
A159: 55 | B159: 55-59 | D159: 24732 | E159: 17553 | F159: 13066 | G159: 10097 | H159: 7723
A160: 60 | B160: 60 | D160: 26938 | E160: 19060 | F160: 14874 | G160: 12009 | H160: 9654
A161: 61 | B161: 61 | D161: 28941 | E161: 20477 | F161: 15975 | G161: 12906 | H161: 10367
A162: 62 | B162: 62 | D162: 31677 | E162: 22428 | F162: 17495 | G162: 14132 | H162: 11353
A163: 63 | B163: 63 | D163: 33684 | E163: 23841 | F163: 18600 | G163: 15030 | H163: 12067
A164: 64 | B164: 64 | D164: 36431 | E164: 25800 | F164: 20130 | G164: 16260 | H164: 13059
A165: 65 | B165: 65 | D165: 47630 | E165: 33640 | F165: 25444 | G165: 21677 | H165: 18406
A166: 66 | B166: 66 | D166: 55330 | E166: 39088 | F166: 29558 | G166: 25193 | H166: 21384
A167: 67 | B167: 67 | D167: 60428 | E167: 42692 | F167: 32286 | G167: 27505 | H167: 23363
A168: 68 | B168: 68 | D168: 66907 | E168: 47267 | F168: 35754 | G168: 30462 | H168: 25865
A169: 69 | B169: 69 | D169: 73616 | E169: 51999 | F169: 39329 | G169: 33510 | H169: 28462
A170: 70 | B170: 70 | D170: 90596 | E170: 63316 | F170: 46298 | G170: 39053 | H170: 33469
A171: 71 | B171: 71 | D171: 94156 | E171: 65797 | F171: 48112 | G171: 40583 | H171: 34793
A172: 72 | B172: 72 | D172: 96826 | E172: 67661 | F172: 49476 | G172: 41732 | H172: 35772
A173: 73 | B173: 73 | D173: 100372 | E173: 70148 | F173: 51291 | G173: 43268 | H173: 37094
A174: 74 | B174: 74 | D174: 102151 | E174: 71389 | F174: 52201 | G174: 44036 | H174: 37748
A175: 75 | B175: 75+ | D175: 106600 | E175: 74497 | F175: 54474 | G175: 45952 | H175: 39383
A176: 1 | B176: 1 Child | D176: 3888 | E176: 2843 | F176: 2198 | G176: 1742 | H176: 1289
A177: 2 | B177: 2 Children | D177: 6177 | E177: 4522 | F177: 3502 | G177: 2766 | H177: 2048
A178: 3 | B178: 3+ Children | D178: 9062 | E178: 6625 | F178: 5128 | G178: 4047 | H178: 3001
A179: 1 | B179: Rider Comp. Maternidad | D179: 0 | E179: 0 | F179: 225 | G179: 225 | H179: 225
A180: 1 | B180: Transplante de organos | D180: 0 | E180: 0 | F180: 0 | G180: 0 | H180: 0
A184: TARIFAS SEMESTRALES
A185: EDAD
D186: CW2 | E186: CW3 | F186: CW4 | G186: CW5 | H186: CW6
A187: 18 | B187: 18-24 | D187: =$G$2*D152 -> 5940.77 | E187: 4086.83 | F187: 2866.24 | G187: 1906.41 | H187: 1450.08
A188: 25 | B188: 25-29 | D188: 6234.39 | E188: 4519.84 | F188: 3173.11 | G188: 2111.52 | H188: 1608.02
A189: 30 | B189: 30-34 | D189: 6512.64 | E189: 4834.13 | F189: 3561.07 | G189: 2550.36 | H189: 1951.99
A190: 35 | B190: 35-39 | D190: 7288.56 | E190: 5410.24 | F190: 3989.84 | G190: 2862.53 | H190: 2183.6
A191: 40 | B191: 40-44 | D191: 8438.13 | E191: 5933.88 | F191: 4437.16 | G191: 3154.56 | H191: 2410.44
A192: 45 | B192: 45-49 | D192: 9429.76 | E192: 6632.42 | F192: 4957.62 | G192: 3527.68 | H192: 2695.58
A193: 50 | B193: 50-54 | D193: 12324.09 | E193: 8749.24 | F193: 6508.4 | G193: 5028.64 | H193: 3845.15
A194: 55 | B194: 55-59 | D194: 13107.96 | E194: 9303.09 | F194: 6924.98 | G194: 5351.41 | H194: 4093.19
A195: 60 | B195: 60 | D195: 14277.14 | E195: 10101.8 | F195: 7883.22 | G195: 6364.77 | H195: 5116.62
A196: 61 | B196: 61 | D196: 15338.73 | E196: 10852.81 | F196: 8466.75 | G196: 6840.18 | H196: 5494.51
A197: 62 | B197: 62 | D197: 16788.81 | E197: 11886.84 | F197: 9272.35 | G197: 7489.96 | H197: 6017.09
A198: 63 | B198: 63 | D198: 17852.52 | E198: 12635.73 | F198: 9858 | G198: 7965.9 | H198: 6395.51
A199: 64 | B199: 64 | D199: 19308.43 | E199: 13674 | F199: 10668.9 | G199: 8617.8 | H199: 6921.27
A200: 65 | B200: 65 | D200: 25243.9 | E200: 17829.2 | F200: 13485.32 | G200: 11488.81 | H200: 9755.18
A201: 66 | B201: 66 | D201: 29324.9 | E201: 20716.64 | F201: 15665.74 | G201: 13352.29 | H201: 11333.52
A202: 67 | B202: 67 | D202: 32026.84 | E202: 22626.76 | F202: 17111.58 | G202: 14577.65 | H202: 12382.39
A203: 68 | B203: 68 | D203: =$G$2*D168 -> 35460.71 | E203: 25051.51 | F203: 18949.62 | G203: 16144.86 | H203: 13708.45
A204: 69 | B204: 69 | D204: 39016.48 | E204: 27559.47 | F204: 20844.37 | G204: 17760.3 | H204: 15084.86
A205: 70 | B205: 70 | D205: 48015.88 | E205: 33557.48 | F205: 24537.94 | G205: 20698.09 | H205: 17738.57
A206: 71 | B206: 71 | D206: 49902.68 | E206: 34872.41 | F206: 25499.36 | G206: 21508.99 | H206: 18440.29
A207: 72 | B207: 72 | D207: 51317.78 | E207: 35860.33 | F207: 26222.28 | G207: 22117.96 | H207: 18959.16
A208: 73 | B208: 73 | D208: 53197.16 | E208: 37178.44 | F208: 27184.23 | G208: 22932.04 | H208: 19659.82
A209: 74 | B209: 74 | D209: 54140.03 | E209: 37836.17 | F209: 27666.53 | G209: 23339.08 | H209: 20006.44
A210: 75 | B210: 75+ | D210: 56498 | E210: 39483.41 | F210: 28871.22 | G210: 24354.56 | H210: 20872.99
A211: 1 | B211: 1 Child | D211: 2060.64 | E211: 1506.79 | F211: 1164.94 | G211: 923.26 | H211: 683.17
A212: 2 | B212: 2 Children | D212: 3273.81 | E212: 2396.66 | F212: 1856.06 | G212: 1465.98 | H212: 1085.44
A213: 3 | B213: 3+ Children | D213: 4802.86 | E213: 3511.25 | F213: 2717.84 | G213: 2144.91 | H213: 1590.53
A214: 1 | B214: Rider Comp. Maternidad | D214: =+D179*$G$2 -> 0 | E214: 0 | F214: 119.25 | G214: 119.25 | H214: 119.25
A215: 1 | B215: Transplante de organos | D215: 0 | E215: 0 | F215: 0 | G215: 0 | H215: 0
A220: COMPLETE (LATINAMERICA ONLY)
A221: TARIFAS ANUALES
A222: EDAD
... 335 more rows

Sheet 9 (hidden)
K1: D1 | L1: D2 | M1: D3 | N1: D4 | O1: D5 | P1: D6
B2: REGIÓN | C2: ='INGRESO DE DATOS'!W14 -> 2 | E2: FACTOR SEMESTRAL : | G2: 0.53 | I2: NEW BUSINESS DISCUOUNTS | K2: ='INGRESO DE DATOS'!O42 -> 1 | L2: ='INGRESO DE DATOS'!P42 -> 1 | M2: ='INGRESO DE DATOS'!Q42 -> 1 | N2: ='INGRESO DE DATOS'!R42 -> 1 | O2: ='INGRESO DE DATOS'!S42 -> 1 | P2: ='INGRESO DE DATOS'!T42 -> 1
A5: BUPA EXCLUSIVE CARE
A6: TARIFAS ANUALES
A7: EDAD
C8: DW1 | D8: DW2 | E8: DW3 | F8: DW4 | G8: DW5 | H8: DW6
A9: 18 | B9: 18-24 | D9: 24753 | E9: 16373 | F9: 11323 | G9: 7588 | H9: 5978
A10: 25 | B10: 25-29 | D10: 25963 | E10: 18083 | F10: 12538 | G10: 8414 | H10: 6618
A11: 30 | B11: 30-34 | D11: 26999 | E11: 19388 | F11: 14038 | G11: 10071 | H11: 7945
A12: 35 | B12: 35-39 | D12: 30235 | E12: 21707 | F12: 15726 | G12: 11276 | H12: 8896
A13: 40 | B13: 40-44 | D13: 35040 | E13: 23725 | F13: 17446 | G13: 12390 | H13: 9771
A14: 45 | B14: 45-49 | D14: 39175 | E14: 26542 | F14: 19485 | G14: 13845 | H14: 10913
A15: 50 | B15: 50-54 | D15: 50128 | E15: 34797 | F15: 25436 | G15: 19549 | H15: 15425
A16: 55 | B16: 55-59 | D16: 53327 | E16: 37029 | F16: 27056 | G16: 20810 | H16: 16423
A17: 60 | B17: 60 | D17: 58087 | E17: 40397 | F17: 31128 | G17: 25053 | H17: 20392
A18: 61 | B18: 61 | D18: 62408 | E18: 43413 | F18: 33416 | G18: 26934 | H18: 21902
A19: 62 | B19: 62 | D19: 68325 | E19: 47526 | F19: 36608 | G19: 29467 | H19: 23976
A20: 63 | B20: 63 | D20: 72641 | E20: 50534 | F20: 38906 | G20: 31349 | H20: 25492
A21: 64 | B21: 64 | D21: 78578 | E21: 54682 | F21: 42094 | G21: 33897 | H21: 27577
A22: 65 | B22: 65 | D22: 102700 | E22: 71308 | F22: 53213 | G22: 45196 | H22: 38885
A23: 66 | B23: 66 | D23: 119303 | E23: 82845 | F23: 61836 | G23: 52526 | H23: 45178
A24: 67 | B24: 67 | D24: 130326 | E24: 90489 | F24: 67531 | G24: 57359 | H24: 49330
A25: 68 | B25: 68 | D25: 144285 | E25: 100184 | F25: 74771 | G25: 63531 | H25: 54634
A26: 69 | B26: 69 | D26: 158770 | E26: 110234 | F26: 82260 | G26: 69889 | H26: 60110
A27: 70 | B27: 70 | D27: 195381 | E27: 134214 | F27: 96844 | G27: 81434 | H27: 70700
A28: 71 | B28: 71 | D28: 203051 | E28: 139489 | F28: 100638 | G28: 84636 | H28: 73467
A29: 72 | B29: 72 | D29: 208807 | E29: 143422 | F29: 103477 | G29: 87026 | H29: 75557
A30: 73 | B30: 73 | D30: 216474 | E30: 148698 | F30: 107287 | G30: 90233 | H30: 78333
A31: 74 | B31: 74 | D31: 220293 | E31: 151318 | F31: 109182 | G31: 91817 | H31: 79722
A32: 75 | B32: 75+ | D32: 229895 | E32: 157906 | F32: 113931 | G32: 95826 | H32: 83187
A33: 1 | B33: 1 Child | D33: 8594 | E33: 6326 | F33: 5042 | G33: 4000 | H33: 3129
A34: 2 | B34: 2 Children | D34: 13650 | E34: 10069 | F34: 8016 | G34: 6365 | H34: 4946
A35: 3 | B35: 3+ Children | D35: 20016 | E35: 14736 | F35: 11752 | G35: 9322 | H35: 7259
A36: 1 | B36: Rider Comp. Maternidad | D36: 0 | E36: 0 | F36: 225 | G36: 225 | H36: 225
A37: 1 | B37: Transplante de organos | D37: 0 | E37: 0 | F37: 0 | G37: 0 | H37: 0
A41: TARIFAS SEMESTRALES
A42: EDAD
D43: DW2 | E43: DW3 | F43: DW4 | G43: DW5 | H43: DW6
A44: 18 | B44: 18-24 | D44: =$G$2*D9 -> 13119.09 | E44: 8677.69 | F44: 6001.19 | G44: 4021.64 | H44: 3168.34
A45: 25 | B45: 25-29 | D45: 13760.39 | E45: 9583.99 | F45: 6645.14 | G45: 4459.42 | H45: 3507.54
A46: 30 | B46: 30-34 | D46: 14309.47 | E46: 10275.64 | F46: 7440.14 | G46: 5337.63 | H46: 4210.85
A47: 35 | B47: 35-39 | D47: 16024.55 | E47: 11504.71 | F47: 8334.78 | G47: 5976.28 | H47: 4714.88
A48: 40 | B48: 40-44 | D48: 18571.2 | E48: 12574.25 | F48: 9246.38 | G48: 6566.7 | H48: 5178.63
A49: 45 | B49: 45-49 | D49: 20762.75 | E49: 14067.26 | F49: 10327.05 | G49: 7337.85 | H49: 5783.89
A50: 50 | B50: 50-54 | D50: 26567.84 | E50: 18442.41 | F50: 13481.08 | G50: 10360.97 | H50: 8175.25
A51: 55 | B51: 55-59 | D51: 28263.31 | E51: 19625.37 | F51: 14339.68 | G51: 11029.3 | H51: 8704.19
A52: 60 | B52: 60 | D52: 30786.11 | E52: 21410.41 | F52: 16497.84 | G52: 13278.09 | H52: 10807.76
A53: 61 | B53: 61 | D53: 33076.24 | E53: 23008.89 | F53: 17710.48 | G53: 14275.02 | H53: 11608.06
A54: 62 | B54: 62 | D54: 36212.25 | E54: 25188.78 | F54: 19402.24 | G54: 15617.51 | H54: 12707.28
A55: 63 | B55: 63 | D55: 38499.73 | E55: 26783.02 | F55: 20620.18 | G55: 16614.97 | H55: 13510.76
A56: 64 | B56: 64 | D56: 41646.34 | E56: 28981.46 | F56: 22309.82 | G56: 17965.41 | H56: 14615.81
A57: 65 | B57: 65 | D57: 54431 | E57: 37793.24 | F57: 28202.89 | G57: 23953.88 | H57: 20609.05
A58: 66 | B58: 66 | D58: 63230.59 | E58: 43907.85 | F58: 32773.08 | G58: 27838.78 | H58: 23944.34
A59: 67 | B59: 67 | D59: 69072.78 | E59: 47959.17 | F59: 35791.43 | G59: 30400.27 | H59: 26144.9
A60: 68 | B60: 68 | D60: =$G$2*D25 -> 76471.05 | E60: 53097.52 | F60: 39628.63 | G60: 33671.43 | H60: 28956.02
A61: 69 | B61: 69 | D61: 84148.1 | E61: 58424.02 | F61: 43597.8 | G61: 37041.17 | H61: 31858.3
A62: 70 | B62: 70 | D62: 103551.93 | E62: 71133.42 | F62: 51327.32 | G62: 43160.02 | H62: 37471
A63: 71 | B63: 71 | D63: 107617.03 | E63: 73929.17 | F63: 53338.14 | G63: 44857.08 | H63: 38937.51
A64: 72 | B64: 72 | D64: 110667.71 | E64: 76013.66 | F64: 54842.81 | G64: 46123.78 | H64: 40045.21
A65: 73 | B65: 73 | D65: 114731.22 | E65: 78809.94 | F65: 56862.11 | G65: 47823.49 | H65: 41516.49
A66: 74 | B66: 74 | D66: 116755.29 | E66: 80198.54 | F66: 57866.46 | G66: 48663.01 | H66: 42252.66
A67: 75 | B67: 75+ | D67: 121844.35 | E67: 83690.18 | F67: 60383.43 | G67: 50787.78 | H67: 44089.11
A68: 1 | B68: 1 Child | D68: 4554.82 | E68: 3352.78 | F68: 2672.26 | G68: 2120 | H68: 1658.37
A69: 2 | B69: 2 Children | D69: 7234.5 | E69: 5336.57 | F69: 4248.48 | G69: 3373.45 | H69: 2621.38
A70: 3 | B70: 3+ Children | D70: 10608.48 | E70: 7810.08 | F70: 6228.56 | G70: 4940.66 | H70: 3847.27
A71: 1 | B71: Rider Comp. Maternidad | D71: =+D36*$G$2 -> 0 | E71: 0 | F71: 119.25 | G71: 119.25 | H71: 119.25
A72: 1 | B72: Transplante de organos | D72: 0 | E72: 0 | F72: 0 | G72: 0 | H72: 0
A78: DIAMOND (LATINAMERICA ONLY)
A79: TARIFAS ANUALES
A80: EDAD
C81: DL1 | D81: DL2 | E81: DL3 | F81: DL4 | G81: DL5 | H81: DL6
A82: 18 | B82: - 24
A83: 25 | B83: - 29
A84: 30 | B84: - 34
A85: 35 | B85: - 39
A86: 40 | B86: - 44
A87: 45 | B87: - 49
A88: 50 | B88: - 54
A89: 55 | B89: - 59
A90: 60
A91: 61
A92: 62
A93: 63
A94: 64
A95: 65
A96: 66
A97: 67
A98: 68
A99: 69
A100: 70
A101: 71
A102: 72
A103: 73
A104: 74
A105: 75 | B105: o más
A106: 1 | B106: Hijo
A107: 2 | B107: Hijos
A108: 3 | B108: Hijos o más
A109: 1 | B109: Rider Comp. Maternidad
A110: 1 | B110: Transplante de organos | C110: 0 | D110: 0 | E110: 0 | F110: 0 | G110: 0 | H110: 0
A112: TARIFAS SEMESTRALES
A113: EDAD
C114: DL1 | D114: DL2 | E114: DL3 | F114: DL4 | G114: DL5 | H114: DL6
A115: 18 | B115: - 24 | C115: =+C82*$G$2 -> 0 | D115: 0 | E115: 0 | F115: 0 | G115: 0 | H115: 0
A116: 25 | B116: - 29 | C116: 0 | D116: 0 | E116: 0 | F116: 0 | G116: 0 | H116: 0
A117: 30 | B117: - 34 | C117: 0 | D117: 0 | E117: 0 | F117: 0 | G117: 0 | H117: 0
A118: 35 | B118: - 39 | C118: 0 | D118: 0 | E118: 0 | F118: 0 | G118: 0 | H118: 0
A119: 40 | B119: - 44 | C119: 0 | D119: 0 | E119: 0 | F119: 0 | G119: 0 | H119: 0
A120: 45 | B120: - 49 | C120: 0 | D120: 0 | E120: 0 | F120: 0 | G120: 0 | H120: 0
A121: 50 | B121: - 54 | C121: 0 | D121: 0 | E121: 0 | F121: 0 | G121: 0 | H121: 0
A122: 55 | B122: - 59 | C122: 0 | D122: 0 | E122: 0 | F122: 0 | G122: 0 | H122: 0
A123: 60 | C123: 0 | D123: 0 | E123: 0 | F123: 0 | G123: 0 | H123: 0
A124: 61 | C124: 0 | D124: 0 | E124: 0 | F124: 0 | G124: 0 | H124: 0
A125: 62 | C125: 0 | D125: 0 | E125: 0 | F125: 0 | G125: 0 | H125: 0
A126: 63 | C126: 0 | D126: 0 | E126: 0 | F126: 0 | G126: 0 | H126: 0
A127: 64 | C127: 0 | D127: 0 | E127: 0 | F127: 0 | G127: 0 | H127: 0
A128: 65 | C128: 0 | D128: 0 | E128: 0 | F128: 0 | G128: 0 | H128: 0
A129: 66 | C129: 0 | D129: 0 | E129: 0 | F129: 0 | G129: 0 | H129: 0
A130: 67 | C130: 0 | D130: 0 | E130: 0 | F130: 0 | G130: 0 | H130: 0
A131: 68 | C131: =+C98*$G$2 -> 0 | D131: 0 | E131: 0 | F131: 0 | G131: 0 | H131: 0
A132: 69 | C132: 0 | D132: 0 | E132: 0 | F132: 0 | G132: 0 | H132: 0
A133: 70 | C133: 0 | D133: 0 | E133: 0 | F133: 0 | G133: 0 | H133: 0
A134: 71 | C134: 0 | D134: 0 | E134: 0 | F134: 0 | G134: 0 | H134: 0
A135: 72 | C135: 0 | D135: 0 | E135: 0 | F135: 0 | G135: 0 | H135: 0
A136: 73 | C136: 0 | D136: 0 | E136: 0 | F136: 0 | G136: 0 | H136: 0
A137: 74 | C137: 0 | D137: 0 | E137: 0 | F137: 0 | G137: 0 | H137: 0
A138: 75 | B138: o más | C138: 0 | D138: 0 | E138: 0 | F138: 0 | G138: 0 | H138: 0
A139: 1 | B139: Hijo | C139: 0 | D139: 0 | E139: 0 | F139: 0 | G139: 0 | H139: 0
A140: 2 | B140: Hijos | C140: 0 | D140: 0 | E140: 0 | F140: 0 | G140: 0 | H140: 0
A141: 3 | B141: Hijos o más | C141: 0 | D141: 0 | E141: 0 | F141: 0 | G141: 0 | H141: 0
A142: 1 | B142: Rider Comp. Maternidad | C142: 0 | D142: 0 | E142: 0 | F142: 0 | G142: 0 | H142: 0
A143: 1 | B143: Transplante de organos | C143: 0 | D143: 0 | E143: 0 | F143: 0 | G143: 0 | H143: 0
A148: BUPA PRIVILEGE CARE
A149: TARIFAS ANUALES
A150: EDAD
C151: CW1 | D151: CW2 | E151: CW3 | F151: CW4 | G151: CW5 | H151: CW6
A152: 18 | B152: 18-24 | D152: 20814 | E152: 14301 | F152: 9831 | G152: 6565 | H152: 5002
A153: 25 | B153: 25-29 | D153: 21842 | E153: 15824 | F153: 10893 | G153: 7274 | H153: 5551
A154: 30 | B154: 30-34 | D154: 22814 | E154: 16960 | F154: 12204 | G154: 8808 | H154: 6719
A155: 35 | B155: 35-39 | D155: 25547 | E155: 18980 | F155: 13677 | G155: 9869 | H155: 7533
A156: 40 | B156: 40-44 | D156: 29566 | E156: 20792 | F156: 15208 | G156: 10879 | H156: 8299
A157: 45 | B157: 45-49 | D157: 33027 | E157: 23234 | F157: 17011 | G157: 12149 | H157: 9288
A158: 50 | B158: 50-54 | D158: 43180 | E158: 30638 | F158: 22322 | G158: 17345 | H158: 13264
A159: 55 | B159: 55-59 | D159: 45938 | E159: 32600 | F159: 23753 | G159: 18456 | H159: 14115
A160: 60 | B160: 60 | D160: 50028 | E160: 35415 | F160: 27027 | G160: 21958 | H160: 17625
A161: 61 | B161: 61 | D161: 53743 | E161: 38032 | F161: 29032 | G161: 23584 | H161: 18935
A162: 62 | B162: 62 | D162: 58831 | E162: 41646 | F162: 31797 | G162: 25822 | H162: 20741
A163: 63 | B163: 63 | D163: 62562 | E163: 44276 | F163: 33798 | G163: 27457 | H163: 22043
A164: 64 | B164: 64 | D164: 67657 | E164: 47893 | F164: 36555 | G164: 29696 | H164: 23865
A165: 65 | B165: 65 | D165: 88441 | E165: 62472 | F165: 46225 | G165: 39591 | H165: 33631
A166: 66 | B166: 66 | D166: 102739 | E166: 72587 | F166: 53702 | G166: 46014 | H166: 39081
A167: 67 | B167: 67 | D167: 112225 | E167: 79282 | F167: 58652 | G167: 50253 | H167: 42674
A168: 68 | B168: 68 | D168: 124272 | E168: 87779 | F168: 64963 | G168: 55661 | H168: 47257
A169: 69 | B169: 69 | D169: 136710 | E169: 96572 | F169: 71461 | G169: 61227 | H169: 51999
A170: 70 | B170: 70 | D170: 168253 | E170: 117576 | F170: 84106 | G170: 71353 | H170: 61155
A171: 71 | B171: 71 | D171: 174847 | E171: 122191 | F171: 87421 | G171: 74146 | H171: 63558
A172: 72 | B172: 72 | D172: 179788 | E172: 125660 | F172: 89886 | G172: 76245 | H172: 65359
A173: 73 | B173: 73 | D173: 186421 | E173: 130270 | F173: 93195 | G173: 79040 | H173: 67762
A174: 74 | B174: 74 | D174: 189712 | E174: 132583 | F174: 94837 | G174: 80443 | H174: 68954
A175: 75 | B175: 75+ | D175: 197966 | E175: 138339 | F175: 98968 | G175: 83949 | H175: 71955
A176: 1 | B176: 1 Child | D176: 7228 | E176: 5282 | F176: 3991 | G176: 3171 | H176: 2344
A177: 2 | B177: 2 Children | D177: 11492 | E177: 8404 | F177: 6358 | G177: 5050 | H177: 3736
A178: 3 | B178: 3+ Children | D178: 16824 | E178: 12305 | F178: 9310 | G178: 7394 | H178: 5477
A179: 1 | B179: Rider Comp. Maternidad | D179: 0 | E179: 0 | F179: 225 | G179: 225 | H179: 225
A180: 1 | B180: Transplante de organos | D180: 0 | E180: 0 | F180: 0 | G180: 0 | H180: 0
A184: TARIFAS SEMESTRALES
A185: EDAD
D186: CW2 | E186: CW3 | F186: CW4 | G186: CW5 | H186: CW6
A187: 18 | B187: 18-24 | D187: =$G$2*D152 -> 11031.42 | E187: 7579.53 | F187: 5210.43 | G187: 3479.45 | H187: 2651.06
A188: 25 | B188: 25-29 | D188: 11576.26 | E188: 8386.72 | F188: 5773.29 | G188: 3855.22 | H188: 2942.03
A189: 30 | B189: 30-34 | D189: 12091.42 | E189: 8988.8 | F189: 6468.12 | G189: 4668.24 | H189: 3561.07
A190: 35 | B190: 35-39 | D190: 13539.91 | E190: 10059.4 | F190: 7248.81 | G190: 5230.57 | H190: 3992.49
A191: 40 | B191: 40-44 | D191: 15669.98 | E191: 11019.76 | F191: 8060.24 | G191: 5765.87 | H191: 4398.47
A192: 45 | B192: 45-49 | D192: 17504.31 | E192: 12314.02 | F192: 9015.83 | G192: 6438.97 | H192: 4922.64
A193: 50 | B193: 50-54 | D193: 22885.4 | E193: 16238.14 | F193: 11830.66 | G193: 9192.85 | H193: 7029.92
A194: 55 | B194: 55-59 | D194: 24347.14 | E194: 17278 | F194: 12589.09 | G194: 9781.68 | H194: 7480.95
A195: 60 | B195: 60 | D195: 26514.84 | E195: 18769.95 | F195: 14324.31 | G195: 11637.74 | H195: 9341.25
A196: 61 | B196: 61 | D196: 28483.79 | E196: 20156.96 | F196: 15386.96 | G196: 12499.52 | H196: 10035.55
A197: 62 | B197: 62 | D197: 31180.43 | E197: 22072.38 | F197: 16852.41 | G197: 13685.66 | H197: 10992.73
A198: 63 | B198: 63 | D198: 33157.86 | E198: 23466.28 | F198: 17912.94 | G198: 14552.21 | H198: 11682.79
A199: 64 | B199: 64 | D199: 35858.21 | E199: 25383.29 | F199: 19374.15 | G199: 15738.88 | H199: 12648.45
A200: 65 | B200: 65 | D200: 46873.73 | E200: 33110.16 | F200: 24499.25 | G200: 20983.23 | H200: 17824.43
A201: 66 | B201: 66 | D201: 54451.67 | E201: 38471.11 | F201: 28462.06 | G201: 24387.42 | H201: 20712.93
A202: 67 | B202: 67 | D202: 59479.25 | E202: 42019.46 | F202: 31085.56 | G202: 26634.09 | H202: 22617.22
A203: 68 | B203: 68 | D203: =$G$2*D168 -> 65864.16 | E203: 46522.87 | F203: 34430.39 | G203: 29500.33 | H203: 25046.21
A204: 69 | B204: 69 | D204: 72456.3 | E204: 51183.16 | F204: 37874.33 | G204: 32450.31 | H204: 27559.47
A205: 70 | B205: 70 | D205: 89174.09 | E205: 62315.28 | F205: 44576.18 | G205: 37817.09 | H205: 32412.15
A206: 71 | B206: 71 | D206: 92668.91 | E206: 64761.23 | F206: 46333.13 | G206: 39297.38 | H206: 33685.74
A207: 72 | B207: 72 | D207: 95287.64 | E207: 66599.8 | F207: 47639.58 | G207: 40409.85 | H207: 34640.27
A208: 73 | B208: 73 | D208: 98803.13 | E208: 69043.1 | F208: 49393.35 | G208: 41891.2 | H208: 35913.86
A209: 74 | B209: 74 | D209: 100547.36 | E209: 70268.99 | F209: 50263.61 | G209: 42634.79 | H209: 36545.62
A210: 75 | B210: 75+ | D210: 104921.98 | E210: 73319.67 | F210: 52453.04 | G210: 44492.97 | H210: 38136.15
A211: 1 | B211: 1 Child | D211: 3830.84 | E211: 2799.46 | F211: 2115.23 | G211: 1680.63 | H211: 1242.32
A212: 2 | B212: 2 Children | D212: 6090.76 | E212: 4454.12 | F212: 3369.74 | G212: 2676.5 | H212: 1980.08
A213: 3 | B213: 3+ Children | D213: 8916.72 | E213: 6521.65 | F213: 4934.3 | G213: 3918.82 | H213: 2902.81
A214: 1 | B214: Rider Comp. Maternidad | D214: =+D179*$G$2 -> 0 | E214: 0 | F214: 119.25 | G214: 119.25 | H214: 119.25
A215: 1 | B215: Transplante de organos | D215: 0 | E215: 0 | F215: 0 | G215: 0 | H215: 0
A220: COMPLETE (LATINAMERICA ONLY)
A221: TARIFAS ANUALES
A222: EDAD
... 335 more rows

Sheet PERU2020 (hidden)
K1: D1 | L1: D2 | M1: D3 | N1: D4 | O1: D5 | P1: D6
B2: REGIÓN | C2: ='INGRESO DE DATOS'!W14 -> 2 | E2: FACTOR SEMESTRAL : | G2: 0.53 | I2: NEW BUSINESS DISCUOUNTS | K2: ='INGRESO DE DATOS'!O42 -> 1 | L2: ='INGRESO DE DATOS'!P42 -> 1 | M2: ='INGRESO DE DATOS'!Q42 -> 1 | N2: ='INGRESO DE DATOS'!R42 -> 1 | O2: ='INGRESO DE DATOS'!S42 -> 1 | P2: ='INGRESO DE DATOS'!T42 -> 1
A5: BUPA EXCLUSIVE CARE
A6: TARIFAS ANUALES
A7: EDAD | K7: Usar tarifas de la Zona 4
C8: DW1 | D8: DW2 | E8: DW3 | F8: DW4 | G8: DW5 | H8: DW6
A9: 18 | B9: 18-24 | D9: 23776 | E9: 15710 | F9: 10299 | G9: 6753 | H9: 5315
A10: 25 | B10: 25-29 | D10: 24942 | E10: 17363 | F10: 11411 | G10: 7489 | H10: 5886
A11: 30 | B11: 30-34 | D11: 25945 | E11: 18619 | F11: 12774 | G11: 8979 | H11: 7080
A12: 35 | B12: 35-39 | D12: 29058 | E12: 20845 | F12: 14323 | G12: 10063 | H12: 7928
A13: 40 | B13: 40-44 | D13: 33701 | E13: 22802 | F13: 15900 | G13: 11068 | H13: 8717
A14: 45 | B14: 45-49 | D14: 37676 | E14: 25502 | F14: 17771 | G14: 12363 | H14: 9745
A15: 50 | B15: 50-54 | D15: 48210 | E15: 33461 | F15: 23188 | G15: 17479 | H15: 13777
A16: 55 | B16: 55-59 | D16: 51294 | E16: 35608 | F16: 24664 | G16: 18595 | H16: 14665
A17: 60 | B17: 60 | D17: 55878 | E17: 38844 | F17: 28392 | G17: 22400 | H17: 18222
A18: 61 | B18: 61 | D18: 60031 | E18: 41743 | F18: 30489 | G18: 24084 | H18: 19579
A19: 62 | B19: 62 | D19: 65725 | E19: 45717 | F19: 33398 | G19: 26355 | H19: 21439
A20: 63 | B20: 63 | D20: 69887 | E20: 48610 | F20: 35495 | G20: 28041 | H20: 22789
A21: 64 | B21: 64 | D21: 75594 | E21: 52595 | F21: 38417 | G21: 30324 | H21: 24675
A22: 65 | B22: 65 | D22: 98830 | E22: 68606 | F22: 48573 | G22: 40449 | H22: 34793
A23: 66 | B23: 66 | D23: 114813 | E23: 79721 | F23: 56437 | G23: 47023 | H23: 40424
A24: 67 | B24: 67 | D24: 125412 | E24: 87072 | F24: 61647 | G24: 51346 | H24: 44161
A25: 68 | B25: 68 | D25: 138869 | E25: 96404 | F25: 68265 | G25: 56867 | H25: 48897
A26: 69 | B26: 69 | D26: 152793 | E26: 106063 | F26: 75112 | G26: 62564 | H26: 53810
A27: 70 | B27: 70 | D27: 188038 | E27: 129157 | F27: 88420 | G27: 72898 | H27: 63299
A28: 71 | B28: 71 | D28: 195432 | E28: 134223 | F28: 91899 | G28: 75772 | H28: 65785
A29: 72 | B29: 72 | D29: 200968 | E29: 138025 | F29: 94482 | G29: 77917 | H29: 67647
A30: 73 | B30: 73 | D30: 208346 | E30: 143103 | F30: 97959 | G30: 80784 | H30: 70118
A31: 74 | B31: 74 | D31: 212036 | E31: 145634 | F31: 99712 | G31: 82213 | H31: 71374
A32: 75 | B32: 75+ | D32: 221266 | E32: 151968 | F32: 104034 | G32: 85793 | H32: 74492
A33: 1 | B33: 1 Child | D33: 8261 | E33: 6086 | F33: 4607 | G33: 3591 | H33: 2793
A34: 2 | B34: 2 Children | D34: 13140 | E34: 9694 | F34: 7331 | G34: 5699 | H34: 4445
A35: 3 | B35: 3+ Children | D35: 19269 | E35: 14197 | F35: 10733 | G35: 8352 | H35: 6504
A36: 1 | B36: Rider Comp. Maternidad | D36: 0 | E36: 0 | F36: 225 | G36: 225 | H36: 225
A37: 1 | B37: Transplante de organos | D37: 0 | E37: 0 | F37: 0 | G37: 0 | H37: 0
A41: TARIFAS SEMESTRALES
A42: EDAD
D43: DW2 | E43: DW3 | F43: DW4 | G43: DW5 | H43: DW6
A44: 18 | B44: 18-24 | D44: =$G$2*D9 -> 12601.28 | E44: 8326.3 | F44: 5458.47 | G44: 3579.09 | H44: 2816.95
A45: 25 | B45: 25-29 | D45: 13219.26 | E45: 9202.39 | F45: 6047.83 | G45: 3969.17 | H45: 3119.58
A46: 30 | B46: 30-34 | D46: 13750.85 | E46: 9868.07 | F46: 6770.22 | G46: 4758.87 | H46: 3752.4
A47: 35 | B47: 35-39 | D47: 15400.74 | E47: 11047.85 | F47: 7591.19 | G47: 5333.39 | H47: 4201.84
A48: 40 | B48: 40-44 | D48: 17861.53 | E48: 12085.06 | F48: 8427 | G48: 5866.04 | H48: 4620.01
A49: 45 | B49: 45-49 | D49: 19968.28 | E49: 13516.06 | F49: 9418.63 | G49: 6552.39 | H49: 5164.85
A50: 50 | B50: 50-54 | D50: 25551.3 | E50: 17734.33 | F50: 12289.64 | G50: 9263.87 | H50: 7301.81
A51: 55 | B51: 55-59 | D51: 27185.82 | E51: 18872.24 | F51: 13071.92 | G51: 9855.35 | H51: 7772.45
A52: 60 | B52: 60 | D52: 29615.34 | E52: 20587.32 | F52: 15047.76 | G52: 11872 | H52: 9657.66
A53: 61 | B53: 61 | D53: 31816.43 | E53: 22123.79 | F53: 16159.17 | G53: 12764.52 | H53: 10376.87
A54: 62 | B54: 62 | D54: 34834.25 | E54: 24230.01 | F54: 17700.94 | G54: 13968.15 | H54: 11362.67
A55: 63 | B55: 63 | D55: 37040.11 | E55: 25763.3 | F55: 18812.35 | G55: 14861.73 | H55: 12078.17
A56: 64 | B56: 64 | D56: 40064.82 | E56: 27875.35 | F56: 20361.01 | G56: 16071.72 | H56: 13077.75
A57: 65 | B57: 65 | D57: 52379.9 | E57: 36361.18 | F57: 25743.69 | G57: 21437.97 | H57: 18440.29
A58: 66 | B58: 66 | D58: 60850.89 | E58: 42252.13 | F58: 29911.61 | G58: 24922.19 | H58: 21424.72
A59: 67 | B59: 67 | D59: 66468.36 | E59: 46148.16 | F59: 32672.91 | G59: 27213.38 | H59: 23405.33
A60: 68 | B60: 68 | D60: =$G$2*D25 -> 73600.57 | E60: 51094.12 | F60: 36180.45 | G60: 30139.51 | H60: 25915.41
A61: 69 | B61: 69 | D61: 80980.29 | E61: 56213.39 | F61: 39809.36 | G61: 33158.92 | H61: 28519.3
A62: 70 | B62: 70 | D62: 99660.14 | E62: 68453.21 | F62: 46862.6 | G62: 38635.94 | H62: 33548.47
A63: 71 | B63: 71 | D63: 103578.96 | E63: 71138.19 | F63: 48706.47 | G63: 40159.16 | H63: 34866.05
A64: 72 | B64: 72 | D64: 106513.04 | E64: 73153.25 | F64: 50075.46 | G64: 41296.01 | H64: 35852.91
A65: 73 | B65: 73 | D65: 110423.38 | E65: 75844.59 | F65: 51918.27 | G65: 42815.52 | H65: 37162.54
A66: 74 | B66: 74 | D66: 112379.08 | E66: 77186.02 | F66: 52847.36 | G66: 43572.89 | H66: 37828.22
A67: 75 | B67: 75+ | D67: 117270.98 | E67: 80543.04 | F67: 55138.02 | G67: 45470.29 | H67: 39480.76
A68: 1 | B68: 1 Child | D68: 4378.33 | E68: 3225.58 | F68: 2441.71 | G68: 1903.23 | H68: 1480.29
A69: 2 | B69: 2 Children | D69: 6964.2 | E69: 5137.82 | F69: 3885.43 | G69: 3020.47 | H69: 2355.85
A70: 3 | B70: 3+ Children | D70: 10212.57 | E70: 7524.41 | F70: 5688.49 | G70: 4426.56 | H70: 3447.12
A71: 1 | B71: Rider Comp. Maternidad | D71: =+D36*$G$2 -> 0 | E71: 0 | F71: 119.25 | G71: 119.25 | H71: 119.25
A72: 1 | B72: Transplante de organos | D72: 0 | E72: 0 | F72: 0 | G72: 0 | H72: 0
A78: DIAMOND (LATINAMERICA ONLY)
A79: TARIFAS ANUALES
A80: EDAD
C81: DL1 | D81: DL2 | E81: DL3 | F81: DL4 | G81: DL5 | H81: DL6
A82: 18 | B82: - 24
A83: 25 | B83: - 29
A84: 30 | B84: - 34
A85: 35 | B85: - 39
A86: 40 | B86: - 44
A87: 45 | B87: - 49
A88: 50 | B88: - 54
A89: 55 | B89: - 59
A90: 60
A91: 61
A92: 62
A93: 63
A94: 64
A95: 65
A96: 66
A97: 67
A98: 68
A99: 69
A100: 70
A101: 71
A102: 72
A103: 73
A104: 74
A105: 75 | B105: o más
A106: 1 | B106: Hijo
A107: 2 | B107: Hijos
A108: 3 | B108: Hijos o más
A109: 1 | B109: Rider Comp. Maternidad
A110: 1 | B110: Transplante de organos | C110: 0 | D110: 0 | E110: 0 | F110: 0 | G110: 0 | H110: 0
A112: TARIFAS SEMESTRALES
A113: EDAD
C114: DL1 | D114: DL2 | E114: DL3 | F114: DL4 | G114: DL5 | H114: DL6
A115: 18 | B115: - 24 | C115: =+C82*$G$2 -> 0 | D115: 0 | E115: 0 | F115: 0 | G115: 0 | H115: 0
A116: 25 | B116: - 29 | C116: 0 | D116: 0 | E116: 0 | F116: 0 | G116: 0 | H116: 0
A117: 30 | B117: - 34 | C117: 0 | D117: 0 | E117: 0 | F117: 0 | G117: 0 | H117: 0
A118: 35 | B118: - 39 | C118: 0 | D118: 0 | E118: 0 | F118: 0 | G118: 0 | H118: 0
A119: 40 | B119: - 44 | C119: 0 | D119: 0 | E119: 0 | F119: 0 | G119: 0 | H119: 0
A120: 45 | B120: - 49 | C120: 0 | D120: 0 | E120: 0 | F120: 0 | G120: 0 | H120: 0
A121: 50 | B121: - 54 | C121: 0 | D121: 0 | E121: 0 | F121: 0 | G121: 0 | H121: 0
A122: 55 | B122: - 59 | C122: 0 | D122: 0 | E122: 0 | F122: 0 | G122: 0 | H122: 0
A123: 60 | C123: 0 | D123: 0 | E123: 0 | F123: 0 | G123: 0 | H123: 0
A124: 61 | C124: 0 | D124: 0 | E124: 0 | F124: 0 | G124: 0 | H124: 0
A125: 62 | C125: 0 | D125: 0 | E125: 0 | F125: 0 | G125: 0 | H125: 0
A126: 63 | C126: 0 | D126: 0 | E126: 0 | F126: 0 | G126: 0 | H126: 0
A127: 64 | C127: 0 | D127: 0 | E127: 0 | F127: 0 | G127: 0 | H127: 0
A128: 65 | C128: 0 | D128: 0 | E128: 0 | F128: 0 | G128: 0 | H128: 0
A129: 66 | C129: 0 | D129: 0 | E129: 0 | F129: 0 | G129: 0 | H129: 0
A130: 67 | C130: 0 | D130: 0 | E130: 0 | F130: 0 | G130: 0 | H130: 0
A131: 68 | C131: =+C98*$G$2 -> 0 | D131: 0 | E131: 0 | F131: 0 | G131: 0 | H131: 0
A132: 69 | C132: 0 | D132: 0 | E132: 0 | F132: 0 | G132: 0 | H132: 0
A133: 70 | C133: 0 | D133: 0 | E133: 0 | F133: 0 | G133: 0 | H133: 0
A134: 71 | C134: 0 | D134: 0 | E134: 0 | F134: 0 | G134: 0 | H134: 0
A135: 72 | C135: 0 | D135: 0 | E135: 0 | F135: 0 | G135: 0 | H135: 0
A136: 73 | C136: 0 | D136: 0 | E136: 0 | F136: 0 | G136: 0 | H136: 0
A137: 74 | C137: 0 | D137: 0 | E137: 0 | F137: 0 | G137: 0 | H137: 0
A138: 75 | B138: o más | C138: 0 | D138: 0 | E138: 0 | F138: 0 | G138: 0 | H138: 0
A139: 1 | B139: Hijo | C139: 0 | D139: 0 | E139: 0 | F139: 0 | G139: 0 | H139: 0
A140: 2 | B140: Hijos | C140: 0 | D140: 0 | E140: 0 | F140: 0 | G140: 0 | H140: 0
A141: 3 | B141: Hijos o más | C141: 0 | D141: 0 | E141: 0 | F141: 0 | G141: 0 | H141: 0
A142: 1 | B142: Rider Comp. Maternidad | C142: 0 | D142: 0 | E142: 0 | F142: 0 | G142: 0 | H142: 0
A143: 1 | B143: Transplante de organos | C143: 0 | D143: 0 | E143: 0 | F143: 0 | G143: 0 | H143: 0
A148: BUPA PRIVILEGE CARE
A149: TARIFAS ANUALES
A150: EDAD
C151: CW1 | D151: CW2 | E151: CW3 | F151: CW4 | G151: CW5 | H151: CW6
A152: 18 | B152: 18-24 | D152: 20001 | E152: 13749 | F152: 8953 | G152: 5875 | H152: 4468
A153: 25 | B153: 25-29 | D153: 20978 | E153: 15211 | F153: 9914 | G153: 6503 | H153: 4950
A154: 30 | B154: 30-34 | D154: 21917 | E154: 16269 | F154: 11128 | G154: 7857 | H154: 6012
A155: 35 | B155: 35-39 | D155: 24534 | E155: 18212 | F155: 12471 | G155: 8814 | H155: 6730
A156: 40 | B156: 40-44 | D156: 28405 | E156: 19975 | F156: 13863 | G156: 9720 | H156: 7430
A157: 45 | B157: 45-49 | D157: 31734 | E157: 22319 | F157: 15487 | G157: 10865 | H157: 8297
A158: 50 | B158: 50-54 | D158: 41478 | E158: 29440 | F158: 20336 | G158: 15490 | H158: 11846
A159: 55 | B159: 55-59 | D159: 44122 | E159: 31317 | F159: 21639 | G159: 16489 | H159: 12604
A160: 60 | B160: 60 | D160: 48050 | E160: 34001 | F160: 24628 | G160: 19606 | H160: 15762
A161: 61 | B161: 61 | D161: 51622 | E161: 36525 | F161: 26457 | G161: 21073 | H161: 16927
A162: 62 | B162: 62 | D162: 56506 | E162: 40006 | F162: 28971 | G162: 23073 | H162: 18535
A163: 63 | B163: 63 | D163: 60090 | E163: 42531 | F163: 30800 | G163: 24544 | H163: 19703
A164: 64 | B164: 64 | D164: 64988 | E164: 46020 | F164: 33325 | G164: 26549 | H164: 21321
A165: 65 | B165: 65 | D165: 84970 | E165: 60013 | F165: 42129 | G165: 35395 | H165: 30058
A166: 66 | B166: 66 | D166: 98701 | E166: 69732 | F166: 48951 | G166: 41137 | H166: 34923
A167: 67 | B167: 67 | D167: 107795 | E167: 76158 | F167: 53465 | G167: 44912 | H167: 38146
A168: 68 | B168: 68 | D168: 119363 | E168: 84318 | F168: 59208 | G168: 49739 | H168: 42239
A169: 69 | B169: 69 | D169: 131321 | E169: 92765 | F169: 65128 | G169: 54718 | H169: 46478
A170: 70 | B170: 70 | D170: 161618 | E170: 112958 | F170: 76669 | G170: 63776 | H170: 54653
A171: 71 | B171: 71 | D171: 167965 | E171: 117376 | F171: 79667 | G171: 66272 | H171: 56812
A172: 72 | B172: 72 | D172: 172727 | E172: 120697 | F172: 81934 | G172: 68149 | H172: 58413
A173: 73 | B173: 73 | D173: 179060 | E173: 125141 | F173: 84937 | G173: 70655 | H173: 60577
A174: 74 | B174: 74 | D174: 182230 | E174: 127348 | F174: 86441 | G174: 71915 | H174: 61633
A175: 75 | B175: 75+ | D175: 190166 | E175: 132896 | F175: 90201 | G175: 75038 | H175: 64316
A176: 1 | B176: 1 Child | D176: 6933 | E176: 5059 | F176: 3637 | G176: 2836 | H176: 2104
A177: 2 | B177: 2 Children | D177: 11019 | E177: 8063 | F177: 5798 | G177: 4515 | H177: 3342
A178: 3 | B178: 3+ Children | D178: 16162 | E178: 11811 | F178: 8488 | G178: 6615 | H178: 4899
A179: 1 | B179: Rider Comp. Maternidad | D179: 0 | E179: 0 | F179: 225 | G179: 225 | H179: 225
A180: 1 | B180: Transplante de organos | D180: 0 | E180: 0 | F180: 0 | G180: 0 | H180: 0
A184: TARIFAS SEMESTRALES
A185: EDAD
D186: CW2 | E186: CW3 | F186: CW4 | G186: CW5 | H186: CW6
A187: 18 | B187: 18-24 | D187: =$G$2*D152 -> 10600.53 | E187: 7286.97 | F187: 4745.09 | G187: 3113.75 | H187: 2368.04
A188: 25 | B188: 25-29 | D188: 11118.34 | E188: 8061.83 | F188: 5254.42 | G188: 3446.59 | H188: 2623.5
A189: 30 | B189: 30-34 | D189: 11616.01 | E189: 8622.57 | F189: 5897.84 | G189: 4164.21 | H189: 3186.36
A190: 35 | B190: 35-39 | D190: 13003.02 | E190: 9652.36 | F190: 6609.63 | G190: 4671.42 | H190: 3566.9
A191: 40 | B191: 40-44 | D191: 15054.65 | E191: 10586.75 | F191: 7347.39 | G191: 5151.6 | H191: 3937.9
A192: 45 | B192: 45-49 | D192: 16819.02 | E192: 11829.07 | F192: 8208.11 | G192: 5758.45 | H192: 4397.41
A193: 50 | B193: 50-54 | D193: 21983.34 | E193: 15603.2 | F193: 10778.08 | G193: 8209.7 | H193: 6278.38
A194: 55 | B194: 55-59 | D194: 23384.66 | E194: 16598.01 | F194: 11468.67 | G194: 8739.17 | H194: 6680.12
A195: 60 | B195: 60 | D195: 25466.5 | E195: 18020.53 | F195: 13052.84 | G195: 10391.18 | H195: 8353.86
A196: 61 | B196: 61 | D196: 27359.66 | E196: 19358.25 | F196: 14022.21 | G196: 11168.69 | H196: 8971.31
A197: 62 | B197: 62 | D197: 29948.18 | E197: 21203.18 | F197: 15354.63 | G197: 12228.69 | H197: 9823.55
A198: 63 | B198: 63 | D198: 31847.7 | E198: 22541.43 | F198: 16324 | G198: 13008.32 | H198: 10442.59
A199: 64 | B199: 64 | D199: 34443.64 | E199: 24390.6 | F199: 17662.25 | G199: 14070.97 | H199: 11300.13
A200: 65 | B200: 65 | D200: 45034.1 | E200: 31806.89 | F200: 22328.37 | G200: 18759.35 | H200: 15930.74
A201: 66 | B201: 66 | D201: 52311.53 | E201: 36957.96 | F201: 25944.03 | G201: 21802.61 | H201: 18509.19
A202: 67 | B202: 67 | D202: 57131.35 | E202: 40363.74 | F202: 28336.45 | G202: 23803.36 | H202: 20217.38
A203: 68 | B203: 68 | D203: =$G$2*D168 -> 63262.39 | E203: 44688.54 | F203: 31380.24 | G203: 26361.67 | H203: 22386.67
A204: 69 | B204: 69 | D204: 69600.13 | E204: 49165.45 | F204: 34517.84 | G204: 29000.54 | H204: 24633.34
A205: 70 | B205: 70 | D205: 85657.54 | E205: 59867.74 | F205: 40634.57 | G205: 33801.28 | H205: 28966.09
A206: 71 | B206: 71 | D206: 89021.45 | E206: 62209.28 | F206: 42223.51 | G206: 35124.16 | H206: 30110.36
A207: 72 | B207: 72 | D207: 91545.31 | E207: 63969.41 | F207: 43425.02 | G207: 36118.97 | H207: 30958.89
A208: 73 | B208: 73 | D208: 94901.8 | E208: 66324.73 | F208: 45016.61 | G208: 37447.15 | H208: 32105.81
A209: 74 | B209: 74 | D209: 96581.9 | E209: 67494.44 | F209: 45813.73 | G209: 38114.95 | H209: 32665.49
A210: 75 | B210: 75+ | D210: 100787.98 | E210: 70434.88 | F210: 47806.53 | G210: 39770.14 | H210: 34087.48
A211: 1 | B211: 1 Child | D211: 3674.49 | E211: 2681.27 | F211: 1927.61 | G211: 1503.08 | H211: 1115.12
A212: 2 | B212: 2 Children | D212: 5840.07 | E212: 4273.39 | F212: 3072.94 | G212: 2392.95 | H212: 1771.26
A213: 3 | B213: 3+ Children | D213: 8565.86 | E213: 6259.83 | F213: 4498.64 | G213: 3505.95 | H213: 2596.47
A214: 1 | B214: Rider Comp. Maternidad | D214: =+D179*$G$2 -> 0 | E214: 0 | F214: 119.25 | G214: 119.25 | H214: 119.25
A215: 1 | B215: Transplante de organos | D215: 0 | E215: 0 | F215: 0 | G215: 0 | H215: 0
A220: COMPLETE (LATINAMERICA ONLY)
A221: TARIFAS ANUALES
A222: EDAD
... 335 more rows
